Workbook

Sheet Hoja1
B3: SIMULADOR PRÉSTAMO PERSONAL CON GARANTÍA | G3: Soles
G4: Dólares
A5: Nota: Para hacer uso del simulador, debe tener habilitado y desbloqueado la opción de macros en su equipo. Luego de habiliarlo ingrese todos los valores a simular,después de click a Calcular y luego a Generar cronograma para visualizar el Cronograma Simulado
G6: No
B7: Moneda | C7: Soles | G7: Julio
B8: Monto del Préstamo | C8: 8000 | G8: Diciembre
B9: Fecha de Desembolso | C9: 2025-03-25 | M9: 0
B10: Plazo | C10: 12 | G10: Seguro sin retorno | M10: 30
B11: TEA* | C11: 16.3 | G11: Seguro con retorno | M11: 60
B12: Días de Gracia | C12: 0 | G12: Endoso o sin seguro | M12: 90
B13: Seguro Desgravamen** | C13: Endoso o sin seguro
B14: Cuota Doble 1 | C14: No | H14: =+Simulador!Q29 -> 0.3191666667 | I14: =+Simulador!W28 -> 0
B15: Cuota Doble 2 | C15: No | I15: =+IF(AND(I14>-1,I14<1),"CORRECTO","INCORRECTO") -> CORRECTO

Sheet Hoja2
B5: (SIMULACIÓN)
B6: CRONOGRAMA DE PAGOS
B9: Moneda : | D9: =+Hoja1!C7 -> Soles | F9: Monto del Préstamo : | H9: =Hoja1!C8 -> 8000
B10: Producto : | D10: Préstamo Personal con Garantía | F10: Tasa Efectiva Anual (fija) : | H10: =+Hoja1!C11&"%" -> 16.3%
B11: Fecha de desembolso : | D11: =+Hoja1!C9 -> 2025-03-25 | F11: Plazo (en meses) : | H11: =+Hoja1!C10 -> 12
B12: Mes de Cuota Doble 1 : | D12: =+Hoja1!C14 -> No | F12: Tasa de Costo Efectiva Anual : | H12: =+Simulador!Q18 -> 0.1629987197 | I12: =+RATE(H11,H18,-H9-I13) -> 0.01290869458
B13: Mes de Cuota Doble 2 : | D13: =+Hoja1!C15 -> No | F13: Tasa Seguro de Desgravamen Mensual : | H13: =+IF(Hoja1!C13="Endoso o sin seguro",0,IF(Hoja1!C13="Seguro con retorno",0.346%,0.18%)) -> 0 | I13: =Simulador!Q16 -> 0
B14: Periodo de gracia : | D14: =+Hoja1!C12&" "& "días" -> 0 días
B15: Frecuencia de pago : | D15: Mensual
B16: =+IF(AND(Simulador!W28<1,Simulador!W28>-1),"","No ha presionado el botón de calcular, por favor volver a simular") -> 
B17: N° | C17: Fecha Vencimiento | D17: Capital | E17: Interes | F17: Interes de Gracia | G17: Seguro Desgravamen | H17: Total Cuota
B18: 1 | C18: =IFERROR(+IF(B18>0,VLOOKUP(B18,Simulador!$A$32:$T$581,3,0)," ")," ") -> 2025-04-25 | D18: =IFERROR(+IF(B18>0,VLOOKUP(B18,Simulador!$A$32:$T$581,11,0)," ")," ") -> 619.2191667 | E18: =IFERROR(+IF(B18>0,VLOOKUP(B18,Simulador!$A$32:$T$550,12,0)," ")," ") -> 104.7 | F18: =IFERROR(+IF(B18>0,VLOOKUP(B18,Simulador!$A$32:$T$550,13,0)," ")," ") -> 0 | G18: =IFERROR(+IF(B18>0,VLOOKUP(B18,Simulador!$A$32:$T$550,20,0)," ")," ") -> 0 | H18: =IFERROR(+IF(B18>0,VLOOKUP(B18,Simulador!$A$32:$Z$550,22,0)," ")," ") -> 723.9191667
B19: =IF(B18=0," ",IF(B18>=$H$11,"",B18+1)) -> 2 | C19: =IFERROR(+IF(B19>0,VLOOKUP(B19,Simulador!$A$32:$T$581,3,0)," ")," ") -> 2025-05-25 | D19: =IF($H$11=0," ",IF(B18=$H$11,Simulador!$J$33,+IF(B19>0,VLOOKUP(B19,Simulador!$A$32:$T$581,11,0)," "))) -> 630.4591667 | E19: =IF($H$11=0," ",IF(B18=$H$11,Simulador!$L$31,+IF(B19>0,VLOOKUP(B19,Simulador!$A$32:$T$550,12,0)," "))) -> 93.46 | F19: =IF($H$11=0," ",IF(B18=$H$11,Simulador!$M$31,+IF(B19>0,VLOOKUP(B19,Simulador!$A$32:$T$550,13,0)," "))) -> 0 | G19: =IF($H$11=0," ",IF(B18=$H$11,Simulador!$T$31,+IF(B19>0,VLOOKUP(B19,Simulador!$A$32:$T$550,20,0)," "))) -> 0 | H19: =IF($H$11=0," ",IF(B18=$H$11,Simulador!$V$31,+IF(B19>0,VLOOKUP(B19,Simulador!$A$32:$Z$550,22,0)," "))) -> 723.9191667
B20: =IF(B19=0," ",IF(B19>=$H$11,"",B19+1)) -> 3 | C20: =IFERROR(+IF(B20>0,VLOOKUP(B20,Simulador!$A$32:$T$581,3,0)," ")," ") -> 2025-06-25 | D20: =IF($H$11=0," ",IF(B19=$H$11,Simulador!$J$33,+IF(B20>0,VLOOKUP(B20,Simulador!$A$32:$T$581,11,0)," "))) -> 635.5691667 | E20: =IF($H$11=0," ",IF(B19=$H$11,Simulador!$L$31,+IF(B20>0,VLOOKUP(B20,Simulador!$A$32:$T$550,12,0)," "))) -> 88.35 | F20: =IF($H$11=0," ",IF(B19=$H$11,Simulador!$M$31,+IF(B20>0,VLOOKUP(B20,Simulador!$A$32:$T$550,13,0)," "))) -> 0 | G20: =IF($H$11=0," ",IF(B19=$H$11,Simulador!$T$31,+IF(B20>0,VLOOKUP(B20,Simulador!$A$32:$T$550,20,0)," "))) -> 0 | H20: =IF($H$11=0," ",IF(B19=$H$11,Simulador!$V$31,+IF(B20>0,VLOOKUP(B20,Simulador!$A$32:$Z$550,22,0)," "))) -> 723.9191667
B21: 4 | C21: =IFERROR(+IF(B21>0,VLOOKUP(B21,Simulador!$A$32:$T$581,3,0)," ")," ") -> 2025-07-25 | D21: =IF($H$11=0," ",IF(B20=$H$11,Simulador!$J$33,+IF(B21>0,VLOOKUP(B21,Simulador!$A$32:$T$581,11,0)," "))) -> 646.4891667 | E21: =IF($H$11=0," ",IF(B20=$H$11,Simulador!$L$31,+IF(B21>0,VLOOKUP(B21,Simulador!$A$32:$T$550,12,0)," "))) -> 77.43 | F21: =IF($H$11=0," ",IF(B20=$H$11,Simulador!$M$31,+IF(B21>0,VLOOKUP(B21,Simulador!$A$32:$T$550,13,0)," "))) -> 0 | G21: =IF($H$11=0," ",IF(B20=$H$11,Simulador!$T$31,+IF(B21>0,VLOOKUP(B21,Simulador!$A$32:$T$550,20,0)," "))) -> 0 | H21: =IF($H$11=0," ",IF(B20=$H$11,Simulador!$V$31,+IF(B21>0,VLOOKUP(B21,Simulador!$A$32:$Z$550,22,0)," "))) -> 723.9191667
B22: 5 | C22: =IFERROR(+IF(B22>0,VLOOKUP(B22,Simulador!$A$32:$T$581,3,0)," ")," ") -> 2025-08-25 | D22: =IF($H$11=0," ",IF(B21=$H$11,Simulador!$J$33,+IF(B22>0,VLOOKUP(B22,Simulador!$A$32:$T$581,11,0)," "))) -> 652.3491667 | E22: =IF($H$11=0," ",IF(B21=$H$11,Simulador!$L$31,+IF(B22>0,VLOOKUP(B22,Simulador!$A$32:$T$550,12,0)," "))) -> 71.57 | F22: =IF($H$11=0," ",IF(B21=$H$11,Simulador!$M$31,+IF(B22>0,VLOOKUP(B22,Simulador!$A$32:$T$550,13,0)," "))) -> 0 | G22: =IF($H$11=0," ",IF(B21=$H$11,Simulador!$T$31,+IF(B22>0,VLOOKUP(B22,Simulador!$A$32:$T$550,20,0)," "))) -> 0 | H22: =IF($H$11=0," ",IF(B21=$H$11,Simulador!$V$31,+IF(B22>0,VLOOKUP(B22,Simulador!$A$32:$Z$550,22,0)," "))) -> 723.9191667
B23: 6 | C23: =IFERROR(+IF(B23>0,VLOOKUP(B23,Simulador!$A$32:$T$581,3,0)," ")," ") -> 2025-09-25 | D23: =IF($H$11=0," ",IF(B22=$H$11,Simulador!$J$33,+IF(B23>0,VLOOKUP(B23,Simulador!$A$32:$T$581,11,0)," "))) -> 660.8891667 | E23: =IF($H$11=0," ",IF(B22=$H$11,Simulador!$L$31,+IF(B23>0,VLOOKUP(B23,Simulador!$A$32:$T$550,12,0)," "))) -> 63.03 | F23: =IF($H$11=0," ",IF(B22=$H$11,Simulador!$M$31,+IF(B23>0,VLOOKUP(B23,Simulador!$A$32:$T$550,13,0)," "))) -> 0 | G23: =IF($H$11=0," ",IF(B22=$H$11,Simulador!$T$31,+IF(B23>0,VLOOKUP(B23,Simulador!$A$32:$T$550,20,0)," "))) -> 0 | H23: =IF($H$11=0," ",IF(B22=$H$11,Simulador!$V$31,+IF(B23>0,VLOOKUP(B23,Simulador!$A$32:$Z$550,22,0)," "))) -> 723.9191667
B24: 7 | C24: =IFERROR(+IF(B24>0,VLOOKUP(B24,Simulador!$A$32:$T$581,3,0)," ")," ") -> 2025-10-25 | D24: =IF($H$11=0," ",IF(B23=$H$11,Simulador!$J$33,+IF(B24>0,VLOOKUP(B24,Simulador!$A$32:$T$581,11,0)," "))) -> 671.2991667 | E24: =IF($H$11=0," ",IF(B23=$H$11,Simulador!$L$31,+IF(B24>0,VLOOKUP(B24,Simulador!$A$32:$T$550,12,0)," "))) -> 52.62 | F24: =IF($H$11=0," ",IF(B23=$H$11,Simulador!$M$31,+IF(B24>0,VLOOKUP(B24,Simulador!$A$32:$T$550,13,0)," "))) -> 0 | G24: =IF($H$11=0," ",IF(B23=$H$11,Simulador!$T$31,+IF(B24>0,VLOOKUP(B24,Simulador!$A$32:$T$550,20,0)," "))) -> 0 | H24: =IF($H$11=0," ",IF(B23=$H$11,Simulador!$V$31,+IF(B24>0,VLOOKUP(B24,Simulador!$A$32:$Z$550,22,0)," "))) -> 723.9191667
B25: 8 | C25: =IFERROR(+IF(B25>0,VLOOKUP(B25,Simulador!$A$32:$T$581,3,0)," ")," ") -> 2025-11-25 | D25: =IF($H$11=0," ",IF(B24=$H$11,Simulador!$J$33,+IF(B25>0,VLOOKUP(B25,Simulador!$A$32:$T$581,11,0)," "))) -> 678.3291667 | E25: =IF($H$11=0," ",IF(B24=$H$11,Simulador!$L$31,+IF(B25>0,VLOOKUP(B25,Simulador!$A$32:$T$550,12,0)," "))) -> 45.59 | F25: =IF($H$11=0," ",IF(B24=$H$11,Simulador!$M$31,+IF(B25>0,VLOOKUP(B25,Simulador!$A$32:$T$550,13,0)," "))) -> 0 | G25: =IF($H$11=0," ",IF(B24=$H$11,Simulador!$T$31,+IF(B25>0,VLOOKUP(B25,Simulador!$A$32:$T$550,20,0)," "))) -> 0 | H25: =IF($H$11=0," ",IF(B24=$H$11,Simulador!$V$31,+IF(B25>0,VLOOKUP(B25,Simulador!$A$32:$Z$550,22,0)," "))) -> 723.9191667
B26: 9 | C26: =IFERROR(+IF(B26>0,VLOOKUP(B26,Simulador!$A$32:$T$581,3,0)," ")," ") -> 2025-12-25 | D26: =IF($H$11=0," ",IF(B25=$H$11,Simulador!$J$33,+IF(B26>0,VLOOKUP(B26,Simulador!$A$32:$T$581,11,0)," "))) -> 688.3991667 | E26: =IF($H$11=0," ",IF(B25=$H$11,Simulador!$L$31,+IF(B26>0,VLOOKUP(B26,Simulador!$A$32:$T$550,12,0)," "))) -> 35.52 | F26: =IF($H$11=0," ",IF(B25=$H$11,Simulador!$M$31,+IF(B26>0,VLOOKUP(B26,Simulador!$A$32:$T$550,13,0)," "))) -> 0 | G26: =IF($H$11=0," ",IF(B25=$H$11,Simulador!$T$31,+IF(B26>0,VLOOKUP(B26,Simulador!$A$32:$T$550,20,0)," "))) -> 0 | H26: =IF($H$11=0," ",IF(B25=$H$11,Simulador!$V$31,+IF(B26>0,VLOOKUP(B26,Simulador!$A$32:$Z$550,22,0)," "))) -> 723.9191667
B27: 10 | C27: =IFERROR(+IF(B27>0,VLOOKUP(B27,Simulador!$A$32:$T$581,3,0)," ")," ") -> 2026-01-25 | D27: =IF($H$11=0," ",IF(B26=$H$11,Simulador!$J$33,+IF(B27>0,VLOOKUP(B27,Simulador!$A$32:$T$581,11,0)," "))) -> 696.2091667 | E27: =IF($H$11=0," ",IF(B26=$H$11,Simulador!$L$31,+IF(B27>0,VLOOKUP(B27,Simulador!$A$32:$T$550,12,0)," "))) -> 27.71 | F27: =IF($H$11=0," ",IF(B26=$H$11,Simulador!$M$31,+IF(B27>0,VLOOKUP(B27,Simulador!$A$32:$T$550,13,0)," "))) -> 0 | G27: =IF($H$11=0," ",IF(B26=$H$11,Simulador!$T$31,+IF(B27>0,VLOOKUP(B27,Simulador!$A$32:$T$550,20,0)," "))) -> 0 | H27: =IF($H$11=0," ",IF(B26=$H$11,Simulador!$V$31,+IF(B27>0,VLOOKUP(B27,Simulador!$A$32:$Z$550,22,0)," "))) -> 723.9191667
B28: 11 | C28: =IFERROR(+IF(B28>0,VLOOKUP(B28,Simulador!$A$32:$T$581,3,0)," ")," ") -> 2026-02-25 | D28: =IF($H$11=0," ",IF(B27=$H$11,Simulador!$J$33,+IF(B28>0,VLOOKUP(B28,Simulador!$A$32:$T$581,11,0)," "))) -> 705.3191667 | E28: =IF($H$11=0," ",IF(B27=$H$11,Simulador!$L$31,+IF(B28>0,VLOOKUP(B28,Simulador!$A$32:$T$550,12,0)," "))) -> 18.6 | F28: =IF($H$11=0," ",IF(B27=$H$11,Simulador!$M$31,+IF(B28>0,VLOOKUP(B28,Simulador!$A$32:$T$550,13,0)," "))) -> 0 | G28: =IF($H$11=0," ",IF(B27=$H$11,Simulador!$T$31,+IF(B28>0,VLOOKUP(B28,Simulador!$A$32:$T$550,20,0)," "))) -> 0 | H28: =IF($H$11=0," ",IF(B27=$H$11,Simulador!$V$31,+IF(B28>0,VLOOKUP(B28,Simulador!$A$32:$Z$550,22,0)," "))) -> 723.9191667
B29: 12 | C29: =IFERROR(+IF(B29>0,VLOOKUP(B29,Simulador!$A$32:$T$581,3,0)," ")," ") -> 2026-03-25 | D29: =IF($H$11=0," ",IF(B28=$H$11,Simulador!$J$33,+IF(B29>0,VLOOKUP(B29,Simulador!$A$32:$T$581,11,0)," "))) -> 715.4691667 | E29: =IF($H$11=0," ",IF(B28=$H$11,Simulador!$L$31,+IF(B29>0,VLOOKUP(B29,Simulador!$A$32:$T$550,12,0)," "))) -> 8.45 | F29: =IF($H$11=0," ",IF(B28=$H$11,Simulador!$M$31,+IF(B29>0,VLOOKUP(B29,Simulador!$A$32:$T$550,13,0)," "))) -> 0 | G29: =IF($H$11=0," ",IF(B28=$H$11,Simulador!$T$31,+IF(B29>0,VLOOKUP(B29,Simulador!$A$32:$T$550,20,0)," "))) -> 0 | H29: =IF($H$11=0," ",IF(B28=$H$11,Simulador!$V$31,+IF(B29>0,VLOOKUP(B29,Simulador!$A$32:$Z$550,22,0)," "))) -> 723.9191667
C30: =IFERROR(+IF(B30>0,VLOOKUP(B30,Simulador!$A$32:$T$581,3,0)," ")," ") ->  | D30: =IF($H$11=0," ",IF(B29=$H$11,Simulador!$J$33,+IF(B30>0,VLOOKUP(B30,Simulador!$A$32:$T$581,11,0)," "))) -> 8000 | E30: =IF($H$11=0," ",IF(B29=$H$11,Simulador!$L$31,+IF(B30>0,VLOOKUP(B30,Simulador!$A$32:$T$550,12,0)," "))) -> 687.03 | F30: =IF($H$11=0," ",IF(B29=$H$11,Simulador!$M$31,+IF(B30>0,VLOOKUP(B30,Simulador!$A$32:$T$550,13,0)," "))) -> 0 | G30: =IF($H$11=0," ",IF(B29=$H$11,Simulador!$T$31,+IF(B30>0,VLOOKUP(B30,Simulador!$A$32:$T$550,20,0)," "))) -> 0 | H30: =IF($H$11=0," ",IF(B29=$H$11,Simulador!$V$31,+IF(B30>0,VLOOKUP(B30,Simulador!$A$32:$Z$550,22,0)," "))) -> 8687.03
C31: =IFERROR(+IF(B31>0,VLOOKUP(B31,Simulador!$A$32:$T$581,3,0)," ")," ") ->  | D31: =IF($H$11=0," ",IF(B30=$H$11,Simulador!$J$33,+IF(B31>0,VLOOKUP(B31,Simulador!$A$32:$T$581,11,0)," "))) ->  | E31: =IF($H$11=0," ",IF(B30=$H$11,Simulador!$L$31,+IF(B31>0,VLOOKUP(B31,Simulador!$A$32:$T$550,12,0)," "))) ->  | F31: =IF($H$11=0," ",IF(B30=$H$11,Simulador!$M$31,+IF(B31>0,VLOOKUP(B31,Simulador!$A$32:$T$550,13,0)," "))) ->  | G31: =IF($H$11=0," ",IF(B30=$H$11,Simulador!$T$31,+IF(B31>0,VLOOKUP(B31,Simulador!$A$32:$T$550,20,0)," "))) ->  | H31: =IF($H$11=0," ",IF(B30=$H$11,Simulador!$V$31,+IF(B31>0,VLOOKUP(B31,Simulador!$A$32:$Z$550,22,0)," "))) -> 
C32: =IFERROR(+IF(B32>0,VLOOKUP(B32,Simulador!$A$32:$T$581,3,0)," ")," ") ->  | D32: =IF($H$11=0," ",IF(B31=$H$11,Simulador!$J$33,+IF(B32>0,VLOOKUP(B32,Simulador!$A$32:$T$581,11,0)," "))) ->  | E32: =IF($H$11=0," ",IF(B31=$H$11,Simulador!$L$31,+IF(B32>0,VLOOKUP(B32,Simulador!$A$32:$T$550,12,0)," "))) ->  | F32: =IF($H$11=0," ",IF(B31=$H$11,Simulador!$M$31,+IF(B32>0,VLOOKUP(B32,Simulador!$A$32:$T$550,13,0)," "))) ->  | G32: =IF($H$11=0," ",IF(B31=$H$11,Simulador!$T$31,+IF(B32>0,VLOOKUP(B32,Simulador!$A$32:$T$550,20,0)," "))) ->  | H32: =IF($H$11=0," ",IF(B31=$H$11,Simulador!$V$31,+IF(B32>0,VLOOKUP(B32,Simulador!$A$32:$Z$550,22,0)," "))) -> 
C33: =IFERROR(+IF(B33>0,VLOOKUP(B33,Simulador!$A$32:$T$581,3,0)," ")," ") ->  | D33: =IF($H$11=0," ",IF(B32=$H$11,Simulador!$J$33,+IF(B33>0,VLOOKUP(B33,Simulador!$A$32:$T$581,11,0)," "))) ->  | E33: =IF($H$11=0," ",IF(B32=$H$11,Simulador!$L$31,+IF(B33>0,VLOOKUP(B33,Simulador!$A$32:$T$550,12,0)," "))) ->  | F33: =IF($H$11=0," ",IF(B32=$H$11,Simulador!$M$31,+IF(B33>0,VLOOKUP(B33,Simulador!$A$32:$T$550,13,0)," "))) ->  | G33: =IF($H$11=0," ",IF(B32=$H$11,Simulador!$T$31,+IF(B33>0,VLOOKUP(B33,Simulador!$A$32:$T$550,20,0)," "))) ->  | H33: =IF($H$11=0," ",IF(B32=$H$11,Simulador!$V$31,+IF(B33>0,VLOOKUP(B33,Simulador!$A$32:$Z$550,22,0)," "))) -> 
C34: =IFERROR(+IF(B34>0,VLOOKUP(B34,Simulador!$A$32:$T$581,3,0)," ")," ") ->  | D34: =IF($H$11=0," ",IF(B33=$H$11,Simulador!$J$33,+IF(B34>0,VLOOKUP(B34,Simulador!$A$32:$T$581,11,0)," "))) ->  | E34: =IF($H$11=0," ",IF(B33=$H$11,Simulador!$L$31,+IF(B34>0,VLOOKUP(B34,Simulador!$A$32:$T$550,12,0)," "))) ->  | F34: =IF($H$11=0," ",IF(B33=$H$11,Simulador!$M$31,+IF(B34>0,VLOOKUP(B34,Simulador!$A$32:$T$550,13,0)," "))) ->  | G34: =IF($H$11=0," ",IF(B33=$H$11,Simulador!$T$31,+IF(B34>0,VLOOKUP(B34,Simulador!$A$32:$T$550,20,0)," "))) ->  | H34: =IF($H$11=0," ",IF(B33=$H$11,Simulador!$V$31,+IF(B34>0,VLOOKUP(B34,Simulador!$A$32:$Z$550,22,0)," "))) -> 
C35: =IFERROR(+IF(B35>0,VLOOKUP(B35,Simulador!$A$32:$T$581,3,0)," ")," ") ->  | D35: =IF($H$11=0," ",IF(B34=$H$11,Simulador!$J$33,+IF(B35>0,VLOOKUP(B35,Simulador!$A$32:$T$581,11,0)," "))) ->  | E35: =IF($H$11=0," ",IF(B34=$H$11,Simulador!$L$31,+IF(B35>0,VLOOKUP(B35,Simulador!$A$32:$T$550,12,0)," "))) ->  | F35: =IF($H$11=0," ",IF(B34=$H$11,Simulador!$M$31,+IF(B35>0,VLOOKUP(B35,Simulador!$A$32:$T$550,13,0)," "))) ->  | G35: =IF($H$11=0," ",IF(B34=$H$11,Simulador!$T$31,+IF(B35>0,VLOOKUP(B35,Simulador!$A$32:$T$550,20,0)," "))) ->  | H35: =IF($H$11=0," ",IF(B34=$H$11,Simulador!$V$31,+IF(B35>0,VLOOKUP(B35,Simulador!$A$32:$Z$550,22,0)," "))) -> 
C36: =IFERROR(+IF(B36>0,VLOOKUP(B36,Simulador!$A$32:$T$581,3,0)," ")," ") ->  | D36: =IF($H$11=0," ",IF(B35=$H$11,Simulador!$J$33,+IF(B36>0,VLOOKUP(B36,Simulador!$A$32:$T$581,11,0)," "))) ->  | E36: =IF($H$11=0," ",IF(B35=$H$11,Simulador!$L$31,+IF(B36>0,VLOOKUP(B36,Simulador!$A$32:$T$550,12,0)," "))) ->  | F36: =IF($H$11=0," ",IF(B35=$H$11,Simulador!$M$31,+IF(B36>0,VLOOKUP(B36,Simulador!$A$32:$T$550,13,0)," "))) ->  | G36: =IF($H$11=0," ",IF(B35=$H$11,Simulador!$T$31,+IF(B36>0,VLOOKUP(B36,Simulador!$A$32:$T$550,20,0)," "))) ->  | H36: =IF($H$11=0," ",IF(B35=$H$11,Simulador!$V$31,+IF(B36>0,VLOOKUP(B36,Simulador!$A$32:$Z$550,22,0)," "))) -> 
C37: =IFERROR(+IF(B37>0,VLOOKUP(B37,Simulador!$A$32:$T$581,3,0)," ")," ") ->  | D37: =IF($H$11=0," ",IF(B36=$H$11,Simulador!$J$33,+IF(B37>0,VLOOKUP(B37,Simulador!$A$32:$T$581,11,0)," "))) ->  | E37: =IF($H$11=0," ",IF(B36=$H$11,Simulador!$L$31,+IF(B37>0,VLOOKUP(B37,Simulador!$A$32:$T$550,12,0)," "))) ->  | F37: =IF($H$11=0," ",IF(B36=$H$11,Simulador!$M$31,+IF(B37>0,VLOOKUP(B37,Simulador!$A$32:$T$550,13,0)," "))) ->  | G37: =IF($H$11=0," ",IF(B36=$H$11,Simulador!$T$31,+IF(B37>0,VLOOKUP(B37,Simulador!$A$32:$T$550,20,0)," "))) ->  | H37: =IF($H$11=0," ",IF(B36=$H$11,Simulador!$V$31,+IF(B37>0,VLOOKUP(B37,Simulador!$A$32:$Z$550,22,0)," "))) -> 
C38: =IFERROR(+IF(B38>0,VLOOKUP(B38,Simulador!$A$32:$T$581,3,0)," ")," ") ->  | D38: =IF($H$11=0," ",IF(B37=$H$11,Simulador!$J$33,+IF(B38>0,VLOOKUP(B38,Simulador!$A$32:$T$581,11,0)," "))) ->  | E38: =IF($H$11=0," ",IF(B37=$H$11,Simulador!$L$31,+IF(B38>0,VLOOKUP(B38,Simulador!$A$32:$T$550,12,0)," "))) ->  | F38: =IF($H$11=0," ",IF(B37=$H$11,Simulador!$M$31,+IF(B38>0,VLOOKUP(B38,Simulador!$A$32:$T$550,13,0)," "))) ->  | G38: =IF($H$11=0," ",IF(B37=$H$11,Simulador!$T$31,+IF(B38>0,VLOOKUP(B38,Simulador!$A$32:$T$550,20,0)," "))) ->  | H38: =IF($H$11=0," ",IF(B37=$H$11,Simulador!$V$31,+IF(B38>0,VLOOKUP(B38,Simulador!$A$32:$Z$550,22,0)," "))) -> 
C39: =IFERROR(+IF(B39>0,VLOOKUP(B39,Simulador!$A$32:$T$581,3,0)," ")," ") ->  | D39: =IF($H$11=0," ",IF(B38=$H$11,Simulador!$J$33,+IF(B39>0,VLOOKUP(B39,Simulador!$A$32:$T$581,11,0)," "))) ->  | E39: =IF($H$11=0," ",IF(B38=$H$11,Simulador!$L$31,+IF(B39>0,VLOOKUP(B39,Simulador!$A$32:$T$550,12,0)," "))) ->  | F39: =IF($H$11=0," ",IF(B38=$H$11,Simulador!$M$31,+IF(B39>0,VLOOKUP(B39,Simulador!$A$32:$T$550,13,0)," "))) ->  | G39: =IF($H$11=0," ",IF(B38=$H$11,Simulador!$T$31,+IF(B39>0,VLOOKUP(B39,Simulador!$A$32:$T$550,20,0)," "))) ->  | H39: =IF($H$11=0," ",IF(B38=$H$11,Simulador!$V$31,+IF(B39>0,VLOOKUP(B39,Simulador!$A$32:$Z$550,22,0)," "))) -> 
C40: =IFERROR(+IF(B40>0,VLOOKUP(B40,Simulador!$A$32:$T$581,3,0)," ")," ") ->  | D40: =IF($H$11=0," ",IF(B39=$H$11,Simulador!$J$33,+IF(B40>0,VLOOKUP(B40,Simulador!$A$32:$T$581,11,0)," "))) ->  | E40: =IF($H$11=0," ",IF(B39=$H$11,Simulador!$L$31,+IF(B40>0,VLOOKUP(B40,Simulador!$A$32:$T$550,12,0)," "))) ->  | F40: =IF($H$11=0," ",IF(B39=$H$11,Simulador!$M$31,+IF(B40>0,VLOOKUP(B40,Simulador!$A$32:$T$550,13,0)," "))) ->  | G40: =IF($H$11=0," ",IF(B39=$H$11,Simulador!$T$31,+IF(B40>0,VLOOKUP(B40,Simulador!$A$32:$T$550,20,0)," "))) ->  | H40: =IF($H$11=0," ",IF(B39=$H$11,Simulador!$V$31,+IF(B40>0,VLOOKUP(B40,Simulador!$A$32:$Z$550,22,0)," "))) -> 
C41: =IFERROR(+IF(B41>0,VLOOKUP(B41,Simulador!$A$32:$T$581,3,0)," ")," ") ->  | D41: =IF($H$11=0," ",IF(B40=$H$11,Simulador!$J$33,+IF(B41>0,VLOOKUP(B41,Simulador!$A$32:$T$581,11,0)," "))) ->  | E41: =IF($H$11=0," ",IF(B40=$H$11,Simulador!$L$31,+IF(B41>0,VLOOKUP(B41,Simulador!$A$32:$T$550,12,0)," "))) ->  | F41: =IF($H$11=0," ",IF(B40=$H$11,Simulador!$M$31,+IF(B41>0,VLOOKUP(B41,Simulador!$A$32:$T$550,13,0)," "))) ->  | G41: =IF($H$11=0," ",IF(B40=$H$11,Simulador!$T$31,+IF(B41>0,VLOOKUP(B41,Simulador!$A$32:$T$550,20,0)," "))) ->  | H41: =IF($H$11=0," ",IF(B40=$H$11,Simulador!$V$31,+IF(B41>0,VLOOKUP(B41,Simulador!$A$32:$Z$550,22,0)," "))) -> 
C42: =IFERROR(+IF(B42>0,VLOOKUP(B42,Simulador!$A$32:$T$581,3,0)," ")," ") ->  | D42: =IF($H$11=0," ",IF(B41=$H$11,Simulador!$J$33,+IF(B42>0,VLOOKUP(B42,Simulador!$A$32:$T$581,11,0)," "))) ->  | E42: =IF($H$11=0," ",IF(B41=$H$11,Simulador!$L$31,+IF(B42>0,VLOOKUP(B42,Simulador!$A$32:$T$550,12,0)," "))) ->  | F42: =IF($H$11=0," ",IF(B41=$H$11,Simulador!$M$31,+IF(B42>0,VLOOKUP(B42,Simulador!$A$32:$T$550,13,0)," "))) ->  | G42: =IF($H$11=0," ",IF(B41=$H$11,Simulador!$T$31,+IF(B42>0,VLOOKUP(B42,Simulador!$A$32:$T$550,20,0)," "))) ->  | H42: =IF($H$11=0," ",IF(B41=$H$11,Simulador!$V$31,+IF(B42>0,VLOOKUP(B42,Simulador!$A$32:$Z$550,22,0)," "))) -> 
C43: =IFERROR(+IF(B43>0,VLOOKUP(B43,Simulador!$A$32:$T$581,3,0)," ")," ") ->  | D43: =IF($H$11=0," ",IF(B42=$H$11,Simulador!$J$33,+IF(B43>0,VLOOKUP(B43,Simulador!$A$32:$T$581,11,0)," "))) ->  | E43: =IF($H$11=0," ",IF(B42=$H$11,Simulador!$L$31,+IF(B43>0,VLOOKUP(B43,Simulador!$A$32:$T$550,12,0)," "))) ->  | F43: =IF($H$11=0," ",IF(B42=$H$11,Simulador!$M$31,+IF(B43>0,VLOOKUP(B43,Simulador!$A$32:$T$550,13,0)," "))) ->  | G43: =IF($H$11=0," ",IF(B42=$H$11,Simulador!$T$31,+IF(B43>0,VLOOKUP(B43,Simulador!$A$32:$T$550,20,0)," "))) ->  | H43: =IF($H$11=0," ",IF(B42=$H$11,Simulador!$V$31,+IF(B43>0,VLOOKUP(B43,Simulador!$A$32:$Z$550,22,0)," "))) -> 
C44: =IFERROR(+IF(B44>0,VLOOKUP(B44,Simulador!$A$32:$T$581,3,0)," ")," ") ->  | D44: =IF($H$11=0," ",IF(B43=$H$11,Simulador!$J$33,+IF(B44>0,VLOOKUP(B44,Simulador!$A$32:$T$581,11,0)," "))) ->  | E44: =IF($H$11=0," ",IF(B43=$H$11,Simulador!$L$31,+IF(B44>0,VLOOKUP(B44,Simulador!$A$32:$T$550,12,0)," "))) ->  | F44: =IF($H$11=0," ",IF(B43=$H$11,Simulador!$M$31,+IF(B44>0,VLOOKUP(B44,Simulador!$A$32:$T$550,13,0)," "))) ->  | G44: =IF($H$11=0," ",IF(B43=$H$11,Simulador!$T$31,+IF(B44>0,VLOOKUP(B44,Simulador!$A$32:$T$550,20,0)," "))) ->  | H44: =IF($H$11=0," ",IF(B43=$H$11,Simulador!$V$31,+IF(B44>0,VLOOKUP(B44,Simulador!$A$32:$Z$550,22,0)," "))) -> 
C45: =IFERROR(+IF(B45>0,VLOOKUP(B45,Simulador!$A$32:$T$581,3,0)," ")," ") ->  | D45: =IF($H$11=0," ",IF(B44=$H$11,Simulador!$J$33,+IF(B45>0,VLOOKUP(B45,Simulador!$A$32:$T$581,11,0)," "))) ->  | E45: =IF($H$11=0," ",IF(B44=$H$11,Simulador!$L$31,+IF(B45>0,VLOOKUP(B45,Simulador!$A$32:$T$550,12,0)," "))) ->  | F45: =IF($H$11=0," ",IF(B44=$H$11,Simulador!$M$31,+IF(B45>0,VLOOKUP(B45,Simulador!$A$32:$T$550,13,0)," "))) ->  | G45: =IF($H$11=0," ",IF(B44=$H$11,Simulador!$T$31,+IF(B45>0,VLOOKUP(B45,Simulador!$A$32:$T$550,20,0)," "))) ->  | H45: =IF($H$11=0," ",IF(B44=$H$11,Simulador!$V$31,+IF(B45>0,VLOOKUP(B45,Simulador!$A$32:$Z$550,22,0)," "))) -> 
C46: =IFERROR(+IF(B46>0,VLOOKUP(B46,Simulador!$A$32:$T$581,3,0)," ")," ") ->  | D46: =IF($H$11=0," ",IF(B45=$H$11,Simulador!$J$33,+IF(B46>0,VLOOKUP(B46,Simulador!$A$32:$T$581,11,0)," "))) ->  | E46: =IF($H$11=0," ",IF(B45=$H$11,Simulador!$L$31,+IF(B46>0,VLOOKUP(B46,Simulador!$A$32:$T$550,12,0)," "))) ->  | F46: =IF($H$11=0," ",IF(B45=$H$11,Simulador!$M$31,+IF(B46>0,VLOOKUP(B46,Simulador!$A$32:$T$550,13,0)," "))) ->  | G46: =IF($H$11=0," ",IF(B45=$H$11,Simulador!$T$31,+IF(B46>0,VLOOKUP(B46,Simulador!$A$32:$T$550,20,0)," "))) ->  | H46: =IF($H$11=0," ",IF(B45=$H$11,Simulador!$V$31,+IF(B46>0,VLOOKUP(B46,Simulador!$A$32:$Z$550,22,0)," "))) -> 
C47: =IFERROR(+IF(B47>0,VLOOKUP(B47,Simulador!$A$32:$T$581,3,0)," ")," ") ->  | D47: =IF($H$11=0," ",IF(B46=$H$11,Simulador!$J$33,+IF(B47>0,VLOOKUP(B47,Simulador!$A$32:$T$581,11,0)," "))) ->  | E47: =IF($H$11=0," ",IF(B46=$H$11,Simulador!$L$31,+IF(B47>0,VLOOKUP(B47,Simulador!$A$32:$T$550,12,0)," "))) ->  | F47: =IF($H$11=0," ",IF(B46=$H$11,Simulador!$M$31,+IF(B47>0,VLOOKUP(B47,Simulador!$A$32:$T$550,13,0)," "))) ->  | G47: =IF($H$11=0," ",IF(B46=$H$11,Simulador!$T$31,+IF(B47>0,VLOOKUP(B47,Simulador!$A$32:$T$550,20,0)," "))) ->  | H47: =IF($H$11=0," ",IF(B46=$H$11,Simulador!$V$31,+IF(B47>0,VLOOKUP(B47,Simulador!$A$32:$Z$550,22,0)," "))) -> 
C48: =IFERROR(+IF(B48>0,VLOOKUP(B48,Simulador!$A$32:$T$581,3,0)," ")," ") ->  | D48: =IF($H$11=0," ",IF(B47=$H$11,Simulador!$J$33,+IF(B48>0,VLOOKUP(B48,Simulador!$A$32:$T$581,11,0)," "))) ->  | E48: =IF($H$11=0," ",IF(B47=$H$11,Simulador!$L$31,+IF(B48>0,VLOOKUP(B48,Simulador!$A$32:$T$550,12,0)," "))) ->  | F48: =IF($H$11=0," ",IF(B47=$H$11,Simulador!$M$31,+IF(B48>0,VLOOKUP(B48,Simulador!$A$32:$T$550,13,0)," "))) ->  | G48: =IF($H$11=0," ",IF(B47=$H$11,Simulador!$T$31,+IF(B48>0,VLOOKUP(B48,Simulador!$A$32:$T$550,20,0)," "))) ->  | H48: =IF($H$11=0," ",IF(B47=$H$11,Simulador!$V$31,+IF(B48>0,VLOOKUP(B48,Simulador!$A$32:$Z$550,22,0)," "))) -> 
C49: =IFERROR(+IF(B49>0,VLOOKUP(B49,Simulador!$A$32:$T$581,3,0)," ")," ") ->  | D49: =IF($H$11=0," ",IF(B48=$H$11,Simulador!$J$33,+IF(B49>0,VLOOKUP(B49,Simulador!$A$32:$T$581,11,0)," "))) ->  | E49: =IF($H$11=0," ",IF(B48=$H$11,Simulador!$L$31,+IF(B49>0,VLOOKUP(B49,Simulador!$A$32:$T$550,12,0)," "))) ->  | F49: =IF($H$11=0," ",IF(B48=$H$11,Simulador!$M$31,+IF(B49>0,VLOOKUP(B49,Simulador!$A$32:$T$550,13,0)," "))) ->  | G49: =IF($H$11=0," ",IF(B48=$H$11,Simulador!$T$31,+IF(B49>0,VLOOKUP(B49,Simulador!$A$32:$T$550,20,0)," "))) ->  | H49: =IF($H$11=0," ",IF(B48=$H$11,Simulador!$V$31,+IF(B49>0,VLOOKUP(B49,Simulador!$A$32:$Z$550,22,0)," "))) -> 
C50: =IFERROR(+IF(B50>0,VLOOKUP(B50,Simulador!$A$32:$T$581,3,0)," ")," ") ->  | D50: =IF($H$11=0," ",IF(B49=$H$11,Simulador!$J$33,+IF(B50>0,VLOOKUP(B50,Simulador!$A$32:$T$581,11,0)," "))) ->  | E50: =IF($H$11=0," ",IF(B49=$H$11,Simulador!$L$31,+IF(B50>0,VLOOKUP(B50,Simulador!$A$32:$T$550,12,0)," "))) ->  | F50: =IF($H$11=0," ",IF(B49=$H$11,Simulador!$M$31,+IF(B50>0,VLOOKUP(B50,Simulador!$A$32:$T$550,13,0)," "))) ->  | G50: =IF($H$11=0," ",IF(B49=$H$11,Simulador!$T$31,+IF(B50>0,VLOOKUP(B50,Simulador!$A$32:$T$550,20,0)," "))) ->  | H50: =IF($H$11=0," ",IF(B49=$H$11,Simulador!$V$31,+IF(B50>0,VLOOKUP(B50,Simulador!$A$32:$Z$550,22,0)," "))) -> 
C51: =IFERROR(+IF(B51>0,VLOOKUP(B51,Simulador!$A$32:$T$581,3,0)," ")," ") ->  | D51: =IF($H$11=0," ",IF(B50=$H$11,Simulador!$J$33,+IF(B51>0,VLOOKUP(B51,Simulador!$A$32:$T$581,11,0)," "))) ->  | E51: =IF($H$11=0," ",IF(B50=$H$11,Simulador!$L$31,+IF(B51>0,VLOOKUP(B51,Simulador!$A$32:$T$550,12,0)," "))) ->  | F51: =IF($H$11=0," ",IF(B50=$H$11,Simulador!$M$31,+IF(B51>0,VLOOKUP(B51,Simulador!$A$32:$T$550,13,0)," "))) ->  | G51: =IF($H$11=0," ",IF(B50=$H$11,Simulador!$T$31,+IF(B51>0,VLOOKUP(B51,Simulador!$A$32:$T$550,20,0)," "))) ->  | H51: =IF($H$11=0," ",IF(B50=$H$11,Simulador!$V$31,+IF(B51>0,VLOOKUP(B51,Simulador!$A$32:$Z$550,22,0)," "))) -> 
C52: =IFERROR(+IF(B52>0,VLOOKUP(B52,Simulador!$A$32:$T$581,3,0)," ")," ") ->  | D52: =IF($H$11=0," ",IF(B51=$H$11,Simulador!$J$33,+IF(B52>0,VLOOKUP(B52,Simulador!$A$32:$T$581,11,0)," "))) ->  | E52: =IF($H$11=0," ",IF(B51=$H$11,Simulador!$L$31,+IF(B52>0,VLOOKUP(B52,Simulador!$A$32:$T$550,12,0)," "))) ->  | F52: =IF($H$11=0," ",IF(B51=$H$11,Simulador!$M$31,+IF(B52>0,VLOOKUP(B52,Simulador!$A$32:$T$550,13,0)," "))) ->  | G52: =IF($H$11=0," ",IF(B51=$H$11,Simulador!$T$31,+IF(B52>0,VLOOKUP(B52,Simulador!$A$32:$T$550,20,0)," "))) ->  | H52: =IF($H$11=0," ",IF(B51=$H$11,Simulador!$V$31,+IF(B52>0,VLOOKUP(B52,Simulador!$A$32:$Z$550,22,0)," "))) -> 
C53: =IFERROR(+IF(B53>0,VLOOKUP(B53,Simulador!$A$32:$T$581,3,0)," ")," ") ->  | D53: =IF($H$11=0," ",IF(B52=$H$11,Simulador!$J$33,+IF(B53>0,VLOOKUP(B53,Simulador!$A$32:$T$581,11,0)," "))) ->  | E53: =IF($H$11=0," ",IF(B52=$H$11,Simulador!$L$31,+IF(B53>0,VLOOKUP(B53,Simulador!$A$32:$T$550,12,0)," "))) ->  | F53: =IF($H$11=0," ",IF(B52=$H$11,Simulador!$M$31,+IF(B53>0,VLOOKUP(B53,Simulador!$A$32:$T$550,13,0)," "))) ->  | G53: =IF($H$11=0," ",IF(B52=$H$11,Simulador!$T$31,+IF(B53>0,VLOOKUP(B53,Simulador!$A$32:$T$550,20,0)," "))) ->  | H53: =IF($H$11=0," ",IF(B52=$H$11,Simulador!$V$31,+IF(B53>0,VLOOKUP(B53,Simulador!$A$32:$Z$550,22,0)," "))) -> 
C54: =IFERROR(+IF(B54>0,VLOOKUP(B54,Simulador!$A$32:$T$581,3,0)," ")," ") ->  | D54: =IF($H$11=0," ",IF(B53=$H$11,Simulador!$J$33,+IF(B54>0,VLOOKUP(B54,Simulador!$A$32:$T$581,11,0)," "))) ->  | E54: =IF($H$11=0," ",IF(B53=$H$11,Simulador!$L$31,+IF(B54>0,VLOOKUP(B54,Simulador!$A$32:$T$550,12,0)," "))) ->  | F54: =IF($H$11=0," ",IF(B53=$H$11,Simulador!$M$31,+IF(B54>0,VLOOKUP(B54,Simulador!$A$32:$T$550,13,0)," "))) ->  | G54: =IF($H$11=0," ",IF(B53=$H$11,Simulador!$T$31,+IF(B54>0,VLOOKUP(B54,Simulador!$A$32:$T$550,20,0)," "))) ->  | H54: =IF($H$11=0," ",IF(B53=$H$11,Simulador!$V$31,+IF(B54>0,VLOOKUP(B54,Simulador!$A$32:$Z$550,22,0)," "))) -> 
C55: =IFERROR(+IF(B55>0,VLOOKUP(B55,Simulador!$A$32:$T$581,3,0)," ")," ") ->  | D55: =IF($H$11=0," ",IF(B54=$H$11,Simulador!$J$33,+IF(B55>0,VLOOKUP(B55,Simulador!$A$32:$T$581,11,0)," "))) ->  | E55: =IF($H$11=0," ",IF(B54=$H$11,Simulador!$L$31,+IF(B55>0,VLOOKUP(B55,Simulador!$A$32:$T$550,12,0)," "))) ->  | F55: =IF($H$11=0," ",IF(B54=$H$11,Simulador!$M$31,+IF(B55>0,VLOOKUP(B55,Simulador!$A$32:$T$550,13,0)," "))) ->  | G55: =IF($H$11=0," ",IF(B54=$H$11,Simulador!$T$31,+IF(B55>0,VLOOKUP(B55,Simulador!$A$32:$T$550,20,0)," "))) ->  | H55: =IF($H$11=0," ",IF(B54=$H$11,Simulador!$V$31,+IF(B55>0,VLOOKUP(B55,Simulador!$A$32:$Z$550,22,0)," "))) -> 
C56: =IFERROR(+IF(B56>0,VLOOKUP(B56,Simulador!$A$32:$T$581,3,0)," ")," ") ->  | D56: =IF($H$11=0," ",IF(B55=$H$11,Simulador!$J$33,+IF(B56>0,VLOOKUP(B56,Simulador!$A$32:$T$581,11,0)," "))) ->  | E56: =IF($H$11=0," ",IF(B55=$H$11,Simulador!$L$31,+IF(B56>0,VLOOKUP(B56,Simulador!$A$32:$T$550,12,0)," "))) ->  | F56: =IF($H$11=0," ",IF(B55=$H$11,Simulador!$M$31,+IF(B56>0,VLOOKUP(B56,Simulador!$A$32:$T$550,13,0)," "))) ->  | G56: =IF($H$11=0," ",IF(B55=$H$11,Simulador!$T$31,+IF(B56>0,VLOOKUP(B56,Simulador!$A$32:$T$550,20,0)," "))) ->  | H56: =IF($H$11=0," ",IF(B55=$H$11,Simulador!$V$31,+IF(B56>0,VLOOKUP(B56,Simulador!$A$32:$Z$550,22,0)," "))) -> 
C57: =IFERROR(+IF(B57>0,VLOOKUP(B57,Simulador!$A$32:$T$581,3,0)," ")," ") ->  | D57: =IF($H$11=0," ",IF(B56=$H$11,Simulador!$J$33,+IF(B57>0,VLOOKUP(B57,Simulador!$A$32:$T$581,11,0)," "))) ->  | E57: =IF($H$11=0," ",IF(B56=$H$11,Simulador!$L$31,+IF(B57>0,VLOOKUP(B57,Simulador!$A$32:$T$550,12,0)," "))) ->  | F57: =IF($H$11=0," ",IF(B56=$H$11,Simulador!$M$31,+IF(B57>0,VLOOKUP(B57,Simulador!$A$32:$T$550,13,0)," "))) ->  | G57: =IF($H$11=0," ",IF(B56=$H$11,Simulador!$T$31,+IF(B57>0,VLOOKUP(B57,Simulador!$A$32:$T$550,20,0)," "))) ->  | H57: =IF($H$11=0," ",IF(B56=$H$11,Simulador!$V$31,+IF(B57>0,VLOOKUP(B57,Simulador!$A$32:$Z$550,22,0)," "))) -> 
C58: =IFERROR(+IF(B58>0,VLOOKUP(B58,Simulador!$A$32:$T$581,3,0)," ")," ") ->  | D58: =IF($H$11=0," ",IF(B57=$H$11,Simulador!$J$33,+IF(B58>0,VLOOKUP(B58,Simulador!$A$32:$T$581,11,0)," "))) ->  | E58: =IF($H$11=0," ",IF(B57=$H$11,Simulador!$L$31,+IF(B58>0,VLOOKUP(B58,Simulador!$A$32:$T$550,12,0)," "))) ->  | F58: =IF($H$11=0," ",IF(B57=$H$11,Simulador!$M$31,+IF(B58>0,VLOOKUP(B58,Simulador!$A$32:$T$550,13,0)," "))) ->  | G58: =IF($H$11=0," ",IF(B57=$H$11,Simulador!$T$31,+IF(B58>0,VLOOKUP(B58,Simulador!$A$32:$T$550,20,0)," "))) ->  | H58: =IF($H$11=0," ",IF(B57=$H$11,Simulador!$V$31,+IF(B58>0,VLOOKUP(B58,Simulador!$A$32:$Z$550,22,0)," "))) -> 
C59: =IFERROR(+IF(B59>0,VLOOKUP(B59,Simulador!$A$32:$T$581,3,0)," ")," ") ->  | D59: =IF($H$11=0," ",IF(B58=$H$11,Simulador!$J$33,+IF(B59>0,VLOOKUP(B59,Simulador!$A$32:$T$581,11,0)," "))) ->  | E59: =IF($H$11=0," ",IF(B58=$H$11,Simulador!$L$31,+IF(B59>0,VLOOKUP(B59,Simulador!$A$32:$T$550,12,0)," "))) ->  | F59: =IF($H$11=0," ",IF(B58=$H$11,Simulador!$M$31,+IF(B59>0,VLOOKUP(B59,Simulador!$A$32:$T$550,13,0)," "))) ->  | G59: =IF($H$11=0," ",IF(B58=$H$11,Simulador!$T$31,+IF(B59>0,VLOOKUP(B59,Simulador!$A$32:$T$550,20,0)," "))) ->  | H59: =IF($H$11=0," ",IF(B58=$H$11,Simulador!$V$31,+IF(B59>0,VLOOKUP(B59,Simulador!$A$32:$Z$550,22,0)," "))) -> 
C60: =IFERROR(+IF(B60>0,VLOOKUP(B60,Simulador!$A$32:$T$581,3,0)," ")," ") ->  | D60: =IF($H$11=0," ",IF(B59=$H$11,Simulador!$J$33,+IF(B60>0,VLOOKUP(B60,Simulador!$A$32:$T$581,11,0)," "))) ->  | E60: =IF($H$11=0," ",IF(B59=$H$11,Simulador!$L$31,+IF(B60>0,VLOOKUP(B60,Simulador!$A$32:$T$550,12,0)," "))) ->  | F60: =IF($H$11=0," ",IF(B59=$H$11,Simulador!$M$31,+IF(B60>0,VLOOKUP(B60,Simulador!$A$32:$T$550,13,0)," "))) ->  | G60: =IF($H$11=0," ",IF(B59=$H$11,Simulador!$T$31,+IF(B60>0,VLOOKUP(B60,Simulador!$A$32:$T$550,20,0)," "))) ->  | H60: =IF($H$11=0," ",IF(B59=$H$11,Simulador!$V$31,+IF(B60>0,VLOOKUP(B60,Simulador!$A$32:$Z$550,22,0)," "))) -> 
C61: =IFERROR(+IF(B61>0,VLOOKUP(B61,Simulador!$A$32:$T$581,3,0)," ")," ") ->  | D61: =IF($H$11=0," ",IF(B60=$H$11,Simulador!$J$33,+IF(B61>0,VLOOKUP(B61,Simulador!$A$32:$T$581,11,0)," "))) ->  | E61: =IF($H$11=0," ",IF(B60=$H$11,Simulador!$L$31,+IF(B61>0,VLOOKUP(B61,Simulador!$A$32:$T$550,12,0)," "))) ->  | F61: =IF($H$11=0," ",IF(B60=$H$11,Simulador!$M$31,+IF(B61>0,VLOOKUP(B61,Simulador!$A$32:$T$550,13,0)," "))) ->  | G61: =IF($H$11=0," ",IF(B60=$H$11,Simulador!$T$31,+IF(B61>0,VLOOKUP(B61,Simulador!$A$32:$T$550,20,0)," "))) ->  | H61: =IF($H$11=0," ",IF(B60=$H$11,Simulador!$V$31,+IF(B61>0,VLOOKUP(B61,Simulador!$A$32:$Z$550,22,0)," "))) -> 
C62: =IFERROR(+IF(B62>0,VLOOKUP(B62,Simulador!$A$32:$T$581,3,0)," ")," ") ->  | D62: =IF($H$11=0," ",IF(B61=$H$11,Simulador!$J$33,+IF(B62>0,VLOOKUP(B62,Simulador!$A$32:$T$581,11,0)," "))) ->  | E62: =IF($H$11=0," ",IF(B61=$H$11,Simulador!$L$31,+IF(B62>0,VLOOKUP(B62,Simulador!$A$32:$T$550,12,0)," "))) ->  | F62: =IF($H$11=0," ",IF(B61=$H$11,Simulador!$M$31,+IF(B62>0,VLOOKUP(B62,Simulador!$A$32:$T$550,13,0)," "))) ->  | G62: =IF($H$11=0," ",IF(B61=$H$11,Simulador!$T$31,+IF(B62>0,VLOOKUP(B62,Simulador!$A$32:$T$550,20,0)," "))) ->  | H62: =IF($H$11=0," ",IF(B61=$H$11,Simulador!$V$31,+IF(B62>0,VLOOKUP(B62,Simulador!$A$32:$Z$550,22,0)," "))) -> 
C63: =IFERROR(+IF(B63>0,VLOOKUP(B63,Simulador!$A$32:$T$581,3,0)," ")," ") ->  | D63: =IF($H$11=0," ",IF(B62=$H$11,Simulador!$J$33,+IF(B63>0,VLOOKUP(B63,Simulador!$A$32:$T$581,11,0)," "))) ->  | E63: =IF($H$11=0," ",IF(B62=$H$11,Simulador!$L$31,+IF(B63>0,VLOOKUP(B63,Simulador!$A$32:$T$550,12,0)," "))) ->  | F63: =IF($H$11=0," ",IF(B62=$H$11,Simulador!$M$31,+IF(B63>0,VLOOKUP(B63,Simulador!$A$32:$T$550,13,0)," "))) ->  | G63: =IF($H$11=0," ",IF(B62=$H$11,Simulador!$T$31,+IF(B63>0,VLOOKUP(B63,Simulador!$A$32:$T$550,20,0)," "))) ->  | H63: =IF($H$11=0," ",IF(B62=$H$11,Simulador!$V$31,+IF(B63>0,VLOOKUP(B63,Simulador!$A$32:$Z$550,22,0)," "))) -> 
C64: =IFERROR(+IF(B64>0,VLOOKUP(B64,Simulador!$A$32:$T$581,3,0)," ")," ") ->  | D64: =IF($H$11=0," ",IF(B63=$H$11,Simulador!$J$33,+IF(B64>0,VLOOKUP(B64,Simulador!$A$32:$T$581,11,0)," "))) ->  | E64: =IF($H$11=0," ",IF(B63=$H$11,Simulador!$L$31,+IF(B64>0,VLOOKUP(B64,Simulador!$A$32:$T$550,12,0)," "))) ->  | F64: =IF($H$11=0," ",IF(B63=$H$11,Simulador!$M$31,+IF(B64>0,VLOOKUP(B64,Simulador!$A$32:$T$550,13,0)," "))) ->  | G64: =IF($H$11=0," ",IF(B63=$H$11,Simulador!$T$31,+IF(B64>0,VLOOKUP(B64,Simulador!$A$32:$T$550,20,0)," "))) ->  | H64: =IF($H$11=0," ",IF(B63=$H$11,Simulador!$V$31,+IF(B64>0,VLOOKUP(B64,Simulador!$A$32:$Z$550,22,0)," "))) -> 
C65: =IFERROR(+IF(B65>0,VLOOKUP(B65,Simulador!$A$32:$T$581,3,0)," ")," ") ->  | D65: =IF($H$11=0," ",IF(B64=$H$11,Simulador!$J$33,+IF(B65>0,VLOOKUP(B65,Simulador!$A$32:$T$581,11,0)," "))) ->  | E65: =IF($H$11=0," ",IF(B64=$H$11,Simulador!$L$31,+IF(B65>0,VLOOKUP(B65,Simulador!$A$32:$T$550,12,0)," "))) ->  | F65: =IF($H$11=0," ",IF(B64=$H$11,Simulador!$M$31,+IF(B65>0,VLOOKUP(B65,Simulador!$A$32:$T$550,13,0)," "))) ->  | G65: =IF($H$11=0," ",IF(B64=$H$11,Simulador!$T$31,+IF(B65>0,VLOOKUP(B65,Simulador!$A$32:$T$550,20,0)," "))) ->  | H65: =IF($H$11=0," ",IF(B64=$H$11,Simulador!$V$31,+IF(B65>0,VLOOKUP(B65,Simulador!$A$32:$Z$550,22,0)," "))) -> 
C66: =IF($H$11=0," ",IF(B65=$H$11,"TOTALES",+IF(B66>0,VLOOKUP(B66,Simulador!$A$32:$T$581,3,0)," "))) ->  | D66: =IF($H$11=0," ",IF(B65=$H$11,Simulador!$J$33,+IF(B66>0,VLOOKUP(B66,Simulador!$A$32:$T$581,11,0)," "))) ->  | E66: =IF($H$11=0," ",IF(B65=$H$11,Simulador!$L$31,+IF(B66>0,VLOOKUP(B66,Simulador!$A$32:$T$550,12,0)," "))) ->  | F66: =IF($H$11=0," ",IF(B65=$H$11,Simulador!$M$31,+IF(B66>0,VLOOKUP(B66,Simulador!$A$32:$T$550,13,0)," "))) ->  | G66: =IF($H$11=0," ",IF(B65=$H$11,Simulador!$T$31,+IF(B66>0,VLOOKUP(B66,Simulador!$A$32:$T$550,20,0)," "))) ->  | H66: =IF($H$11=0," ",IF(B65=$H$11,Simulador!$V$31,+IF(B66>0,VLOOKUP(B66,Simulador!$A$32:$Z$550,22,0)," "))) -> 
C67: =IF($H$11=0," ",IF(B66=$H$11,"TOTALES",+IF(B67>0,VLOOKUP(B67,Simulador!$A$32:$T$550,3,0)," "))) ->  | D67: =IF($H$11=0," ",IF(B66=$H$11,Simulador!$J$33,+IF(B67>0,VLOOKUP(B67,Simulador!$A$32:$T$550,11,0)," "))) ->  | E67: =IF($H$11=0," ",IF(B66=$H$11,Simulador!$L$31,+IF(B67>0,VLOOKUP(B67,Simulador!$A$32:$T$550,12,0)," "))) ->  | F67: =IF($H$11=0," ",IF(B66=$H$11,Simulador!$M$31,+IF(B67>0,VLOOKUP(B67,Simulador!$A$32:$T$550,13,0)," "))) ->  | G67: =IF($H$11=0," ",IF(B66=$H$11,Simulador!$T$31,+IF(B67>0,VLOOKUP(B67,Simulador!$A$32:$T$550,20,0)," "))) ->  | H67: =IF($H$11=0," ",IF(B66=$H$11,Simulador!$V$31,+IF(B67>0,VLOOKUP(B67,Simulador!$A$32:$Z$550,22,0)," "))) -> 
C68: =IF($H$11=0," ",IF(B67=$H$11,"TOTALES",+IF(B68>0,VLOOKUP(B68,Simulador!$A$32:$T$550,3,0)," "))) ->  | D68: =IF($H$11=0," ",IF(B67=$H$11,Simulador!$J$33,+IF(B68>0,VLOOKUP(B68,Simulador!$A$32:$T$550,11,0)," "))) ->  | E68: =IF($H$11=0," ",IF(B67=$H$11,Simulador!$L$31,+IF(B68>0,VLOOKUP(B68,Simulador!$A$32:$T$550,12,0)," "))) ->  | F68: =IF($H$11=0," ",IF(B67=$H$11,Simulador!$M$31,+IF(B68>0,VLOOKUP(B68,Simulador!$A$32:$T$550,13,0)," "))) ->  | G68: =IF($H$11=0," ",IF(B67=$H$11,Simulador!$T$31,+IF(B68>0,VLOOKUP(B68,Simulador!$A$32:$T$550,20,0)," "))) ->  | H68: =IF($H$11=0," ",IF(B67=$H$11,Simulador!$V$31,+IF(B68>0,VLOOKUP(B68,Simulador!$A$32:$Z$550,22,0)," "))) -> 

Sheet Simulador
C2: SIMULADOR DE CUOTAS - CRÉDITO PLD
C5: Importe Solicitado | H5: =+Hoja1!C8 -> 8000 | L5: Fecha Desembolso | Q5: =+Hoja1!C9 -> 2025-03-25
C6: Saldo de Capital | H6: =H5 -> 8000 | L6: Fecha Final de Gracia | Q6: =+DATE(YEAR(Q5+H15),MONTH(Q5+H15),DAY(Q5+H15)) -> 2025-03-25
C7: Saldo de Interes | H7: 0 | L7: Fecha de la 1° cuota | Q7: =DATE(YEAR(EDATE(Q6,1)),MONTH(EDATE(Q6,1)),DAY(EDATE(Q6,1))) -> 2025-04-25
C8: Tasa Anual (TEA) | H8: =+Hoja1!C11 -> 16.3 | L8: Fecha final de vencimiento | Q8: =IF(OR($H$16>0,$H$17>0),VLOOKUP($H$14,$A$33:$C$272,3,0),DATE(YEAR(EDATE(Q6,H14)),MONTH(EDATE(Q6,H14)),DAY(EDATE(Q6,H14)))) -> 2026-03-25
C9: Tasa de Seguro de Desgravamen | H9: =+IF(Hoja1!C13="Endoso o sin seguro",0,IF(Hoja1!C13="Seguro con retorno",0.346%,0.18%)) -> 0 | L9: Base | Q9: 360
C10: Tasa Anual (TEA) - Ajustada | H10: =+H8 -> 16.3 | L10: Frecuencia pago en días | Q10: 30 | R10: =+((1+22%)^(1/12)-1)*12*100 -> 20.05075665 | S10: =+(Q11%)*Q12/Q9 -> 0.01283895527
C11: Comision por Env. Inf | H11: 0 | L11: Tasa Equivalente - Ajustada | Q11: =ROUND((((H10/100+1)^(1/(Q9/Q10))-1)*Q9/Q10)*100,6) -> 15.195695 | R11: tea conv. A tem luego nominal anual
C12: Valor Asegurable | H12: 0 | L12: Días entre cuotas | Q12: =(Q8-Q6)/H14 -> 30.41666667 | R12: dias promedio entre cuotas
C13: Tasa de Seguro Todo Riesgo | H13: 0 | I13: =+H13*12 -> 0 | J13: =+I13/365*30*H12 -> 0 | L13: Factor Aplicado - Ajustada | Q13: =ROUND(($Q$11/100)/($Q$9/$Q$12),8) -> 0.01283896 | R13: tem convertida de manera nominal a los dias entre cuotas
C14: Plazo y Nro. Cuotas | H14: =+Hoja1!C10 -> 12 | I14: =H14 -> 12 | L14: Factor Aplicado para la cuota - Ajustada | Q14: =1/((1-((1+$Q$13)^(-1*$H$14)))/$Q$13) -> 0.09045035832 | R14: Factor de cuota (ok)
C15: Días de Gracia | H15: =+Hoja1!C12 -> 0 | L15: Interes de Gracia (Se considera la TEA Normal) | Q15: =IF(H15>0,ROUND(H6*(((1+H8/100)^(ABS(H15)/Q9))-1),4),ROUND(H6*(((1+H8/100)^(ABS(H15)/Q9))-1),4) * -1) -> 0 | R15: Ok
C16: Mes de No Pago 1 | H16: 0 | L16: Saldo Interes +/- Interes Gracia | Q16: =IF(H7 + Q15>0,H7+ Q15,0) -> 0
C17: Mes de No Pago 2 | H17: 0 | L17: Seg Desg de Gracia | Q17: =IF(H15>0,ROUNDDOWN(H5*H9/30*H15,2),ROUNDDOWN(H5*H9/30*H15,2)*0) -> 0
C18: Mes Cuota Doble 1 | H18: =+IF(Hoja1!C14="No",0,IF(Hoja1!C14="Julio",7,12)) -> 0 | L18: TCEA | Q18: =+$AH$31 -> 0.1629987197
C19: Mes Cuota Doble 2 | H19: =+IF(Hoja1!C15="No",0,IF(Hoja1!C15="Julio",7,12)) -> 0
O21: Suavización | U21: Validador Cuota Doble
O22: Ultimo saldo de Principal | Q22: =VLOOKUP(I14,$F$32:$W$272,18,FALSE) -> -0.01 | U22: Cuota Simple | W22: =+VLOOKUP("",$D$33:$V$272,19,0) -> 723.9191667
F23: Valor de cuota por dias de gracia | J23: =+ROUND(IF(OR(H16+H17>0,H18+H19>0),Q16/VLOOKUP(H14,'Calculos PLD'!$A$3:$G$386,7,FALSE),Simulador!Q16*Simulador!$Q$14),2) -> 0 | K23: =Q16/SUM(AN33:INDIRECT(CONCATENATE("AE",32+I14-1))) -> 0 | O23: Numero de Dias | Q23: =Q8-Q6 -> 365 | U23: Cuota Doble | W23: =+IFERROR(VLOOKUP("D",$D$33:$V$272,19,0)," ") -> 
F24: Valor de cuota por capital | J24: =ROUND(IF(OR(H16 + H17 > 0,H18 + H19>0), ROUNDUP(H6/VLOOKUP(H14,'Calculos PLD'!$A$3:$G$386,7,FALSE),2),H6*$Q$14),2) -> 723.6 | L24: sin desgravamen | O24: Valor de Cuota Nivelada | Q24: =ROUND(+Q22/ROUND(1*(((1+H10/100)^(Q23/Q9))-1),4),2) -> -0.06 | U24: Factor | W24: =+IFERROR(W23/W22," ") -> 
F25: Valor de Seg Desg por dia de gracia | J25: =$Q$17/(($I$14+COUNTIF(D33:INDIRECT(CONCATENATE("C",32+I14-1)),"D"))*(1/((1+0)^($Q$10/$Q$9)))) -> 0
F26: Seguro de Desgravamen (FPF) | J26: =$H$5*$H$9 -> 0 | O26: Factor Ajuste | Q26: =Q24*Q14 -> -0.005427021499 | S26: Se copia LO DEL COSTADO a partir de la primera corrida | U26: Calce de Capital
F27: Comision por Env.Inf | J27: 0 | O27: Exceso de Int + Gracia | Q27: =SUM(X33:X152) -> 0 | R27: =ROUND(IF(OR(H16+ H17> 0,H18 + H19>0),ROUNDUP($Q$27/VLOOKUP(H14,'Calculos PLD'!$A$3:$G$386,7,FALSE),2),$Q$27*$Q$14),2) -> 0 | S27: 0 | U27: Suma Capital (K) | W27: =+SUM($K$33:$K$272) -> 8000
F28: Seguro Todo Riesgo | J28: =ROUND($H$12*$H$13,2) -> 0 | O28: Factor Ajuste 2 | Q28: =+Q22/H14 -> -0.0008333333333 | U28: Validador | W28: =+$H$5-W27 -> 0 | AA28: <- El valor tiene que ser cercano a cero.
F29: Cuota | J29: =J23+J24+J26+J27+ J28+J25 -> 723.6 | O29: Digite Factor de Ajuste Anterior mas El Actual | Q29: 0.3191666667 | R29: Se actualiza en cada simulación (Validar que la celda W28 sea cero) | T29: =$W$272 -> 
L31: =+SUM(L33:L272) -> 687.03 | M31: 0 | N31: 687.03 | O31: 8687.03 | P31: 0 | Q31: 0 | R31: 0 | S31: 0 | T31: =+SUM(T33:T272) -> 0 | U31: 0 | V31: =+SUM(V33:V272) -> 8687.03 | AG31: TIR | AH31: =(1+XIRR(AH32:AH272,AG32:AG272))^(360/365)-1 -> 0.1629987197 | AM31: Minicronograma de Gracia
C32: Fecha Vcto. | D32: Marca | E32: Nro. Cuota (De acuerdo a Plazo) | F32: Nro. Cuota | G32: Periodo Base | H32: Tasa | I32: Nro. Dias | J32: Principal* | K32: Capital | L32: Interes | M32: Interes de Gracia | N32: Interes Total | O32: Valor Cuota (variable) | P32: Comision por Env. Inf | Q32: Tasa de Seguro de Desgravamen* | R32: Importe de Gracia Desgravamen | S32: Importe Desgravamen por No Pago | T32: Seg. Desgravamen Total | U32: Seguro Todo Riesgo | V32: Cuota | W32: Saldo Principal | X32: Exceso | Y32: Nuevo Interes I | Z32: Nuevo Desgravamen I (no se utiliza) | AA32: Nuevo Interes (SF2INT) replica columna L | AB32: Nuevo Desgravamen (SF2GRV) replica columna Q | AC32: Desgravamen Gracia replica columna R | AD32: Desgravamen No Pago S | AE32: Total Cuota (SF2PAG) igual a columna V | AG32: =+Q5 -> 2025-03-25 | AH32: =-H5 -> -8000 | AJ32: VALIDADORES | AM32: Dias Transcurridos Acumulados | AN32: Factor Simple Actualizacion | AO32: Principal | AP32: Capital | AQ32: Interes | AR32: Cuota Gracia | AS32: Saldo Deuda
A33: 1 | B33: =IF(A33="","",IF(A33<=$H$22,0,1)) -> 1 | C33: =IF(OR(MONTH(EDATE($Q$6,E33))=$H$16,MONTH(EDATE($Q$6,E33))=$H$17),IF(ABS($H$17-$H$16)=1,EDATE($Q$6,E33+2),EDATE($Q$6,E33+1)),EDATE($Q$6,E33)) -> 2025-04-25 | D33: =IF(B33="","",IF(OR(MONTH(C33)=$H$18,MONTH(C33)=$H$19),"D","")) ->  | E33: =IF(OR(MONTH(Q7)=H16, MONTH(Q7)=H17),IF(ABS(H17-H16)=1,3,2),1) -> 1 | F33: =1 -> 1 | G33: =$Q$9 -> 360 | H33: =IF(B33="","",$H$10) -> 16.3 | I33: =C33-Q6 -> 31 | J33: =H6 -> 8000 | K33: =IF(B33="","",IF((IF(ISERROR(MATCH(MONTH(C33),$H$18:$H$19,0))=FALSE,$J$24 + $Q$29,0) + $J$24+$Q$29+$S$27)-L33<0,0.01,IF(ISERROR(MATCH(MONTH(C33),$H$18:$H$19,0))=FALSE,$J$24 + $Q$29,0)+ ($J$24+$Q$29+$S$27)-L33)- R33 -S33-Q33) -> 619.2191667 | L33: =IF(B33="","",IF($J$24+$Q$29<ROUND(ROUND(J33*(((1+(H33/100))^(I33/G33))-1),4),2),$J$24+$Q$29 +-0.01,IF(ROUND(ROUND(J33*(((1+(H33/100))^(I33/G33))-1),4),2)>$J$24,$J$24+ -0.01,ROUND(ROUND(J33*(((1+(H33/100))^(I33/G33))-1),4),2)))) -> 104.7 | M33: =IF(B33="","",IF(ISERROR(MATCH(MONTH(C33),$H$18:$H$19,0))=FALSE,$J$23,0) + $J$23) -> 0 | N33: =IF(B33="","",L33+M33) -> 104.7 | O33: =IF(B33="","",K33+N33) -> 723.9191667 | P33: =IF(B33="","",$J$27) -> 0 | Q33: =IF(B33="","",ROUND($H$9*J33,2)) -> 0 | R33: =IF(B33="","",(E33-F33)*ROUNDDOWN($H$5*$H$9/30*30,2) + ROUNDDOWN($H$5*$H$9/30*H15,2)) -> 0 | S33: =IF(B33="","",IF(E33-0>1,ROUNDDOWN($J33*$H$9/30*(DATE(YEAR($C33),MONTH($C33)-1,DAY($C33))-C32),2),0)) -> 0 | T33: =IF(B33="","",Q33+R33+S33) -> 0 | U33: =IF(B33="","",$J$28) -> 0 | V33: =IF(B33="","",O33+P33+Q33+R33+S33+U33) -> 723.9191667 | W33: =IF(B33="","",(ROUND(J33-K33,2))) -> 7380.78 | X33: =IF(B33="","",IF(ROUND(ROUND(J33*(((1+(H33/100))^(I33/G33))-1),4),2) - $J$24<0,0,ROUND(ROUND(J33*(((1+(H33/100))^(I33/G33))-1),4),2) - $J$24)) -> 0 | Z33: =SUM(K33:M33) -> 723.9191667 | AA33: =+L33 -> 104.7 | AB33: =+Q33 -> 0 | AC33: 0 | AD33: 0 | AE33: =IFERROR(AA33+K33 + P33 + U33+AB33 + M33 + AC33 + AD33,"") -> 723.9191667 | AF33: =IFERROR(IF(D33="D",$J$24*2,$J$24)+Q33,0) -> 723.6 | AG33: =+IF(C33="",0,C33) -> 2025-04-25 | AH33: =+IF(AE33="",0,AE33) -> 723.9191667 | AJ33: =+IFERROR(AE33-V33,0) -> 0 | AK33: =+IFERROR(AA33-L33,0) -> 0 | AM33: =I33 -> 31 | AN33: =(1/((1+($J$8/100))^(AM33/$Q$9))*1) * IF(D33="D",2,1) -> 1 | AO33: =Q16 -> 0 | AP33: =AR33-AQ33 -> 0 | AQ33: =(((1+($J$8/100))^((K33)/$Q$9))-1)*AO33 -> 0 | AR33: =IF(D33="D",$K$23,0)+ $K$23 -> 0 | AS33: =AO33-AP33 -> 0
A34: =+IF(A33>=$H$14,"",A33+1) -> 2 | B34: =IF(A34="","",IF(A34<=$H$22,0,1)) -> 1 | C34: =IF(B34="","",IF(OR(MONTH(EDATE($Q$6,E34))=$H$16,MONTH(EDATE($Q$6,E34))=$H$17),IF(ABS($H$17-$H$16)=1,EDATE($Q$6,E34+2),EDATE($Q$6,E34+1)),EDATE($Q$6,E34))) -> 2025-05-25 | E34: =+IF(B34="","",IF(OR(MONTH(DATE(YEAR(C33)+0.0833333333333333,MONTH(C33)+1,DAY(C33)))=$H$16,MONTH(DATE(YEAR(C33)+0.5,MONTH(C33)+1,DAY(C33)))=$H$17),IF(ABS($H$17-$H$16)=1,E33+1,E33+2),E33+1)) -> 2 | F34: =+IF(B34="","",F33+1) -> 2 | G34: =IF(B34="","",$Q$9) -> 360 | H34: =IF(B34="","",$H$10) -> 16.3 | I34: =IF(B34="","",C34-C33) -> 30 | J34: =IF(B34="","",W33) -> 7380.78 | K34: 630.4591667 | L34: 93.46 | M34: 0 | N34: 93.46 | O34: 723.9191667 | P34: 0 | Q34: =IF(B34="","",ROUND($H$9*J34/30*$I34,2)-S34) -> 0 | S34: =IF(B34="","",IF(E34-E33>1,ROUNDDOWN($J34*$H$9/30*(DATE(YEAR($C34),MONTH($C34)-1,DAY($C34))-C33),2),0)) -> 0 | T34: 0 | U34: 0 | V34: =IF(B34="","",O34+P34+Q34+R34+S34+U34) -> 723.9191667 | W34: 6750.32 | X34: 0 | Z34: 723.9191667 | AA34: =+L34 -> 93.46 | AB34: 0 | AC34: 0 | AD34: 0 | AE34: 723.9191667 | AF34: =IFERROR(IF(D34="D",$J$24*2,$J$24)+Q34,0) -> 723.6 | AG34: 2025-05-25 | AH34: 723.9191667 | AJ34: =+IFERROR(AE34-V34,0) -> 0 | AK34: =+IFERROR(AA34-L34,0) -> 0 | AM34: =I34 + AM33 -> 61 | AN34: 1 | AO34: =AS33 -> 0 | AP34: =AR34-AQ34 -> 0 | AQ34: 0 | AR34: 0 | AS34: =AO34-AP34 -> 0
A35: =+IF(A34>=$H$14,"",A34+1) -> 3 | B35: 1 | C35: 2025-06-25 | E35: =+IF(B35="","",IF(OR(MONTH(DATE(YEAR(C34)+0.0833333333333333,MONTH(C34)+1,DAY(C34)))=$H$16,MONTH(DATE(YEAR(C34)+0.5,MONTH(C34)+1,DAY(C34)))=$H$17),IF(ABS($H$17-$H$16)=1,E34+1,E34+2),E34+1)) -> 3 | F35: =+IF(B35="","",F34+1) -> 3 | G35: =IF(B35="","",$Q$9) -> 360 | H35: 16.3 | I35: =IF(B35="","",C35-C34) -> 31 | J35: =IF(B35="","",W34) -> 6750.32 | K35: 635.5691667 | L35: 88.35 | M35: 0 | N35: 88.35 | O35: 723.9191667 | P35: 0 | Q35: =IF(B35="","",ROUND($H$9*J35/30*$I35,2)-S35) -> 0 | S35: 0 | T35: 0 | U35: 0 | V35: 723.9191667 | W35: 6114.75 | X35: 0 | Z35: 723.9191667 | AA35: 88.35 | AB35: 0 | AC35: 0 | AD35: 0 | AE35: 723.9191667 | AF35: 723.6 | AG35: 2025-06-25 | AH35: 723.9191667 | AJ35: 0 | AK35: 0 | AM35: 92 | AN35: 1 | AO35: =AS34 -> 0 | AP35: 0 | AQ35: 0 | AR35: 0 | AS35: 0
A36: 4 | B36: 1 | C36: 2025-07-25 | E36: 4 | F36: 4 | G36: 360 | H36: 16.3 | I36: 30 | J36: 6114.75 | K36: 646.4891667 | L36: 77.43 | M36: 0 | N36: 77.43 | O36: 723.9191667 | P36: 0 | Q36: 0 | S36: 0 | T36: 0 | U36: 0 | V36: 723.9191667 | W36: 5468.26 | X36: 0 | Z36: 723.9191667 | AA36: 77.43 | AB36: 0 | AC36: 0 | AD36: 0 | AE36: 723.9191667 | AF36: 723.6 | AG36: 2025-07-25 | AH36: 723.9191667 | AJ36: 0 | AK36: 0 | AM36: 122 | AN36: 1 | AO36: 0 | AP36: 0 | AQ36: 0 | AR36: 0 | AS36: 0
A37: 5 | B37: 1 | C37: 2025-08-25 | E37: 5 | F37: 5 | G37: 360 | H37: 16.3 | I37: 31 | J37: 5468.26 | K37: 652.3491667 | L37: 71.57 | M37: 0 | N37: 71.57 | O37: 723.9191667 | P37: 0 | Q37: 0 | S37: 0 | T37: 0 | U37: 0 | V37: 723.9191667 | W37: 4815.91 | X37: 0 | Z37: 723.9191667 | AA37: 71.57 | AB37: 0 | AC37: 0 | AD37: 0 | AE37: 723.9191667 | AF37: 723.6 | AG37: 2025-08-25 | AH37: 723.9191667 | AJ37: 0 | AK37: 0 | AM37: 153 | AN37: 1 | AO37: 0 | AP37: 0 | AQ37: 0 | AR37: 0 | AS37: 0
A38: 6 | B38: 1 | C38: 2025-09-25 | E38: 6 | F38: 6 | G38: 360 | H38: 16.3 | I38: 31 | J38: 4815.91 | K38: 660.8891667 | L38: 63.03 | M38: 0 | N38: 63.03 | O38: 723.9191667 | P38: 0 | Q38: 0 | S38: 0 | T38: 0 | U38: 0 | V38: 723.9191667 | W38: 4155.02 | X38: 0 | Z38: 723.9191667 | AA38: 63.03 | AB38: 0 | AC38: 0 | AD38: 0 | AE38: 723.9191667 | AF38: 723.6 | AG38: 2025-09-25 | AH38: 723.9191667 | AJ38: 0 | AK38: 0 | AM38: 184 | AN38: 1 | AO38: 0 | AP38: 0 | AQ38: 0 | AR38: 0 | AS38: 0
A39: 7 | B39: 1 | C39: 2025-10-25 | E39: 7 | F39: 7 | G39: 360 | H39: 16.3 | I39: 30 | J39: 4155.02 | K39: 671.2991667 | L39: 52.62 | M39: 0 | N39: 52.62 | O39: 723.9191667 | P39: 0 | Q39: 0 | S39: 0 | T39: 0 | U39: 0 | V39: 723.9191667 | W39: 3483.72 | X39: 0 | Z39: 723.9191667 | AA39: 52.62 | AB39: 0 | AC39: 0 | AD39: 0 | AE39: 723.9191667 | AF39: 723.6 | AG39: 2025-10-25 | AH39: 723.9191667 | AJ39: 0 | AK39: 0 | AM39: 214 | AN39: 1 | AO39: 0 | AP39: 0 | AQ39: 0 | AR39: 0 | AS39: 0
A40: 8 | B40: 1 | C40: 2025-11-25 | E40: 8 | F40: 8 | G40: 360 | H40: 16.3 | I40: 31 | J40: 3483.72 | K40: 678.3291667 | L40: 45.59 | M40: 0 | N40: 45.59 | O40: 723.9191667 | P40: 0 | Q40: 0 | S40: 0 | T40: 0 | U40: 0 | V40: 723.9191667 | W40: 2805.39 | X40: 0 | Z40: 723.9191667 | AA40: 45.59 | AB40: 0 | AC40: 0 | AD40: 0 | AE40: 723.9191667 | AF40: 723.6 | AG40: 2025-11-25 | AH40: 723.9191667 | AJ40: 0 | AK40: 0 | AM40: 245 | AN40: 1 | AO40: 0 | AP40: 0 | AQ40: 0 | AR40: 0 | AS40: 0
A41: 9 | B41: 1 | C41: 2025-12-25 | E41: 9 | F41: 9 | G41: 360 | H41: 16.3 | I41: 30 | J41: 2805.39 | K41: 688.3991667 | L41: 35.52 | M41: 0 | N41: 35.52 | O41: 723.9191667 | P41: 0 | Q41: 0 | S41: 0 | T41: 0 | U41: 0 | V41: 723.9191667 | W41: 2116.99 | X41: 0 | Z41: 723.9191667 | AA41: 35.52 | AB41: 0 | AC41: 0 | AD41: 0 | AE41: 723.9191667 | AF41: 723.6 | AG41: 2025-12-25 | AH41: 723.9191667 | AJ41: 0 | AK41: 0 | AM41: 275 | AN41: 1 | AO41: 0 | AP41: 0 | AQ41: 0 | AR41: 0 | AS41: 0
A42: 10 | B42: 1 | C42: 2026-01-25 | E42: 10 | F42: 10 | G42: 360 | H42: 16.3 | I42: 31 | J42: 2116.99 | K42: 696.2091667 | L42: 27.71 | M42: 0 | N42: 27.71 | O42: 723.9191667 | P42: 0 | Q42: 0 | S42: 0 | T42: 0 | U42: 0 | V42: 723.9191667 | W42: 1420.78 | X42: 0 | Z42: 723.9191667 | AA42: 27.71 | AB42: 0 | AC42: 0 | AD42: 0 | AE42: 723.9191667 | AF42: 723.6 | AG42: 2026-01-25 | AH42: 723.9191667 | AJ42: 0 | AK42: 0 | AM42: 306 | AN42: 1 | AO42: 0 | AP42: 0 | AQ42: 0 | AR42: 0 | AS42: 0
A43: 11 | B43: 1 | C43: 2026-02-25 | E43: 11 | F43: 11 | G43: 360 | H43: 16.3 | I43: 31 | J43: 1420.78 | K43: 705.3191667 | L43: 18.6 | M43: 0 | N43: 18.6 | O43: 723.9191667 | P43: 0 | Q43: 0 | S43: 0 | T43: 0 | U43: 0 | V43: 723.9191667 | W43: 715.46 | X43: 0 | Z43: 723.9191667 | AA43: 18.6 | AB43: 0 | AC43: 0 | AD43: 0 | AE43: 723.9191667 | AF43: 723.6 | AG43: 2026-02-25 | AH43: 723.9191667 | AJ43: 0 | AK43: 0 | AM43: 337 | AN43: 1 | AO43: 0 | AP43: 0 | AQ43: 0 | AR43: 0 | AS43: 0
A44: 12 | B44: 1 | C44: 2026-03-25 | E44: 12 | F44: 12 | G44: 360 | H44: 16.3 | I44: 28 | J44: 715.46 | K44: 715.4691667 | L44: 8.45 | M44: 0 | N44: 8.45 | O44: 723.9191667 | P44: 0 | Q44: 0 | S44: 0 | T44: 0 | U44: 0 | V44: 723.9191667 | W44: -0.01 | X44: 0 | Z44: 723.9191667 | AA44: 8.45 | AB44: 0 | AC44: 0 | AD44: 0 | AE44: 723.9191667 | AF44: 723.6 | AG44: 2026-03-25 | AH44: 723.9191667 | AJ44: 0 | AK44: 0 | AM44: 365 | AN44: 1 | AO44: 0 | AP44: 0 | AQ44: 0 | AR44: 0 | AS44: 0
Z45: 0 | AC45: 0 | AF45: 0 | AG45: =+IF(C45="",0,C45) -> 00:00:00 | AH45: =+IF(AE45="",0,AE45) -> 0 | AJ45: 0 | AK45: 0 | AO45: 0 | AR45: 0
Z46: 0 | AC46: 0 | AF46: 0 | AG46: =+IF(C46="",0,C46) -> 00:00:00 | AH46: =+IF(AE46="",0,AE46) -> 0 | AJ46: 0 | AK46: 0 | AR46: 0
Z47: 0 | AC47: 0 | AF47: 0 | AG47: 00:00:00 | AH47: 0 | AJ47: 0 | AK47: 0 | AR47: 0
Z48: 0 | AC48: 0 | AF48: 0 | AG48: 00:00:00 | AH48: 0 | AJ48: 0 | AK48: 0 | AR48: 0
Z49: 0 | AC49: 0 | AF49: 0 | AG49: 00:00:00 | AH49: 0 | AJ49: 0 | AK49: 0 | AR49: 0
Z50: 0 | AC50: 0 | AF50: 0 | AG50: 00:00:00 | AH50: 0 | AJ50: 0 | AK50: 0 | AR50: 0
Z51: 0 | AC51: 0 | AF51: 0 | AG51: 00:00:00 | AH51: 0 | AJ51: 0 | AK51: 0 | AR51: 0
Z52: 0 | AC52: 0 | AF52: 0 | AG52: 00:00:00 | AH52: 0 | AJ52: 0 | AK52: 0 | AR52: 0
Z53: 0 | AC53: 0 | AF53: 0 | AG53: 00:00:00 | AH53: 0 | AJ53: 0 | AK53: 0 | AR53: 0
Z54: 0 | AC54: 0 | AF54: 0 | AG54: 00:00:00 | AH54: 0 | AJ54: 0 | AK54: 0 | AR54: 0
Z55: 0 | AC55: 0 | AF55: 0 | AG55: 00:00:00 | AH55: 0 | AJ55: 0 | AK55: 0 | AR55: 0
Z56: 0 | AC56: 0 | AF56: 0 | AG56: 00:00:00 | AH56: 0 | AJ56: 0 | AK56: 0 | AR56: 0
Z57: 0 | AC57: 0 | AF57: 0 | AG57: 00:00:00 | AH57: 0 | AJ57: 0 | AK57: 0 | AR57: 0
Z58: 0 | AC58: 0 | AF58: 0 | AG58: 00:00:00 | AH58: 0 | AJ58: 0 | AK58: 0 | AR58: 0
Z59: 0 | AC59: 0 | AF59: 0 | AG59: 00:00:00 | AH59: 0 | AJ59: 0 | AK59: 0 | AR59: 0
Z60: 0 | AC60: 0 | AF60: 0 | AG60: 00:00:00 | AH60: 0 | AJ60: 0 | AK60: 0 | AR60: 0
Z61: 0 | AC61: 0 | AF61: 0 | AG61: 00:00:00 | AH61: 0 | AJ61: 0 | AK61: 0 | AR61: 0
Z62: 0 | AC62: 0 | AF62: 0 | AG62: 00:00:00 | AH62: 0 | AJ62: 0 | AK62: 0 | AR62: 0
Z63: 0 | AC63: 0 | AF63: 0 | AG63: 00:00:00 | AH63: 0 | AJ63: 0 | AK63: 0 | AR63: 0
Z64: 0 | AC64: 0 | AF64: 0 | AG64: 00:00:00 | AH64: 0 | AJ64: 0 | AK64: 0 | AR64: 0
Z65: 0 | AC65: 0 | AF65: 0 | AG65: 00:00:00 | AH65: 0 | AJ65: 0 | AK65: 0 | AR65: 0
Z66: 0 | AC66: 0 | AF66: 0 | AG66: 00:00:00 | AH66: 0 | AJ66: 0 | AK66: 0 | AR66: 0
Z67: 0 | AC67: 0 | AF67: 0 | AG67: 00:00:00 | AH67: 0 | AJ67: 0 | AK67: 0 | AR67: 0
Z68: 0 | AC68: 0 | AF68: 0 | AG68: 00:00:00 | AH68: 0 | AJ68: 0 | AK68: 0 | AR68: 0
Z69: 0 | AC69: 0 | AF69: 0 | AG69: 00:00:00 | AH69: 0 | AJ69: 0 | AK69: 0 | AR69: 0
Z70: 0 | AC70: 0 | AF70: 0 | AG70: 00:00:00 | AH70: 0 | AJ70: 0 | AK70: 0 | AR70: 0
Z71: 0 | AC71: 0 | AF71: 0 | AG71: 00:00:00 | AH71: 0 | AJ71: 0 | AK71: 0 | AR71: 0
Z72: 0 | AC72: 0 | AF72: 0 | AG72: 00:00:00 | AH72: 0 | AJ72: 0 | AK72: 0 | AR72: 0
Z73: 0 | AC73: 0 | AF73: 0 | AG73: 00:00:00 | AH73: 0 | AJ73: 0 | AK73: 0 | AR73: 0
Z74: 0 | AC74: 0 | AF74: 0 | AG74: 00:00:00 | AH74: 0 | AJ74: 0 | AK74: 0 | AR74: 0
Z75: 0 | AC75: 0 | AF75: 0 | AG75: 00:00:00 | AH75: 0 | AJ75: 0 | AK75: 0 | AR75: 0
Z76: 0 | AC76: 0 | AF76: 0 | AG76: 00:00:00 | AH76: 0 | AJ76: 0 | AK76: 0 | AR76: 0
Z77: 0 | AC77: 0 | AF77: 0 | AG77: 00:00:00 | AH77: 0 | AJ77: 0 | AK77: 0 | AR77: 0
Z78: 0 | AC78: 0 | AF78: 0 | AG78: 00:00:00 | AH78: 0 | AJ78: 0 | AK78: 0 | AR78: 0
Z79: 0 | AC79: 0 | AF79: 0 | AG79: 00:00:00 | AH79: 0 | AJ79: 0 | AK79: 0 | AR79: 0
Z80: 0 | AC80: 0 | AF80: 0 | AG80: 00:00:00 | AH80: 0 | AJ80: 0 | AK80: 0 | AR80: 0
Z81: 0 | AC81: 0 | AF81: 0 | AG81: 00:00:00 | AH81: 0 | AJ81: 0 | AK81: 0 | AR81: 0
Z82: 0 | AC82: 0 | AF82: 0 | AG82: 00:00:00 | AH82: 0 | AJ82: 0 | AK82: 0 | AR82: 0
Z83: 0 | AC83: 0 | AF83: 0 | AG83: 00:00:00 | AH83: 0 | AJ83: 0 | AK83: 0 | AR83: 0
Z84: 0 | AC84: 0 | AF84: 0 | AG84: 00:00:00 | AH84: 0 | AJ84: 0 | AK84: 0 | AR84: 0
Z85: 0 | AC85: 0 | AF85: 0 | AG85: 00:00:00 | AH85: 0 | AJ85: 0 | AK85: 0 | AR85: 0
Z86: 0 | AC86: 0 | AF86: 0 | AG86: 00:00:00 | AH86: 0 | AJ86: 0 | AK86: 0 | AR86: 0
Z87: 0 | AC87: 0 | AF87: 0 | AG87: 00:00:00 | AH87: 0 | AJ87: 0 | AK87: 0 | AR87: 0
Z88: 0 | AC88: 0 | AF88: 0 | AG88: 00:00:00 | AH88: 0 | AJ88: 0 | AK88: 0 | AR88: 0
Z89: 0 | AC89: 0 | AF89: 0 | AG89: 00:00:00 | AH89: 0 | AJ89: 0 | AK89: 0 | AR89: 0
Z90: 0 | AC90: 0 | AF90: 0 | AG90: 00:00:00 | AH90: 0 | AJ90: 0 | AK90: 0 | AR90: 0
Z91: 0 | AC91: 0 | AF91: 0 | AG91: 00:00:00 | AH91: 0 | AJ91: 0 | AK91: 0 | AR91: 0
Z92: 0 | AC92: 0 | AF92: 0 | AG92: 00:00:00 | AH92: 0 | AJ92: 0 | AK92: 0 | AR92: 0
Z93: 0 | AC93: 0 | AF93: 0 | AG93: 00:00:00 | AH93: 0 | AJ93: 0 | AK93: 0 | AR93: 0
Z94: 0 | AC94: 0 | AF94: 0 | AG94: 00:00:00 | AH94: 0 | AJ94: 0 | AK94: 0 | AR94: 0
Z95: 0 | AC95: 0 | AF95: 0 | AG95: 00:00:00 | AH95: 0 | AJ95: 0 | AK95: 0 | AR95: 0
Z96: 0 | AC96: 0 | AF96: 0 | AG96: 00:00:00 | AH96: 0 | AJ96: 0 | AK96: 0 | AR96: 0
D97: =IF(B97="","",IF(OR(MONTH(C97)=$H$18,MONTH(C97)=$H$19),"D","")) ->  | K97: =IF(B97="","",IF((IF(ISERROR(MATCH(MONTH(C97),$H$18:$H$19,0))=FALSE,$J$24 + $Q$29,0) + $J$24+$Q$29+$S$27)-L97<0,0.01,IF(ISERROR(MATCH(MONTH(C97),$H$18:$H$19,0))=FALSE,$J$24 + $Q$29,0)+ ($J$24+$Q$29+$S$27)-L97)- R97 -S97-Q97) ->  | L97: =IF(B97="","",IF($J$24+$Q$29<ROUND(ROUND(J97*(((1+(H97/100))^(I97/G97))-1),4),2),$J$24+$Q$29 +-0.01,IF(ROUND(ROUND(J97*(((1+(H97/100))^(I97/G97))-1),4),2)>$J$24,$J$24+ -0.01,ROUND(ROUND(J97*(((1+(H97/100))^(I97/G97))-1),4),2)))) ->  | M97: =IF(B97="","",IF(ISERROR(MATCH(MONTH(C97),$H$18:$H$19,0))=FALSE,$J$23,0) + $J$23) ->  | N97: =IF(B97="","",L97+M97) ->  | O97: =IF(B97="","",K97+N97) ->  | P97: =IF(B97="","",$J$27) ->  | T97: =IF(B97="","",Q97+R97+S97) ->  | U97: =IF(B97="","",$J$28) ->  | W97: =IF(B97="","",(ROUND(J97-K97,2))) ->  | X97: =IF(B97="","",IF(ROUND(ROUND(J97*(((1+(H97/100))^(I97/G97))-1),4),2) - $J$24<0,0,ROUND(ROUND(J97*(((1+(H97/100))^(I97/G97))-1),4),2) - $J$24)) ->  | Z97: =SUM(K97:M97) -> 0 | AB97: =+Q97 ->  | AC97: 0 | AE97: =IFERROR(AA97+K97 + P97 + U97+AB97 + M97 + AC97 + AD97,"") ->  | AF97: 0 | AG97: 00:00:00 | AH97: 0 | AJ97: 0 | AK97: 0 | AN97: =(1/((1+($J$8/100))^(AM97/$Q$9))*1) * IF(D97="D",2,1) ->  | AQ97: =(((1+($J$8/100))^((K97)/$Q$9))-1)*AO97 ->  | AR97: =IF(D97="D",$K$23,0)+ $K$23 -> 0
B98: =IF(A98="","",IF(A98<=$H$22,0,1)) ->  | C98: =IF(B98="","",IF(OR(MONTH(EDATE($Q$6,E98))=$H$16,MONTH(EDATE($Q$6,E98))=$H$17),IF(ABS($H$17-$H$16)=1,EDATE($Q$6,E98+2),EDATE($Q$6,E98+1)),EDATE($Q$6,E98))) ->  | H98: =IF(B98="","",$H$10) ->  | S98: =IF(B98="","",IF(E98-E97>1,ROUNDDOWN($J98*$H$9/30*(DATE(YEAR($C98),MONTH($C98)-1,DAY($C98))-C97),2),0)) ->  | V98: =IF(B98="","",O98+P98+Q98+R98+S98+U98) ->  | Z98: 0 | AA98: =+L98 ->  | AC98: 0 | AF98: =IFERROR(IF(D98="D",$J$24*2,$J$24)+Q98,0) -> 0 | AG98: 00:00:00 | AH98: 0 | AJ98: =+IFERROR(AE98-V98,0) -> 0 | AK98: =+IFERROR(AA98-L98,0) -> 0 | AM98: =I98 + AM97 ->  | AP98: =AR98-AQ98 ->  | AR98: 0 | AS98: =AO98-AP98 -> 
A99: =+IF(A98>=$H$14,"",A98+1) ->  | E99: =+IF(B99="","",IF(OR(MONTH(DATE(YEAR(C98)+0.0833333333333333,MONTH(C98)+1,DAY(C98)))=$H$16,MONTH(DATE(YEAR(C98)+0.5,MONTH(C98)+1,DAY(C98)))=$H$17),IF(ABS($H$17-$H$16)=1,E98+1,E98+2),E98+1)) ->  | F99: =+IF(B99="","",F98+1) ->  | G99: =IF(B99="","",$Q$9) ->  | I99: =IF(B99="","",C99-C98) ->  | J99: =IF(B99="","",W98) ->  | Q99: =IF(B99="","",ROUND($H$9*J99/30*$I99,2)-S99) ->  | Z99: 0 | AC99: 0 | AF99: 0 | AG99: 00:00:00 | AH99: 0 | AJ99: 0 | AK99: 0 | AO99: =AS98 ->  | AR99: 0
Z100: 0 | AC100: 0 | AF100: 0 | AG100: 00:00:00 | AH100: 0 | AJ100: 0 | AK100: 0 | AR100: 0
Z101: 0 | AC101: 0 | AF101: 0 | AG101: 00:00:00 | AH101: 0 | AJ101: 0 | AK101: 0 | AR101: 0
Z102: 0 | AC102: 0 | AF102: 0 | AG102: 00:00:00 | AH102: 0 | AJ102: 0 | AK102: 0 | AR102: 0
Z103: 0 | AC103: 0 | AF103: 0 | AG103: 00:00:00 | AH103: 0 | AJ103: 0 | AK103: 0 | AR103: 0
Z104: 0 | AC104: 0 | AF104: 0 | AG104: 00:00:00 | AH104: 0 | AJ104: 0 | AK104: 0 | AR104: 0
Z105: 0 | AC105: 0 | AF105: 0 | AG105: 00:00:00 | AH105: 0 | AJ105: 0 | AK105: 0 | AR105: 0
Z106: 0 | AC106: 0 | AF106: 0 | AG106: 00:00:00 | AH106: 0 | AJ106: 0 | AK106: 0 | AR106: 0
Z107: 0 | AC107: 0 | AF107: 0 | AG107: 00:00:00 | AH107: 0 | AJ107: 0 | AK107: 0 | AR107: 0
Z108: 0 | AC108: 0 | AF108: 0 | AG108: 00:00:00 | AH108: 0 | AJ108: 0 | AK108: 0 | AR108: 0
Z109: 0 | AC109: 0 | AF109: 0 | AG109: 00:00:00 | AH109: 0 | AJ109: 0 | AK109: 0 | AR109: 0
Z110: 0 | AC110: 0 | AF110: 0 | AG110: =+IF(C110="",0,C110) -> 00:00:00 | AH110: =+IF(AE110="",0,AE110) -> 0 | AJ110: 0 | AK110: 0 | AR110: 0
Z111: 0 | AC111: 0 | AF111: 0 | AG111: 00:00:00 | AH111: 0 | AJ111: 0 | AK111: 0 | AR111: 0
Z112: 0 | AC112: 0 | AF112: 0 | AG112: 00:00:00 | AH112: 0 | AJ112: 0 | AK112: 0 | AR112: 0
Z113: 0 | AC113: 0 | AF113: 0 | AG113: 00:00:00 | AH113: 0 | AJ113: 0 | AK113: 0 | AR113: 0
Z114: 0 | AC114: 0 | AF114: 0 | AG114: 00:00:00 | AH114: 0 | AJ114: 0 | AK114: 0 | AR114: 0
Z115: 0 | AC115: 0 | AF115: 0 | AG115: 00:00:00 | AH115: 0 | AJ115: 0 | AK115: 0 | AR115: 0
Z116: 0 | AC116: 0 | AF116: 0 | AG116: 00:00:00 | AH116: 0 | AJ116: 0 | AK116: 0 | AR116: 0
Z117: 0 | AC117: 0 | AF117: 0 | AG117: 00:00:00 | AH117: 0 | AJ117: 0 | AK117: 0 | AR117: 0
Z118: 0 | AC118: 0 | AF118: 0 | AG118: 00:00:00 | AH118: 0 | AJ118: 0 | AK118: 0 | AR118: 0
Z119: 0 | AC119: 0 | AF119: 0 | AG119: 00:00:00 | AH119: 0 | AJ119: 0 | AK119: 0 | AR119: 0
Z120: 0 | AC120: 0 | AF120: 0 | AG120: 00:00:00 | AH120: 0 | AJ120: 0 | AK120: 0 | AR120: 0
Z121: 0 | AC121: 0 | AF121: 0 | AG121: 00:00:00 | AH121: 0 | AJ121: 0 | AK121: 0 | AR121: 0
Z122: 0 | AC122: 0 | AF122: 0 | AG122: 00:00:00 | AH122: 0 | AJ122: 0 | AK122: 0 | AR122: 0
Z123: 0 | AC123: 0 | AF123: 0 | AG123: 00:00:00 | AH123: 0 | AJ123: 0 | AK123: 0 | AR123: 0
Z124: 0 | AC124: 0 | AF124: 0 | AG124: 00:00:00 | AH124: 0 | AJ124: 0 | AK124: 0 | AR124: 0
Z125: 0 | AC125: 0 | AF125: 0 | AG125: 00:00:00 | AH125: 0 | AJ125: 0 | AK125: 0 | AR125: 0
Z126: 0 | AC126: 0 | AF126: 0 | AG126: 00:00:00 | AH126: 0 | AJ126: 0 | AK126: 0 | AR126: 0
Z127: 0 | AC127: 0 | AF127: 0 | AG127: 00:00:00 | AH127: 0 | AJ127: 0 | AK127: 0 | AR127: 0
Z128: 0 | AC128: 0 | AF128: 0 | AG128: 00:00:00 | AH128: 0 | AJ128: 0 | AK128: 0 | AR128: 0
Z129: 0 | AC129: 0 | AF129: 0 | AG129: 00:00:00 | AH129: 0 | AJ129: 0 | AK129: 0 | AR129: 0
Z130: 0 | AC130: 0 | AF130: 0 | AG130: 00:00:00 | AH130: 0 | AJ130: 0 | AK130: 0 | AR130: 0
Z131: 0 | AC131: 0 | AF131: 0 | AG131: 00:00:00 | AH131: 0 | AJ131: 0 | AK131: 0 | AR131: 0
Z132: 0 | AC132: 0 | AF132: 0 | AG132: 00:00:00 | AH132: 0 | AJ132: 0 | AK132: 0 | AR132: 0
Z133: 0 | AC133: 0 | AF133: 0 | AG133: 00:00:00 | AH133: 0 | AJ133: 0 | AK133: 0 | AR133: 0
Z134: 0 | AC134: 0 | AF134: 0 | AG134: 00:00:00 | AH134: 0 | AJ134: 0 | AK134: 0 | AR134: 0
Z135: 0 | AC135: 0 | AF135: 0 | AG135: 00:00:00 | AH135: 0 | AJ135: 0 | AK135: 0 | AR135: 0
Z136: 0 | AC136: 0 | AF136: 0 | AG136: 00:00:00 | AH136: 0 | AJ136: 0 | AK136: 0 | AR136: 0
Z137: 0 | AC137: 0 | AF137: 0 | AG137: 00:00:00 | AH137: 0 | AJ137: 0 | AK137: 0 | AR137: 0
Z138: 0 | AC138: 0 | AF138: 0 | AG138: 00:00:00 | AH138: 0 | AJ138: 0 | AK138: 0 | AR138: 0
Z139: 0 | AC139: 0 | AF139: 0 | AG139: 00:00:00 | AH139: 0 | AJ139: 0 | AK139: 0 | AR139: 0
Z140: 0 | AC140: 0 | AF140: 0 | AG140: 00:00:00 | AH140: 0 | AJ140: 0 | AK140: 0 | AR140: 0
Z141: 0 | AC141: 0 | AF141: 0 | AG141: 00:00:00 | AH141: 0 | AJ141: 0 | AK141: 0 | AR141: 0
Z142: 0 | AC142: 0 | AF142: 0 | AG142: 00:00:00 | AH142: 0 | AJ142: 0 | AK142: 0 | AR142: 0
Z143: 0 | AC143: 0 | AF143: 0 | AG143: 00:00:00 | AH143: 0 | AJ143: 0 | AK143: 0 | AR143: 0
Z144: 0 | AC144: 0 | AF144: 0 | AG144: 00:00:00 | AH144: 0 | AJ144: 0 | AK144: 0 | AR144: 0
Z145: 0 | AC145: 0 | AF145: 0 | AG145: 00:00:00 | AH145: 0 | AJ145: 0 | AK145: 0 | AR145: 0
Z146: 0 | AC146: 0 | AF146: 0 | AG146: 00:00:00 | AH146: 0 | AJ146: 0 | AK146: 0 | AR146: 0
Z147: 0 | AC147: 0 | AF147: 0 | AG147: 00:00:00 | AH147: 0 | AJ147: 0 | AK147: 0 | AR147: 0
Z148: 0 | AC148: 0 | AF148: 0 | AG148: 00:00:00 | AH148: 0 | AJ148: 0 | AK148: 0 | AR148: 0
Z149: 0 | AC149: 0 | AF149: 0 | AG149: 00:00:00 | AH149: 0 | AJ149: 0 | AK149: 0 | AR149: 0
Z150: 0 | AC150: 0 | AF150: 0 | AG150: 00:00:00 | AH150: 0 | AJ150: 0 | AK150: 0 | AR150: 0
Z151: 0 | AC151: 0 | AF151: 0 | AG151: 00:00:00 | AH151: 0 | AJ151: 0 | AK151: 0 | AR151: 0
Z152: 0 | AC152: 0 | AF152: 0 | AG152: 00:00:00 | AH152: 0 | AJ152: 0 | AK152: 0 | AR152: 0
Z153: 0 | AC153: 0 | AF153: 0 | AG153: 00:00:00 | AH153: 0 | AJ153: 0 | AK153: 0 | AR153: 0
Z154: 0 | AC154: 0 | AF154: 0 | AG154: 00:00:00 | AH154: 0 | AJ154: 0 | AK154: 0 | AR154: 0
Z155: 0 | AC155: 0 | AF155: 0 | AG155: 00:00:00 | AH155: 0 | AJ155: 0 | AK155: 0 | AR155: 0
Z156: 0 | AC156: 0 | AF156: 0 | AG156: 00:00:00 | AH156: 0 | AJ156: 0 | AK156: 0 | AR156: 0
Z157: 0 | AC157: 0 | AF157: 0 | AG157: 00:00:00 | AH157: 0 | AJ157: 0 | AK157: 0 | AR157: 0
Z158: 0 | AC158: 0 | AF158: 0 | AG158: 00:00:00 | AH158: 0 | AJ158: 0 | AK158: 0 | AR158: 0
Z159: 0 | AC159: 0 | AF159: 0 | AG159: 00:00:00 | AH159: 0 | AJ159: 0 | AK159: 0 | AR159: 0
Z160: 0 | AC160: 0 | AF160: 0 | AG160: 00:00:00 | AH160: 0 | AJ160: 0 | AK160: 0 | AR160: 0
D161: =IF(B161="","",IF(OR(MONTH(C161)=$H$18,MONTH(C161)=$H$19),"D","")) ->  | K161: =IF(B161="","",IF((IF(ISERROR(MATCH(MONTH(C161),$H$18:$H$19,0))=FALSE,$J$24 + $Q$29,0) + $J$24+$Q$29+$S$27)-L161<0,0.01,IF(ISERROR(MATCH(MONTH(C161),$H$18:$H$19,0))=FALSE,$J$24 + $Q$29,0)+ ($J$24+$Q$29+$S$27)-L161)- R161 -S161-Q161) ->  | L161: =IF(B161="","",IF($J$24+$Q$29<ROUND(ROUND(J161*(((1+(H161/100))^(I161/G161))-1),4),2),$J$24+$Q$29 +-0.01,IF(ROUND(ROUND(J161*(((1+(H161/100))^(I161/G161))-1),4),2)>$J$24,$J$24+ -0.01,ROUND(ROUND(J161*(((1+(H161/100))^(I161/G161))-1),4),2)))) ->  | M161: =IF(B161="","",IF(ISERROR(MATCH(MONTH(C161),$H$18:$H$19,0))=FALSE,$J$23,0) + $J$23) ->  | N161: =IF(B161="","",L161+M161) ->  | O161: =IF(B161="","",K161+N161) ->  | P161: =IF(B161="","",$J$27) ->  | T161: =IF(B161="","",Q161+R161+S161) ->  | U161: =IF(B161="","",$J$28) ->  | W161: =IF(B161="","",(ROUND(J161-K161,2))) ->  | X161: =IF(B161="","",IF(ROUND(ROUND(J161*(((1+(H161/100))^(I161/G161))-1),4),2) - $J$24<0,0,ROUND(ROUND(J161*(((1+(H161/100))^(I161/G161))-1),4),2) - $J$24)) ->  | Z161: =SUM(K161:M161) -> 0 | AB161: =+Q161 ->  | AC161: 0 | AE161: =IFERROR(AA161+K161 + P161 + U161+AB161 + M161 + AC161 + AD161,"") ->  | AF161: 0 | AG161: 00:00:00 | AH161: 0 | AJ161: 0 | AK161: 0 | AN161: =(1/((1+($J$8/100))^(AM161/$Q$9))*1) * IF(D161="D",2,1) ->  | AQ161: =(((1+($J$8/100))^((K161)/$Q$9))-1)*AO161 ->  | AR161: =IF(D161="D",$K$23,0)+ $K$23 -> 0
B162: =IF(A162="","",IF(A162<=$H$22,0,1)) ->  | C162: =IF(B162="","",IF(OR(MONTH(EDATE($Q$6,E162))=$H$16,MONTH(EDATE($Q$6,E162))=$H$17),IF(ABS($H$17-$H$16)=1,EDATE($Q$6,E162+2),EDATE($Q$6,E162+1)),EDATE($Q$6,E162))) ->  | H162: =IF(B162="","",$H$10) ->  | S162: =IF(B162="","",IF(E162-E161>1,ROUNDDOWN($J162*$H$9/30*(DATE(YEAR($C162),MONTH($C162)-1,DAY($C162))-C161),2),0)) ->  | V162: =IF(B162="","",O162+P162+Q162+R162+S162+U162) ->  | Z162: 0 | AA162: =+L162 ->  | AC162: 0 | AF162: =IFERROR(IF(D162="D",$J$24*2,$J$24)+Q162,0) -> 0 | AG162: 00:00:00 | AH162: 0 | AJ162: =+IFERROR(AE162-V162,0) -> 0 | AK162: =+IFERROR(AA162-L162,0) -> 0 | AM162: =I162 + AM161 ->  | AP162: =AR162-AQ162 ->  | AR162: 0 | AS162: =AO162-AP162 -> 
A163: =+IF(A162>=$H$14,"",A162+1) ->  | E163: =+IF(B163="","",IF(OR(MONTH(DATE(YEAR(C162)+0.0833333333333333,MONTH(C162)+1,DAY(C162)))=$H$16,MONTH(DATE(YEAR(C162)+0.5,MONTH(C162)+1,DAY(C162)))=$H$17),IF(ABS($H$17-$H$16)=1,E162+1,E162+2),E162+1)) ->  | F163: =+IF(B163="","",F162+1) ->  | G163: =IF(B163="","",$Q$9) ->  | I163: =IF(B163="","",C163-C162) ->  | J163: =IF(B163="","",W162) ->  | Q163: =IF(B163="","",ROUND($H$9*J163/30*$I163,2)-S163) ->  | Z163: 0 | AC163: 0 | AF163: 0 | AG163: 00:00:00 | AH163: 0 | AJ163: 0 | AK163: 0 | AO163: =AS162 ->  | AR163: 0
Z164: 0 | AC164: 0 | AF164: 0 | AG164: 00:00:00 | AH164: 0 | AJ164: 0 | AK164: 0 | AR164: 0
Z165: 0 | AC165: 0 | AF165: 0 | AG165: 00:00:00 | AH165: 0 | AJ165: 0 | AK165: 0 | AR165: 0
Z166: 0 | AC166: 0 | AF166: 0 | AG166: 00:00:00 | AH166: 0 | AJ166: 0 | AK166: 0 | AR166: 0
Z167: 0 | AC167: 0 | AF167: 0 | AG167: 00:00:00 | AH167: 0 | AJ167: 0 | AK167: 0 | AR167: 0
Z168: 0 | AC168: 0 | AF168: 0 | AG168: 00:00:00 | AH168: 0 | AJ168: 0 | AK168: 0 | AR168: 0
Z169: 0 | AC169: 0 | AF169: 0 | AG169: 00:00:00 | AH169: 0 | AJ169: 0 | AK169: 0 | AR169: 0
Z170: 0 | AC170: 0 | AF170: 0 | AG170: 00:00:00 | AH170: 0 | AJ170: 0 | AK170: 0 | AR170: 0
Z171: 0 | AC171: 0 | AF171: 0 | AG171: 00:00:00 | AH171: 0 | AJ171: 0 | AK171: 0 | AR171: 0
Z172: 0 | AC172: 0 | AF172: 0 | AG172: 00:00:00 | AH172: 0 | AJ172: 0 | AK172: 0 | AR172: 0
Z173: 0 | AC173: 0 | AF173: 0 | AG173: 00:00:00 | AH173: 0 | AJ173: 0 | AK173: 0 | AR173: 0
Z174: 0 | AC174: 0 | AF174: 0 | AG174: =+IF(C174="",0,C174) -> 00:00:00 | AH174: =+IF(AE174="",0,AE174) -> 0 | AJ174: 0 | AK174: 0 | AR174: 0
Z175: 0 | AC175: 0 | AF175: 0 | AG175: 00:00:00 | AH175: 0 | AJ175: 0 | AK175: 0 | AR175: 0
Z176: 0 | AC176: 0 | AF176: 0 | AG176: 00:00:00 | AH176: 0 | AJ176: 0 | AK176: 0 | AR176: 0
Z177: 0 | AC177: 0 | AF177: 0 | AG177: 00:00:00 | AH177: 0 | AJ177: 0 | AK177: 0 | AR177: 0
Z178: 0 | AC178: 0 | AF178: 0 | AG178: 00:00:00 | AH178: 0 | AJ178: 0 | AK178: 0 | AR178: 0
Z179: 0 | AC179: 0 | AF179: 0 | AG179: 00:00:00 | AH179: 0 | AJ179: 0 | AK179: 0 | AR179: 0
Z180: 0 | AC180: 0 | AF180: 0 | AG180: 00:00:00 | AH180: 0 | AJ180: 0 | AK180: 0 | AR180: 0
Z181: 0 | AC181: 0 | AF181: 0 | AG181: 00:00:00 | AH181: 0 | AJ181: 0 | AK181: 0 | AR181: 0
Z182: 0 | AC182: 0 | AF182: 0 | AG182: 00:00:00 | AH182: 0 | AJ182: 0 | AK182: 0 | AR182: 0
Z183: 0 | AC183: 0 | AF183: 0 | AG183: 00:00:00 | AH183: 0 | AJ183: 0 | AK183: 0 | AR183: 0
Z184: 0 | AC184: 0 | AF184: 0 | AG184: 00:00:00 | AH184: 0 | AJ184: 0 | AK184: 0 | AR184: 0
Z185: 0 | AC185: 0 | AF185: 0 | AG185: 00:00:00 | AH185: 0 | AJ185: 0 | AK185: 0 | AR185: 0
Z186: 0 | AC186: 0 | AF186: 0 | AG186: 00:00:00 | AH186: 0 | AJ186: 0 | AK186: 0 | AR186: 0
Z187: 0 | AC187: 0 | AF187: 0 | AG187: 00:00:00 | AH187: 0 | AJ187: 0 | AK187: 0 | AR187: 0
Z188: 0 | AC188: 0 | AF188: 0 | AG188: 00:00:00 | AH188: 0 | AJ188: 0 | AK188: 0 | AR188: 0
Z189: 0 | AC189: 0 | AF189: 0 | AG189: 00:00:00 | AH189: 0 | AJ189: 0 | AK189: 0 | AR189: 0
Z190: 0 | AC190: 0 | AF190: 0 | AG190: 00:00:00 | AH190: 0 | AJ190: 0 | AK190: 0 | AR190: 0
Z191: 0 | AC191: 0 | AF191: 0 | AG191: 00:00:00 | AH191: 0 | AJ191: 0 | AK191: 0 | AR191: 0
Z192: 0 | AC192: 0 | AF192: 0 | AG192: 00:00:00 | AH192: 0 | AJ192: 0 | AK192: 0 | AR192: 0
Z193: 0 | AC193: 0 | AF193: 0 | AG193: 00:00:00 | AH193: 0 | AJ193: 0 | AK193: 0 | AR193: 0
Z194: 0 | AC194: 0 | AF194: 0 | AG194: 00:00:00 | AH194: 0 | AJ194: 0 | AK194: 0 | AR194: 0
Z195: 0 | AC195: 0 | AF195: 0 | AG195: 00:00:00 | AH195: 0 | AJ195: 0 | AK195: 0 | AR195: 0
Z196: 0 | AC196: 0 | AF196: 0 | AG196: 00:00:00 | AH196: 0 | AJ196: 0 | AK196: 0 | AR196: 0
Z197: 0 | AC197: 0 | AF197: 0 | AG197: 00:00:00 | AH197: 0 | AJ197: 0 | AK197: 0 | AR197: 0
Z198: 0 | AC198: 0 | AF198: 0 | AG198: 00:00:00 | AH198: 0 | AJ198: 0 | AK198: 0 | AR198: 0
Z199: 0 | AC199: 0 | AF199: 0 | AG199: 00:00:00 | AH199: 0 | AJ199: 0 | AK199: 0 | AR199: 0
Z200: 0 | AC200: 0 | AF200: 0 | AG200: 00:00:00 | AH200: 0 | AJ200: 0 | AK200: 0 | AR200: 0
Z201: 0 | AC201: 0 | AF201: 0 | AG201: 00:00:00 | AH201: 0 | AJ201: 0 | AK201: 0 | AR201: 0
Z202: 0 | AC202: 0 | AF202: 0 | AG202: 00:00:00 | AH202: 0 | AJ202: 0 | AK202: 0 | AR202: 0
Z203: 0 | AC203: 0 | AF203: 0 | AG203: 00:00:00 | AH203: 0 | AJ203: 0 | AK203: 0 | AR203: 0
Z204: 0 | AC204: 0 | AF204: 0 | AG204: 00:00:00 | AH204: 0 | AJ204: 0 | AK204: 0 | AR204: 0
Z205: 0 | AC205: 0 | AF205: 0 | AG205: 00:00:00 | AH205: 0 | AJ205: 0 | AK205: 0 | AR205: 0
... 69 more rows

Sheet Calculos PLD
A1: Factores utilizados en Meses de No Pago para cálculo del valor cuota
A3: N° de Cuota | B3: Equivalente | C3: Fecha | D3: Mes | E3: Marca Cuota No Pago | F3: Factor (10) | G3: Acumulado
A4: 1 | B4: =IF(E4<>"C",IF(ISERROR(1+B3)=TRUE,1,1+B3),IF(ISNUMBER(B3),B3,1)) -> 1 | C4: =Simulador!Q7 -> 2025-04-25 | D4: =MONTH(C4) -> 4 | E4: =IF(ISERROR(MATCH(D4,Simulador!$H$16:$H$17,0))=FALSE,"C",IF(ISERROR(MATCH(D4,Simulador!$H$18:$H$19,0))=FALSE,"D","")) ->  | F4: =IF(E4="C",0,IF(E4 ="D",ROUND(1/((1+Simulador!$Q$13)^A4),9) * 2,ROUND(1/((1+Simulador!$Q$13)^A4),9))) -> 0.987323789 | G4: =ROUND(F4,9) -> 0.987323789
A5: =A4+1 -> 2 | B5: =IF(E5<>"C",IF(ISERROR(1+B4)=TRUE,1,1+B4),IF(ISNUMBER(B4),B4,1)) -> 2 | C5: =DATE(YEAR(C4) + 1/12,MONTH(C4)+1,DAY(C4)) -> 2025-05-25 | D5: 5 | E5: =IF(ISERROR(MATCH(D5,Simulador!$H$16:$H$17,0))=FALSE,"C",IF(ISERROR(MATCH(D5,Simulador!$H$18:$H$19,0))=FALSE,"D","")) ->  | F5: =IF(E5="C",0,IF(E5 ="D",ROUND(1/((1+Simulador!$Q$13)^A5),9) * 2,ROUND(1/((1+Simulador!$Q$13)^A5),9))) -> 0.974808265 | G5: =G4+ROUND(F5,9) -> 1.962132054
A6: 3 | B6: 3 | C6: 2025-06-25 | D6: 6 | E6: =IF(ISERROR(MATCH(D6,Simulador!$H$16:$H$17,0))=FALSE,"C",IF(ISERROR(MATCH(D6,Simulador!$H$18:$H$19,0))=FALSE,"D","")) ->  | F6: =IF(E6="C",0,IF(E6 ="D",ROUND(1/((1+Simulador!$Q$13)^A6),9) * 2,ROUND(1/((1+Simulador!$Q$13)^A6),9))) -> 0.96245139 | G6: =G5+ROUND(F6,9) -> 2.924583444
A7: 4 | B7: 4 | C7: 2025-07-25 | D7: 7 | E7: =IF(ISERROR(MATCH(D7,Simulador!$H$16:$H$17,0))=FALSE,"C",IF(ISERROR(MATCH(D7,Simulador!$H$18:$H$19,0))=FALSE,"D","")) ->  | F7: =IF(E7="C",0,IF(E7 ="D",ROUND(1/((1+Simulador!$Q$13)^A7),9) * 2,ROUND(1/((1+Simulador!$Q$13)^A7),9))) -> 0.950251154 | G7: 3.874834598
A8: 5 | B8: 5 | C8: 2025-08-25 | D8: 8 | E8: =IF(ISERROR(MATCH(D8,Simulador!$H$16:$H$17,0))=FALSE,"C",IF(ISERROR(MATCH(D8,Simulador!$H$18:$H$19,0))=FALSE,"D","")) ->  | F8: =IF(E8="C",0,IF(E8 ="D",ROUND(1/((1+Simulador!$Q$13)^A8),9) * 2,ROUND(1/((1+Simulador!$Q$13)^A8),9))) -> 0.93820557 | G8: 4.813040168
A9: 6 | B9: 6 | C9: 2025-09-25 | D9: 9 | E9: =IF(ISERROR(MATCH(D9,Simulador!$H$16:$H$17,0))=FALSE,"C",IF(ISERROR(MATCH(D9,Simulador!$H$18:$H$19,0))=FALSE,"D","")) ->  | F9: =IF(E9="C",0,IF(E9 ="D",ROUND(1/((1+Simulador!$Q$13)^A9),9) * 2,ROUND(1/((1+Simulador!$Q$13)^A9),9))) -> 0.926312678 | G9: 5.739352846
A10: 7 | B10: 7 | C10: 2025-10-25 | D10: 10 | E10: =IF(ISERROR(MATCH(D10,Simulador!$H$16:$H$17,0))=FALSE,"C",IF(ISERROR(MATCH(D10,Simulador!$H$18:$H$19,0))=FALSE,"D","")) ->  | F10: =IF(E10="C",0,IF(E10 ="D",ROUND(1/((1+Simulador!$Q$13)^A10),9) * 2,ROUND(1/((1+Simulador!$Q$13)^A10),9))) -> 0.914570544 | G10: 6.65392339
A11: 8 | B11: 8 | C11: 2025-11-25 | D11: 11 | E11: =IF(ISERROR(MATCH(D11,Simulador!$H$16:$H$17,0))=FALSE,"C",IF(ISERROR(MATCH(D11,Simulador!$H$18:$H$19,0))=FALSE,"D","")) ->  | F11: =IF(E11="C",0,IF(E11 ="D",ROUND(1/((1+Simulador!$Q$13)^A11),9) * 2,ROUND(1/((1+Simulador!$Q$13)^A11),9))) -> 0.902977255 | G11: 7.556900645
A12: 9 | B12: 9 | C12: 2025-12-25 | D12: 12 | E12: =IF(ISERROR(MATCH(D12,Simulador!$H$16:$H$17,0))=FALSE,"C",IF(ISERROR(MATCH(D12,Simulador!$H$18:$H$19,0))=FALSE,"D","")) ->  | F12: =IF(E12="C",0,IF(E12 ="D",ROUND(1/((1+Simulador!$Q$13)^A12),9) * 2,ROUND(1/((1+Simulador!$Q$13)^A12),9))) -> 0.891530925 | G12: 8.44843157
A13: 10 | B13: 10 | C13: 2026-01-25 | D13: 1 | E13: =IF(ISERROR(MATCH(D13,Simulador!$H$16:$H$17,0))=FALSE,"C",IF(ISERROR(MATCH(D13,Simulador!$H$18:$H$19,0))=FALSE,"D","")) ->  | F13: =IF(E13="C",0,IF(E13 ="D",ROUND(1/((1+Simulador!$Q$13)^A13),9) * 2,ROUND(1/((1+Simulador!$Q$13)^A13),9))) -> 0.880229691 | G13: 9.328661261
A14: 11 | B14: 11 | C14: 2026-02-25 | D14: 2 | E14: =IF(ISERROR(MATCH(D14,Simulador!$H$16:$H$17,0))=FALSE,"C",IF(ISERROR(MATCH(D14,Simulador!$H$18:$H$19,0))=FALSE,"D","")) ->  | F14: =IF(E14="C",0,IF(E14 ="D",ROUND(1/((1+Simulador!$Q$13)^A14),9) * 2,ROUND(1/((1+Simulador!$Q$13)^A14),9))) -> 0.869071714 | G14: 10.19773298
A15: 12 | B15: 12 | C15: 2026-03-25 | D15: 3 | E15: =IF(ISERROR(MATCH(D15,Simulador!$H$16:$H$17,0))=FALSE,"C",IF(ISERROR(MATCH(D15,Simulador!$H$18:$H$19,0))=FALSE,"D","")) ->  | F15: =IF(E15="C",0,IF(E15 ="D",ROUND(1/((1+Simulador!$Q$13)^A15),9) * 2,ROUND(1/((1+Simulador!$Q$13)^A15),9))) -> 0.858055178 | G15: 11.05578815
A16: 13 | B16: 13 | C16: 2026-04-25 | D16: 4 | E16: =IF(ISERROR(MATCH(D16,Simulador!$H$16:$H$17,0))=FALSE,"C",IF(ISERROR(MATCH(D16,Simulador!$H$18:$H$19,0))=FALSE,"D","")) ->  | F16: =IF(E16="C",0,IF(E16 ="D",ROUND(1/((1+Simulador!$Q$13)^A16),9) * 2,ROUND(1/((1+Simulador!$Q$13)^A16),9))) -> 0.84717829 | G16: 11.90296644
A17: 14 | B17: 14 | C17: 2026-05-25 | D17: 5 | E17: =IF(ISERROR(MATCH(D17,Simulador!$H$16:$H$17,0))=FALSE,"C",IF(ISERROR(MATCH(D17,Simulador!$H$18:$H$19,0))=FALSE,"D","")) ->  | F17: =IF(E17="C",0,IF(E17 ="D",ROUND(1/((1+Simulador!$Q$13)^A17),9) * 2,ROUND(1/((1+Simulador!$Q$13)^A17),9))) -> 0.836439279 | G17: 12.73940572
A18: 15 | B18: 15 | C18: 2026-06-25 | D18: 6 | E18: =IF(ISERROR(MATCH(D18,Simulador!$H$16:$H$17,0))=FALSE,"C",IF(ISERROR(MATCH(D18,Simulador!$H$18:$H$19,0))=FALSE,"D","")) ->  | F18: =IF(E18="C",0,IF(E18 ="D",ROUND(1/((1+Simulador!$Q$13)^A18),9) * 2,ROUND(1/((1+Simulador!$Q$13)^A18),9))) -> 0.825836399 | G18: 13.56524212
A19: 16 | B19: 16 | C19: 2026-07-25 | D19: 7 | E19: =IF(ISERROR(MATCH(D19,Simulador!$H$16:$H$17,0))=FALSE,"C",IF(ISERROR(MATCH(D19,Simulador!$H$18:$H$19,0))=FALSE,"D","")) ->  | F19: =IF(E19="C",0,IF(E19 ="D",ROUND(1/((1+Simulador!$Q$13)^A19),9) * 2,ROUND(1/((1+Simulador!$Q$13)^A19),9))) -> 0.815367923 | G19: 14.38061004
A20: 17 | B20: 17 | C20: 2026-08-25 | D20: 8 | E20: =IF(ISERROR(MATCH(D20,Simulador!$H$16:$H$17,0))=FALSE,"C",IF(ISERROR(MATCH(D20,Simulador!$H$18:$H$19,0))=FALSE,"D","")) ->  | F20: =IF(E20="C",0,IF(E20 ="D",ROUND(1/((1+Simulador!$Q$13)^A20),9) * 2,ROUND(1/((1+Simulador!$Q$13)^A20),9))) -> 0.805032147 | G20: 15.18564219
A21: 18 | B21: 18 | C21: 2026-09-25 | D21: 9 | E21: =IF(ISERROR(MATCH(D21,Simulador!$H$16:$H$17,0))=FALSE,"C",IF(ISERROR(MATCH(D21,Simulador!$H$18:$H$19,0))=FALSE,"D","")) ->  | F21: =IF(E21="C",0,IF(E21 ="D",ROUND(1/((1+Simulador!$Q$13)^A21),9) * 2,ROUND(1/((1+Simulador!$Q$13)^A21),9))) -> 0.79482739 | G21: 15.98046958
A22: 19 | B22: 19 | C22: 2026-10-25 | D22: 10 | E22: =IF(ISERROR(MATCH(D22,Simulador!$H$16:$H$17,0))=FALSE,"C",IF(ISERROR(MATCH(D22,Simulador!$H$18:$H$19,0))=FALSE,"D","")) ->  | F22: =IF(E22="C",0,IF(E22 ="D",ROUND(1/((1+Simulador!$Q$13)^A22),9) * 2,ROUND(1/((1+Simulador!$Q$13)^A22),9))) -> 0.784751991 | G22: 16.76522157
A23: 20 | B23: 20 | C23: 2026-11-25 | D23: 11 | E23: =IF(ISERROR(MATCH(D23,Simulador!$H$16:$H$17,0))=FALSE,"C",IF(ISERROR(MATCH(D23,Simulador!$H$18:$H$19,0))=FALSE,"D","")) ->  | F23: =IF(E23="C",0,IF(E23 ="D",ROUND(1/((1+Simulador!$Q$13)^A23),9) * 2,ROUND(1/((1+Simulador!$Q$13)^A23),9))) -> 0.774804309 | G23: 17.54002588
A24: 21 | B24: 21 | C24: 2026-12-25 | D24: 12 | E24: =IF(ISERROR(MATCH(D24,Simulador!$H$16:$H$17,0))=FALSE,"C",IF(ISERROR(MATCH(D24,Simulador!$H$18:$H$19,0))=FALSE,"D","")) ->  | F24: =IF(E24="C",0,IF(E24 ="D",ROUND(1/((1+Simulador!$Q$13)^A24),9) * 2,ROUND(1/((1+Simulador!$Q$13)^A24),9))) -> 0.764982727 | G24: 18.30500861
A25: 22 | B25: 22 | C25: 2027-01-25 | D25: 1 | E25: =IF(ISERROR(MATCH(D25,Simulador!$H$16:$H$17,0))=FALSE,"C",IF(ISERROR(MATCH(D25,Simulador!$H$18:$H$19,0))=FALSE,"D","")) ->  | F25: =IF(E25="C",0,IF(E25 ="D",ROUND(1/((1+Simulador!$Q$13)^A25),9) * 2,ROUND(1/((1+Simulador!$Q$13)^A25),9))) -> 0.755285644 | G25: 19.06029425
A26: 23 | B26: 23 | C26: 2027-02-25 | D26: 2 | E26: =IF(ISERROR(MATCH(D26,Simulador!$H$16:$H$17,0))=FALSE,"C",IF(ISERROR(MATCH(D26,Simulador!$H$18:$H$19,0))=FALSE,"D","")) ->  | F26: =IF(E26="C",0,IF(E26 ="D",ROUND(1/((1+Simulador!$Q$13)^A26),9) * 2,ROUND(1/((1+Simulador!$Q$13)^A26),9))) -> 0.745711485 | G26: 19.80600574
A27: 24 | B27: 24 | C27: 2027-03-25 | D27: 3 | E27: =IF(ISERROR(MATCH(D27,Simulador!$H$16:$H$17,0))=FALSE,"C",IF(ISERROR(MATCH(D27,Simulador!$H$18:$H$19,0))=FALSE,"D","")) ->  | F27: =IF(E27="C",0,IF(E27 ="D",ROUND(1/((1+Simulador!$Q$13)^A27),9) * 2,ROUND(1/((1+Simulador!$Q$13)^A27),9))) -> 0.736258689 | G27: 20.54226443
A28: 25 | B28: 25 | C28: 2027-04-25 | D28: 4 | E28: =IF(ISERROR(MATCH(D28,Simulador!$H$16:$H$17,0))=FALSE,"C",IF(ISERROR(MATCH(D28,Simulador!$H$18:$H$19,0))=FALSE,"D","")) ->  | F28: =IF(E28="C",0,IF(E28 ="D",ROUND(1/((1+Simulador!$Q$13)^A28),9) * 2,ROUND(1/((1+Simulador!$Q$13)^A28),9))) -> 0.726925718 | G28: 21.26919014
A29: 26 | B29: 26 | C29: 2027-05-25 | D29: 5 | E29: =IF(ISERROR(MATCH(D29,Simulador!$H$16:$H$17,0))=FALSE,"C",IF(ISERROR(MATCH(D29,Simulador!$H$18:$H$19,0))=FALSE,"D","")) ->  | F29: =IF(E29="C",0,IF(E29 ="D",ROUND(1/((1+Simulador!$Q$13)^A29),9) * 2,ROUND(1/((1+Simulador!$Q$13)^A29),9))) -> 0.717711055 | G29: 21.9869012
A30: 27 | B30: 27 | C30: 2027-06-25 | D30: 6 | E30: =IF(ISERROR(MATCH(D30,Simulador!$H$16:$H$17,0))=FALSE,"C",IF(ISERROR(MATCH(D30,Simulador!$H$18:$H$19,0))=FALSE,"D","")) ->  | F30: =IF(E30="C",0,IF(E30 ="D",ROUND(1/((1+Simulador!$Q$13)^A30),9) * 2,ROUND(1/((1+Simulador!$Q$13)^A30),9))) -> 0.708613198 | G30: 22.6955144
A31: 28 | B31: 28 | C31: 2027-07-25 | D31: 7 | E31: =IF(ISERROR(MATCH(D31,Simulador!$H$16:$H$17,0))=FALSE,"C",IF(ISERROR(MATCH(D31,Simulador!$H$18:$H$19,0))=FALSE,"D","")) ->  | F31: =IF(E31="C",0,IF(E31 ="D",ROUND(1/((1+Simulador!$Q$13)^A31),9) * 2,ROUND(1/((1+Simulador!$Q$13)^A31),9))) -> 0.699630668 | G31: 23.39514507
A32: 29 | B32: 29 | C32: 2027-08-25 | D32: 8 | E32: =IF(ISERROR(MATCH(D32,Simulador!$H$16:$H$17,0))=FALSE,"C",IF(ISERROR(MATCH(D32,Simulador!$H$18:$H$19,0))=FALSE,"D","")) ->  | F32: =IF(E32="C",0,IF(E32 ="D",ROUND(1/((1+Simulador!$Q$13)^A32),9) * 2,ROUND(1/((1+Simulador!$Q$13)^A32),9))) -> 0.690762003 | G32: 24.08590707
A33: 30 | B33: 30 | C33: 2027-09-25 | D33: 9 | E33: =IF(ISERROR(MATCH(D33,Simulador!$H$16:$H$17,0))=FALSE,"C",IF(ISERROR(MATCH(D33,Simulador!$H$18:$H$19,0))=FALSE,"D","")) ->  | F33: =IF(E33="C",0,IF(E33 ="D",ROUND(1/((1+Simulador!$Q$13)^A33),9) * 2,ROUND(1/((1+Simulador!$Q$13)^A33),9))) -> 0.682005758 | G33: 24.76791283
A34: 31 | B34: 31 | C34: 2027-10-25 | D34: 10 | E34: =IF(ISERROR(MATCH(D34,Simulador!$H$16:$H$17,0))=FALSE,"C",IF(ISERROR(MATCH(D34,Simulador!$H$18:$H$19,0))=FALSE,"D","")) ->  | F34: =IF(E34="C",0,IF(E34 ="D",ROUND(1/((1+Simulador!$Q$13)^A34),9) * 2,ROUND(1/((1+Simulador!$Q$13)^A34),9))) -> 0.673360509 | G34: 25.44127333
A35: 32 | B35: 32 | C35: 2027-11-25 | D35: 11 | E35: =IF(ISERROR(MATCH(D35,Simulador!$H$16:$H$17,0))=FALSE,"C",IF(ISERROR(MATCH(D35,Simulador!$H$18:$H$19,0))=FALSE,"D","")) ->  | F35: =IF(E35="C",0,IF(E35 ="D",ROUND(1/((1+Simulador!$Q$13)^A35),9) * 2,ROUND(1/((1+Simulador!$Q$13)^A35),9))) -> 0.66482485 | G35: 26.10609818
A36: 33 | B36: 33 | C36: 2027-12-25 | D36: 12 | E36: =IF(ISERROR(MATCH(D36,Simulador!$H$16:$H$17,0))=FALSE,"C",IF(ISERROR(MATCH(D36,Simulador!$H$18:$H$19,0))=FALSE,"D","")) ->  | F36: =IF(E36="C",0,IF(E36 ="D",ROUND(1/((1+Simulador!$Q$13)^A36),9) * 2,ROUND(1/((1+Simulador!$Q$13)^A36),9))) -> 0.65639739 | G36: 26.76249557
A37: 34 | B37: 34 | C37: 2028-01-25 | D37: 1 | E37: =IF(ISERROR(MATCH(D37,Simulador!$H$16:$H$17,0))=FALSE,"C",IF(ISERROR(MATCH(D37,Simulador!$H$18:$H$19,0))=FALSE,"D","")) ->  | F37: =IF(E37="C",0,IF(E37 ="D",ROUND(1/((1+Simulador!$Q$13)^A37),9) * 2,ROUND(1/((1+Simulador!$Q$13)^A37),9))) -> 0.648076758 | G37: 27.41057233
A38: 35 | B38: 35 | C38: 2028-02-25 | D38: 2 | E38: =IF(ISERROR(MATCH(D38,Simulador!$H$16:$H$17,0))=FALSE,"C",IF(ISERROR(MATCH(D38,Simulador!$H$18:$H$19,0))=FALSE,"D","")) ->  | F38: =IF(E38="C",0,IF(E38 ="D",ROUND(1/((1+Simulador!$Q$13)^A38),9) * 2,ROUND(1/((1+Simulador!$Q$13)^A38),9))) -> 0.639861601 | G38: 28.05043393
A39: 36 | B39: 36 | C39: 2028-03-25 | D39: 3 | E39: =IF(ISERROR(MATCH(D39,Simulador!$H$16:$H$17,0))=FALSE,"C",IF(ISERROR(MATCH(D39,Simulador!$H$18:$H$19,0))=FALSE,"D","")) ->  | F39: =IF(E39="C",0,IF(E39 ="D",ROUND(1/((1+Simulador!$Q$13)^A39),9) * 2,ROUND(1/((1+Simulador!$Q$13)^A39),9))) -> 0.63175058 | G39: 28.68218451
A40: 37 | B40: 37 | C40: 2028-04-25 | D40: 4 | E40: =IF(ISERROR(MATCH(D40,Simulador!$H$16:$H$17,0))=FALSE,"C",IF(ISERROR(MATCH(D40,Simulador!$H$18:$H$19,0))=FALSE,"D","")) ->  | F40: =IF(E40="C",0,IF(E40 ="D",ROUND(1/((1+Simulador!$Q$13)^A40),9) * 2,ROUND(1/((1+Simulador!$Q$13)^A40),9))) -> 0.623742377 | G40: 29.30592689
A41: 38 | B41: 38 | C41: 2028-05-25 | D41: 5 | E41: =IF(ISERROR(MATCH(D41,Simulador!$H$16:$H$17,0))=FALSE,"C",IF(ISERROR(MATCH(D41,Simulador!$H$18:$H$19,0))=FALSE,"D","")) ->  | F41: =IF(E41="C",0,IF(E41 ="D",ROUND(1/((1+Simulador!$Q$13)^A41),9) * 2,ROUND(1/((1+Simulador!$Q$13)^A41),9))) -> 0.615835687 | G41: 29.92176258
A42: 39 | B42: 39 | C42: 2028-06-25 | D42: 6 | E42: =IF(ISERROR(MATCH(D42,Simulador!$H$16:$H$17,0))=FALSE,"C",IF(ISERROR(MATCH(D42,Simulador!$H$18:$H$19,0))=FALSE,"D","")) ->  | F42: =IF(E42="C",0,IF(E42 ="D",ROUND(1/((1+Simulador!$Q$13)^A42),9) * 2,ROUND(1/((1+Simulador!$Q$13)^A42),9))) -> 0.608029224 | G42: 30.5297918
A43: 40 | B43: 40 | C43: 2028-07-25 | D43: 7 | E43: =IF(ISERROR(MATCH(D43,Simulador!$H$16:$H$17,0))=FALSE,"C",IF(ISERROR(MATCH(D43,Simulador!$H$18:$H$19,0))=FALSE,"D","")) ->  | F43: =IF(E43="C",0,IF(E43 ="D",ROUND(1/((1+Simulador!$Q$13)^A43),9) * 2,ROUND(1/((1+Simulador!$Q$13)^A43),9))) -> 0.600321718 | G43: 31.13011352
A44: 41 | B44: 41 | C44: 2028-08-25 | D44: 8 | E44: =IF(ISERROR(MATCH(D44,Simulador!$H$16:$H$17,0))=FALSE,"C",IF(ISERROR(MATCH(D44,Simulador!$H$18:$H$19,0))=FALSE,"D","")) ->  | F44: =IF(E44="C",0,IF(E44 ="D",ROUND(1/((1+Simulador!$Q$13)^A44),9) * 2,ROUND(1/((1+Simulador!$Q$13)^A44),9))) -> 0.592711913 | G44: 31.72282543
A45: 42 | B45: 42 | C45: 2028-09-25 | D45: 9 | E45: =IF(ISERROR(MATCH(D45,Simulador!$H$16:$H$17,0))=FALSE,"C",IF(ISERROR(MATCH(D45,Simulador!$H$18:$H$19,0))=FALSE,"D","")) ->  | F45: =IF(E45="C",0,IF(E45 ="D",ROUND(1/((1+Simulador!$Q$13)^A45),9) * 2,ROUND(1/((1+Simulador!$Q$13)^A45),9))) -> 0.585198572 | G45: 32.308024
A46: 43 | B46: 43 | C46: 2028-10-25 | D46: 10 | E46: =IF(ISERROR(MATCH(D46,Simulador!$H$16:$H$17,0))=FALSE,"C",IF(ISERROR(MATCH(D46,Simulador!$H$18:$H$19,0))=FALSE,"D","")) ->  | F46: =IF(E46="C",0,IF(E46 ="D",ROUND(1/((1+Simulador!$Q$13)^A46),9) * 2,ROUND(1/((1+Simulador!$Q$13)^A46),9))) -> 0.577780472 | G46: 32.88580448
A47: 44 | B47: 44 | C47: 2028-11-25 | D47: 11 | E47: =IF(ISERROR(MATCH(D47,Simulador!$H$16:$H$17,0))=FALSE,"C",IF(ISERROR(MATCH(D47,Simulador!$H$18:$H$19,0))=FALSE,"D","")) ->  | F47: =IF(E47="C",0,IF(E47 ="D",ROUND(1/((1+Simulador!$Q$13)^A47),9) * 2,ROUND(1/((1+Simulador!$Q$13)^A47),9))) -> 0.570456405 | G47: 33.45626088
A48: 45 | B48: 45 | C48: 2028-12-25 | D48: 12 | E48: =IF(ISERROR(MATCH(D48,Simulador!$H$16:$H$17,0))=FALSE,"C",IF(ISERROR(MATCH(D48,Simulador!$H$18:$H$19,0))=FALSE,"D","")) ->  | F48: =IF(E48="C",0,IF(E48 ="D",ROUND(1/((1+Simulador!$Q$13)^A48),9) * 2,ROUND(1/((1+Simulador!$Q$13)^A48),9))) -> 0.563225179 | G48: 34.01948606
A49: 46 | B49: 46 | C49: 2029-01-25 | D49: 1 | E49: =IF(ISERROR(MATCH(D49,Simulador!$H$16:$H$17,0))=FALSE,"C",IF(ISERROR(MATCH(D49,Simulador!$H$18:$H$19,0))=FALSE,"D","")) ->  | F49: =IF(E49="C",0,IF(E49 ="D",ROUND(1/((1+Simulador!$Q$13)^A49),9) * 2,ROUND(1/((1+Simulador!$Q$13)^A49),9))) -> 0.556085618 | G49: 34.57557168
A50: 47 | B50: 47 | C50: 2029-02-25 | D50: 2 | E50: =IF(ISERROR(MATCH(D50,Simulador!$H$16:$H$17,0))=FALSE,"C",IF(ISERROR(MATCH(D50,Simulador!$H$18:$H$19,0))=FALSE,"D","")) ->  | F50: =IF(E50="C",0,IF(E50 ="D",ROUND(1/((1+Simulador!$Q$13)^A50),9) * 2,ROUND(1/((1+Simulador!$Q$13)^A50),9))) -> 0.54903656 | G50: 35.12460824
A51: 48 | B51: 48 | C51: 2029-03-25 | D51: 3 | E51: =IF(ISERROR(MATCH(D51,Simulador!$H$16:$H$17,0))=FALSE,"C",IF(ISERROR(MATCH(D51,Simulador!$H$18:$H$19,0))=FALSE,"D","")) ->  | F51: =IF(E51="C",0,IF(E51 ="D",ROUND(1/((1+Simulador!$Q$13)^A51),9) * 2,ROUND(1/((1+Simulador!$Q$13)^A51),9))) -> 0.542076857 | G51: 35.6666851
A52: 49 | B52: 49 | C52: 2029-04-25 | D52: 4 | E52: =IF(ISERROR(MATCH(D52,Simulador!$H$16:$H$17,0))=FALSE,"C",IF(ISERROR(MATCH(D52,Simulador!$H$18:$H$19,0))=FALSE,"D","")) ->  | F52: =IF(E52="C",0,IF(E52 ="D",ROUND(1/((1+Simulador!$Q$13)^A52),9) * 2,ROUND(1/((1+Simulador!$Q$13)^A52),9))) -> 0.535205376 | G52: 36.20189047
A53: 50 | B53: 50 | C53: 2029-05-25 | D53: 5 | E53: =IF(ISERROR(MATCH(D53,Simulador!$H$16:$H$17,0))=FALSE,"C",IF(ISERROR(MATCH(D53,Simulador!$H$18:$H$19,0))=FALSE,"D","")) ->  | F53: =IF(E53="C",0,IF(E53 ="D",ROUND(1/((1+Simulador!$Q$13)^A53),9) * 2,ROUND(1/((1+Simulador!$Q$13)^A53),9))) -> 0.528421 | G53: 36.73031147
A54: 51 | B54: 51 | C54: 2029-06-25 | D54: 6 | E54: =IF(ISERROR(MATCH(D54,Simulador!$H$16:$H$17,0))=FALSE,"C",IF(ISERROR(MATCH(D54,Simulador!$H$18:$H$19,0))=FALSE,"D","")) ->  | F54: =IF(E54="C",0,IF(E54 ="D",ROUND(1/((1+Simulador!$Q$13)^A54),9) * 2,ROUND(1/((1+Simulador!$Q$13)^A54),9))) -> 0.521722624 | G54: 37.2520341
A55: 52 | B55: 52 | C55: 2029-07-25 | D55: 7 | E55: =IF(ISERROR(MATCH(D55,Simulador!$H$16:$H$17,0))=FALSE,"C",IF(ISERROR(MATCH(D55,Simulador!$H$18:$H$19,0))=FALSE,"D","")) ->  | F55: =IF(E55="C",0,IF(E55 ="D",ROUND(1/((1+Simulador!$Q$13)^A55),9) * 2,ROUND(1/((1+Simulador!$Q$13)^A55),9))) -> 0.515109158 | G55: 37.76714325
A56: 53 | B56: 53 | C56: 2029-08-25 | D56: 8 | E56: =IF(ISERROR(MATCH(D56,Simulador!$H$16:$H$17,0))=FALSE,"C",IF(ISERROR(MATCH(D56,Simulador!$H$18:$H$19,0))=FALSE,"D","")) ->  | F56: =IF(E56="C",0,IF(E56 ="D",ROUND(1/((1+Simulador!$Q$13)^A56),9) * 2,ROUND(1/((1+Simulador!$Q$13)^A56),9))) -> 0.508579526 | G56: 38.27572278
A57: 54 | B57: 54 | C57: 2029-09-25 | D57: 9 | E57: =IF(ISERROR(MATCH(D57,Simulador!$H$16:$H$17,0))=FALSE,"C",IF(ISERROR(MATCH(D57,Simulador!$H$18:$H$19,0))=FALSE,"D","")) ->  | F57: =IF(E57="C",0,IF(E57 ="D",ROUND(1/((1+Simulador!$Q$13)^A57),9) * 2,ROUND(1/((1+Simulador!$Q$13)^A57),9))) -> 0.502132665 | G57: 38.77785544
A58: 55 | B58: 55 | C58: 2029-10-25 | D58: 10 | E58: =IF(ISERROR(MATCH(D58,Simulador!$H$16:$H$17,0))=FALSE,"C",IF(ISERROR(MATCH(D58,Simulador!$H$18:$H$19,0))=FALSE,"D","")) ->  | F58: =IF(E58="C",0,IF(E58 ="D",ROUND(1/((1+Simulador!$Q$13)^A58),9) * 2,ROUND(1/((1+Simulador!$Q$13)^A58),9))) -> 0.495767526 | G58: 39.27362297
A59: 56 | B59: 56 | C59: 2029-11-25 | D59: 11 | E59: =IF(ISERROR(MATCH(D59,Simulador!$H$16:$H$17,0))=FALSE,"C",IF(ISERROR(MATCH(D59,Simulador!$H$18:$H$19,0))=FALSE,"D","")) ->  | F59: =IF(E59="C",0,IF(E59 ="D",ROUND(1/((1+Simulador!$Q$13)^A59),9) * 2,ROUND(1/((1+Simulador!$Q$13)^A59),9))) -> 0.489483072 | G59: 39.76310604
A60: 57 | B60: 57 | C60: 2029-12-25 | D60: 12 | E60: =IF(ISERROR(MATCH(D60,Simulador!$H$16:$H$17,0))=FALSE,"C",IF(ISERROR(MATCH(D60,Simulador!$H$18:$H$19,0))=FALSE,"D","")) ->  | F60: =IF(E60="C",0,IF(E60 ="D",ROUND(1/((1+Simulador!$Q$13)^A60),9) * 2,ROUND(1/((1+Simulador!$Q$13)^A60),9))) -> 0.483278281 | G60: 40.24638432
A61: 58 | B61: 58 | C61: 2030-01-25 | D61: 1 | E61: =IF(ISERROR(MATCH(D61,Simulador!$H$16:$H$17,0))=FALSE,"C",IF(ISERROR(MATCH(D61,Simulador!$H$18:$H$19,0))=FALSE,"D","")) ->  | F61: =IF(E61="C",0,IF(E61 ="D",ROUND(1/((1+Simulador!$Q$13)^A61),9) * 2,ROUND(1/((1+Simulador!$Q$13)^A61),9))) -> 0.477152144 | G61: 40.72353647
A62: 59 | B62: 59 | C62: 2030-02-25 | D62: 2 | E62: =IF(ISERROR(MATCH(D62,Simulador!$H$16:$H$17,0))=FALSE,"C",IF(ISERROR(MATCH(D62,Simulador!$H$18:$H$19,0))=FALSE,"D","")) ->  | F62: =IF(E62="C",0,IF(E62 ="D",ROUND(1/((1+Simulador!$Q$13)^A62),9) * 2,ROUND(1/((1+Simulador!$Q$13)^A62),9))) -> 0.471103663 | G62: 41.19464013
A63: 60 | B63: 60 | C63: 2030-03-25 | D63: 3 | E63: =IF(ISERROR(MATCH(D63,Simulador!$H$16:$H$17,0))=FALSE,"C",IF(ISERROR(MATCH(D63,Simulador!$H$18:$H$19,0))=FALSE,"D","")) ->  | F63: =IF(E63="C",0,IF(E63 ="D",ROUND(1/((1+Simulador!$Q$13)^A63),9) * 2,ROUND(1/((1+Simulador!$Q$13)^A63),9))) -> 0.465131854 | G63: 41.65977198
A64: 61 | B64: 61 | C64: 2030-04-25 | D64: 4 | E64: =IF(ISERROR(MATCH(D64,Simulador!$H$16:$H$17,0))=FALSE,"C",IF(ISERROR(MATCH(D64,Simulador!$H$18:$H$19,0))=FALSE,"D","")) ->  | F64: =IF(E64="C",0,IF(E64 ="D",ROUND(1/((1+Simulador!$Q$13)^A64),9) * 2,ROUND(1/((1+Simulador!$Q$13)^A64),9))) -> 0.459235744 | G64: 42.11900773
A65: 62 | B65: 62 | C65: 2030-05-25 | D65: 5 | E65: =IF(ISERROR(MATCH(D65,Simulador!$H$16:$H$17,0))=FALSE,"C",IF(ISERROR(MATCH(D65,Simulador!$H$18:$H$19,0))=FALSE,"D","")) ->  | F65: =IF(E65="C",0,IF(E65 ="D",ROUND(1/((1+Simulador!$Q$13)^A65),9) * 2,ROUND(1/((1+Simulador!$Q$13)^A65),9))) -> 0.453414375 | G65: 42.5724221
A66: 63 | B66: 63 | C66: 2030-06-25 | D66: 6 | E66: =IF(ISERROR(MATCH(D66,Simulador!$H$16:$H$17,0))=FALSE,"C",IF(ISERROR(MATCH(D66,Simulador!$H$18:$H$19,0))=FALSE,"D","")) ->  | F66: =IF(E66="C",0,IF(E66 ="D",ROUND(1/((1+Simulador!$Q$13)^A66),9) * 2,ROUND(1/((1+Simulador!$Q$13)^A66),9))) -> 0.447666799 | G66: 43.0200889
A67: 64 | B67: 64 | C67: 2030-07-25 | D67: 7 | E67: =IF(ISERROR(MATCH(D67,Simulador!$H$16:$H$17,0))=FALSE,"C",IF(ISERROR(MATCH(D67,Simulador!$H$18:$H$19,0))=FALSE,"D","")) ->  | F67: =IF(E67="C",0,IF(E67 ="D",ROUND(1/((1+Simulador!$Q$13)^A67),9) * 2,ROUND(1/((1+Simulador!$Q$13)^A67),9))) -> 0.441992081 | G67: 43.46208098
A68: 65 | B68: 65 | C68: 2030-08-25 | D68: =MONTH(C68) -> 8 | E68: =IF(ISERROR(MATCH(D68,Simulador!$H$16:$H$17,0))=FALSE,"C",IF(ISERROR(MATCH(D68,Simulador!$H$18:$H$19,0))=FALSE,"D","")) ->  | F68: =IF(E68="C",0,IF(E68 ="D",ROUND(1/((1+Simulador!$Q$13)^A68),9) * 2,ROUND(1/((1+Simulador!$Q$13)^A68),9))) -> 0.436389296 | G68: 43.89847028
A69: =A68+1 -> 66 | B69: =IF(E69<>"C",IF(ISERROR(1+B68)=TRUE,1,1+B68),IF(ISNUMBER(B68),B68,1)) -> 66 | C69: =DATE(YEAR(C68) + 1/12,MONTH(C68)+1,DAY(C68)) -> 2030-09-25 | D69: 9 | E69: =IF(ISERROR(MATCH(D69,Simulador!$H$16:$H$17,0))=FALSE,"C",IF(ISERROR(MATCH(D69,Simulador!$H$18:$H$19,0))=FALSE,"D","")) ->  | F69: =IF(E69="C",0,IF(E69 ="D",ROUND(1/((1+Simulador!$Q$13)^A69),9) * 2,ROUND(1/((1+Simulador!$Q$13)^A69),9))) -> 0.430857533 | G69: 44.32932781
A70: 67 | B70: 67 | C70: 2030-10-25 | D70: 10 | E70: =IF(ISERROR(MATCH(D70,Simulador!$H$16:$H$17,0))=FALSE,"C",IF(ISERROR(MATCH(D70,Simulador!$H$18:$H$19,0))=FALSE,"D","")) ->  | F70: =IF(E70="C",0,IF(E70 ="D",ROUND(1/((1+Simulador!$Q$13)^A70),9) * 2,ROUND(1/((1+Simulador!$Q$13)^A70),9))) -> 0.425395892 | G70: =G69+ROUND(F70,9) -> 44.7547237
A71: 68 | B71: 68 | C71: 2030-11-25 | D71: 11 | E71: =IF(ISERROR(MATCH(D71,Simulador!$H$16:$H$17,0))=FALSE,"C",IF(ISERROR(MATCH(D71,Simulador!$H$18:$H$19,0))=FALSE,"D","")) ->  | F71: =IF(E71="C",0,IF(E71 ="D",ROUND(1/((1+Simulador!$Q$13)^A71),9) * 2,ROUND(1/((1+Simulador!$Q$13)^A71),9))) -> 0.420003485 | G71: 45.17472719
A72: 69 | B72: 69 | C72: 2030-12-25 | D72: 12 | E72: =IF(ISERROR(MATCH(D72,Simulador!$H$16:$H$17,0))=FALSE,"C",IF(ISERROR(MATCH(D72,Simulador!$H$18:$H$19,0))=FALSE,"D","")) ->  | F72: =IF(E72="C",0,IF(E72 ="D",ROUND(1/((1+Simulador!$Q$13)^A72),9) * 2,ROUND(1/((1+Simulador!$Q$13)^A72),9))) -> 0.414679432 | G72: 45.58940662
A73: 70 | B73: 70 | C73: 2031-01-25 | D73: 1 | E73: =IF(ISERROR(MATCH(D73,Simulador!$H$16:$H$17,0))=FALSE,"C",IF(ISERROR(MATCH(D73,Simulador!$H$18:$H$19,0))=FALSE,"D","")) ->  | F73: =IF(E73="C",0,IF(E73 ="D",ROUND(1/((1+Simulador!$Q$13)^A73),9) * 2,ROUND(1/((1+Simulador!$Q$13)^A73),9))) -> 0.409422868 | G73: 45.99882949
A74: 71 | B74: 71 | C74: 2031-02-25 | D74: 2 | E74: =IF(ISERROR(MATCH(D74,Simulador!$H$16:$H$17,0))=FALSE,"C",IF(ISERROR(MATCH(D74,Simulador!$H$18:$H$19,0))=FALSE,"D","")) ->  | F74: =IF(E74="C",0,IF(E74 ="D",ROUND(1/((1+Simulador!$Q$13)^A74),9) * 2,ROUND(1/((1+Simulador!$Q$13)^A74),9))) -> 0.404232938 | G74: 46.40306243
A75: 72 | B75: 72 | C75: 2031-03-25 | D75: 3 | E75: =IF(ISERROR(MATCH(D75,Simulador!$H$16:$H$17,0))=FALSE,"C",IF(ISERROR(MATCH(D75,Simulador!$H$18:$H$19,0))=FALSE,"D","")) ->  | F75: =IF(E75="C",0,IF(E75 ="D",ROUND(1/((1+Simulador!$Q$13)^A75),9) * 2,ROUND(1/((1+Simulador!$Q$13)^A75),9))) -> 0.399108796 | G75: 46.80217122
A76: 73 | B76: 73 | C76: 2031-04-25 | D76: 4 | E76: =IF(ISERROR(MATCH(D76,Simulador!$H$16:$H$17,0))=FALSE,"C",IF(ISERROR(MATCH(D76,Simulador!$H$18:$H$19,0))=FALSE,"D","")) ->  | F76: =IF(E76="C",0,IF(E76 ="D",ROUND(1/((1+Simulador!$Q$13)^A76),9) * 2,ROUND(1/((1+Simulador!$Q$13)^A76),9))) -> 0.394049609 | G76: 47.19622083
A77: 74 | B77: 74 | C77: 2031-05-25 | D77: 5 | E77: =IF(ISERROR(MATCH(D77,Simulador!$H$16:$H$17,0))=FALSE,"C",IF(ISERROR(MATCH(D77,Simulador!$H$18:$H$19,0))=FALSE,"D","")) ->  | F77: =IF(E77="C",0,IF(E77 ="D",ROUND(1/((1+Simulador!$Q$13)^A77),9) * 2,ROUND(1/((1+Simulador!$Q$13)^A77),9))) -> 0.389054553 | G77: 47.58527539
A78: 75 | B78: 75 | C78: 2031-06-25 | D78: 6 | E78: =IF(ISERROR(MATCH(D78,Simulador!$H$16:$H$17,0))=FALSE,"C",IF(ISERROR(MATCH(D78,Simulador!$H$18:$H$19,0))=FALSE,"D","")) ->  | F78: =IF(E78="C",0,IF(E78 ="D",ROUND(1/((1+Simulador!$Q$13)^A78),9) * 2,ROUND(1/((1+Simulador!$Q$13)^A78),9))) -> 0.384122815 | G78: 47.9693982
A79: 76 | B79: 76 | C79: 2031-07-25 | D79: 7 | E79: =IF(ISERROR(MATCH(D79,Simulador!$H$16:$H$17,0))=FALSE,"C",IF(ISERROR(MATCH(D79,Simulador!$H$18:$H$19,0))=FALSE,"D","")) ->  | F79: =IF(E79="C",0,IF(E79 ="D",ROUND(1/((1+Simulador!$Q$13)^A79),9) * 2,ROUND(1/((1+Simulador!$Q$13)^A79),9))) -> 0.379253594 | G79: 48.34865179
A80: 77 | B80: 77 | C80: 2031-08-25 | D80: 8 | E80: =IF(ISERROR(MATCH(D80,Simulador!$H$16:$H$17,0))=FALSE,"C",IF(ISERROR(MATCH(D80,Simulador!$H$18:$H$19,0))=FALSE,"D","")) ->  | F80: =IF(E80="C",0,IF(E80 ="D",ROUND(1/((1+Simulador!$Q$13)^A80),9) * 2,ROUND(1/((1+Simulador!$Q$13)^A80),9))) -> 0.374446095 | G80: 48.72309789
A81: 78 | B81: 78 | C81: 2031-09-25 | D81: 9 | E81: =IF(ISERROR(MATCH(D81,Simulador!$H$16:$H$17,0))=FALSE,"C",IF(ISERROR(MATCH(D81,Simulador!$H$18:$H$19,0))=FALSE,"D","")) ->  | F81: =IF(E81="C",0,IF(E81 ="D",ROUND(1/((1+Simulador!$Q$13)^A81),9) * 2,ROUND(1/((1+Simulador!$Q$13)^A81),9))) -> 0.369699538 | G81: 49.09279743
A82: 79 | B82: 79 | C82: 2031-10-25 | D82: 10 | E82: =IF(ISERROR(MATCH(D82,Simulador!$H$16:$H$17,0))=FALSE,"C",IF(ISERROR(MATCH(D82,Simulador!$H$18:$H$19,0))=FALSE,"D","")) ->  | F82: =IF(E82="C",0,IF(E82 ="D",ROUND(1/((1+Simulador!$Q$13)^A82),9) * 2,ROUND(1/((1+Simulador!$Q$13)^A82),9))) -> 0.365013148 | G82: 49.45781058
A83: 80 | B83: 80 | C83: 2031-11-25 | D83: 11 | E83: =IF(ISERROR(MATCH(D83,Simulador!$H$16:$H$17,0))=FALSE,"C",IF(ISERROR(MATCH(D83,Simulador!$H$18:$H$19,0))=FALSE,"D","")) ->  | F83: =IF(E83="C",0,IF(E83 ="D",ROUND(1/((1+Simulador!$Q$13)^A83),9) * 2,ROUND(1/((1+Simulador!$Q$13)^A83),9))) -> 0.360386165 | G83: 49.81819674
A84: 81 | B84: 81 | C84: 2031-12-25 | D84: 12 | E84: =IF(ISERROR(MATCH(D84,Simulador!$H$16:$H$17,0))=FALSE,"C",IF(ISERROR(MATCH(D84,Simulador!$H$18:$H$19,0))=FALSE,"D","")) ->  | F84: =IF(E84="C",0,IF(E84 ="D",ROUND(1/((1+Simulador!$Q$13)^A84),9) * 2,ROUND(1/((1+Simulador!$Q$13)^A84),9))) -> 0.355817834 | G84: 50.17401457
A85: 82 | B85: 82 | C85: 2032-01-25 | D85: 1 | E85: =IF(ISERROR(MATCH(D85,Simulador!$H$16:$H$17,0))=FALSE,"C",IF(ISERROR(MATCH(D85,Simulador!$H$18:$H$19,0))=FALSE,"D","")) ->  | F85: =IF(E85="C",0,IF(E85 ="D",ROUND(1/((1+Simulador!$Q$13)^A85),9) * 2,ROUND(1/((1+Simulador!$Q$13)^A85),9))) -> 0.351307412 | G85: 50.52532199
A86: 83 | B86: 83 | C86: 2032-02-25 | D86: 2 | E86: =IF(ISERROR(MATCH(D86,Simulador!$H$16:$H$17,0))=FALSE,"C",IF(ISERROR(MATCH(D86,Simulador!$H$18:$H$19,0))=FALSE,"D","")) ->  | F86: =IF(E86="C",0,IF(E86 ="D",ROUND(1/((1+Simulador!$Q$13)^A86),9) * 2,ROUND(1/((1+Simulador!$Q$13)^A86),9))) -> 0.346854165 | G86: 50.87217615
A87: 84 | B87: 84 | C87: 2032-03-25 | D87: 3 | E87: =IF(ISERROR(MATCH(D87,Simulador!$H$16:$H$17,0))=FALSE,"C",IF(ISERROR(MATCH(D87,Simulador!$H$18:$H$19,0))=FALSE,"D","")) ->  | F87: =IF(E87="C",0,IF(E87 ="D",ROUND(1/((1+Simulador!$Q$13)^A87),9) * 2,ROUND(1/((1+Simulador!$Q$13)^A87),9))) -> 0.342457369 | G87: 51.21463352
A88: 85 | B88: 85 | C88: 2032-04-25 | D88: 4 | E88: =IF(ISERROR(MATCH(D88,Simulador!$H$16:$H$17,0))=FALSE,"C",IF(ISERROR(MATCH(D88,Simulador!$H$18:$H$19,0))=FALSE,"D","")) ->  | F88: =IF(E88="C",0,IF(E88 ="D",ROUND(1/((1+Simulador!$Q$13)^A88),9) * 2,ROUND(1/((1+Simulador!$Q$13)^A88),9))) -> 0.338116307 | G88: 51.55274983
A89: 86 | B89: 86 | C89: 2032-05-25 | D89: 5 | E89: =IF(ISERROR(MATCH(D89,Simulador!$H$16:$H$17,0))=FALSE,"C",IF(ISERROR(MATCH(D89,Simulador!$H$18:$H$19,0))=FALSE,"D","")) ->  | F89: =IF(E89="C",0,IF(E89 ="D",ROUND(1/((1+Simulador!$Q$13)^A89),9) * 2,ROUND(1/((1+Simulador!$Q$13)^A89),9))) -> 0.333830274 | G89: 51.8865801
A90: 87 | B90: 87 | C90: 2032-06-25 | D90: 6 | E90: =IF(ISERROR(MATCH(D90,Simulador!$H$16:$H$17,0))=FALSE,"C",IF(ISERROR(MATCH(D90,Simulador!$H$18:$H$19,0))=FALSE,"D","")) ->  | F90: =IF(E90="C",0,IF(E90 ="D",ROUND(1/((1+Simulador!$Q$13)^A90),9) * 2,ROUND(1/((1+Simulador!$Q$13)^A90),9))) -> 0.329598571 | G90: 52.21617867
A91: 88 | B91: 88 | C91: 2032-07-25 | D91: 7 | E91: =IF(ISERROR(MATCH(D91,Simulador!$H$16:$H$17,0))=FALSE,"C",IF(ISERROR(MATCH(D91,Simulador!$H$18:$H$19,0))=FALSE,"D","")) ->  | F91: =IF(E91="C",0,IF(E91 ="D",ROUND(1/((1+Simulador!$Q$13)^A91),9) * 2,ROUND(1/((1+Simulador!$Q$13)^A91),9))) -> 0.32542051 | G91: 52.54159918
A92: 89 | B92: 89 | C92: 2032-08-25 | D92: 8 | E92: =IF(ISERROR(MATCH(D92,Simulador!$H$16:$H$17,0))=FALSE,"C",IF(ISERROR(MATCH(D92,Simulador!$H$18:$H$19,0))=FALSE,"D","")) ->  | F92: =IF(E92="C",0,IF(E92 ="D",ROUND(1/((1+Simulador!$Q$13)^A92),9) * 2,ROUND(1/((1+Simulador!$Q$13)^A92),9))) -> 0.321295411 | G92: 52.86289459
A93: 90 | B93: 90 | C93: 2032-09-25 | D93: 9 | E93: =IF(ISERROR(MATCH(D93,Simulador!$H$16:$H$17,0))=FALSE,"C",IF(ISERROR(MATCH(D93,Simulador!$H$18:$H$19,0))=FALSE,"D","")) ->  | F93: =IF(E93="C",0,IF(E93 ="D",ROUND(1/((1+Simulador!$Q$13)^A93),9) * 2,ROUND(1/((1+Simulador!$Q$13)^A93),9))) -> 0.317222603 | G93: 53.1801172
A94: 91 | B94: 91 | C94: 2032-10-25 | D94: 10 | E94: =IF(ISERROR(MATCH(D94,Simulador!$H$16:$H$17,0))=FALSE,"C",IF(ISERROR(MATCH(D94,Simulador!$H$18:$H$19,0))=FALSE,"D","")) ->  | F94: =IF(E94="C",0,IF(E94 ="D",ROUND(1/((1+Simulador!$Q$13)^A94),9) * 2,ROUND(1/((1+Simulador!$Q$13)^A94),9))) -> 0.313201422 | G94: 53.49331862
A95: 92 | B95: 92 | C95: 2032-11-25 | D95: 11 | E95: =IF(ISERROR(MATCH(D95,Simulador!$H$16:$H$17,0))=FALSE,"C",IF(ISERROR(MATCH(D95,Simulador!$H$18:$H$19,0))=FALSE,"D","")) ->  | F95: =IF(E95="C",0,IF(E95 ="D",ROUND(1/((1+Simulador!$Q$13)^A95),9) * 2,ROUND(1/((1+Simulador!$Q$13)^A95),9))) -> 0.309231215 | G95: 53.80254983
A96: 93 | B96: 93 | C96: 2032-12-25 | D96: 12 | E96: =IF(ISERROR(MATCH(D96,Simulador!$H$16:$H$17,0))=FALSE,"C",IF(ISERROR(MATCH(D96,Simulador!$H$18:$H$19,0))=FALSE,"D","")) ->  | F96: =IF(E96="C",0,IF(E96 ="D",ROUND(1/((1+Simulador!$Q$13)^A96),9) * 2,ROUND(1/((1+Simulador!$Q$13)^A96),9))) -> 0.305311335 | G96: 54.10786117
A97: 94 | B97: 94 | C97: 2033-01-25 | D97: 1 | E97: =IF(ISERROR(MATCH(D97,Simulador!$H$16:$H$17,0))=FALSE,"C",IF(ISERROR(MATCH(D97,Simulador!$H$18:$H$19,0))=FALSE,"D","")) ->  | F97: =IF(E97="C",0,IF(E97 ="D",ROUND(1/((1+Simulador!$Q$13)^A97),9) * 2,ROUND(1/((1+Simulador!$Q$13)^A97),9))) -> 0.301441144 | G97: 54.40930231
A98: 95 | B98: 95 | C98: 2033-02-25 | D98: 2 | E98: =IF(ISERROR(MATCH(D98,Simulador!$H$16:$H$17,0))=FALSE,"C",IF(ISERROR(MATCH(D98,Simulador!$H$18:$H$19,0))=FALSE,"D","")) ->  | F98: =IF(E98="C",0,IF(E98 ="D",ROUND(1/((1+Simulador!$Q$13)^A98),9) * 2,ROUND(1/((1+Simulador!$Q$13)^A98),9))) -> 0.297620013 | G98: 54.70692233
A99: 96 | B99: 96 | C99: 2033-03-25 | D99: 3 | E99: =IF(ISERROR(MATCH(D99,Simulador!$H$16:$H$17,0))=FALSE,"C",IF(ISERROR(MATCH(D99,Simulador!$H$18:$H$19,0))=FALSE,"D","")) ->  | F99: =IF(E99="C",0,IF(E99 ="D",ROUND(1/((1+Simulador!$Q$13)^A99),9) * 2,ROUND(1/((1+Simulador!$Q$13)^A99),9))) -> 0.293847319 | G99: 55.00076964
A100: 97 | B100: 97 | C100: 2033-04-25 | D100: 4 | E100: =IF(ISERROR(MATCH(D100,Simulador!$H$16:$H$17,0))=FALSE,"C",IF(ISERROR(MATCH(D100,Simulador!$H$18:$H$19,0))=FALSE,"D","")) ->  | F100: =IF(E100="C",0,IF(E100 ="D",ROUND(1/((1+Simulador!$Q$13)^A100),9) * 2,ROUND(1/((1+Simulador!$Q$13)^A100),9))) -> 0.290122448 | G100: 55.29089209
A101: 98 | B101: 98 | C101: 2033-05-25 | D101: 5 | E101: =IF(ISERROR(MATCH(D101,Simulador!$H$16:$H$17,0))=FALSE,"C",IF(ISERROR(MATCH(D101,Simulador!$H$18:$H$19,0))=FALSE,"D","")) ->  | F101: =IF(E101="C",0,IF(E101 ="D",ROUND(1/((1+Simulador!$Q$13)^A101),9) * 2,ROUND(1/((1+Simulador!$Q$13)^A101),9))) -> 0.286444795 | G101: 55.57733689
A102: 99 | B102: 99 | C102: 2033-06-25 | D102: 6 | E102: =IF(ISERROR(MATCH(D102,Simulador!$H$16:$H$17,0))=FALSE,"C",IF(ISERROR(MATCH(D102,Simulador!$H$18:$H$19,0))=FALSE,"D","")) ->  | F102: =IF(E102="C",0,IF(E102 ="D",ROUND(1/((1+Simulador!$Q$13)^A102),9) * 2,ROUND(1/((1+Simulador!$Q$13)^A102),9))) -> 0.28281376 | G102: 55.86015065
A103: 100 | B103: 100 | C103: 2033-07-25 | D103: 7 | E103: =IF(ISERROR(MATCH(D103,Simulador!$H$16:$H$17,0))=FALSE,"C",IF(ISERROR(MATCH(D103,Simulador!$H$18:$H$19,0))=FALSE,"D","")) ->  | F103: =IF(E103="C",0,IF(E103 ="D",ROUND(1/((1+Simulador!$Q$13)^A103),9) * 2,ROUND(1/((1+Simulador!$Q$13)^A103),9))) -> 0.279228753 | G103: 56.1393794
A104: 101 | B104: 101 | C104: 2033-08-25 | D104: 8 | E104: =IF(ISERROR(MATCH(D104,Simulador!$H$16:$H$17,0))=FALSE,"C",IF(ISERROR(MATCH(D104,Simulador!$H$18:$H$19,0))=FALSE,"D","")) ->  | F104: =IF(E104="C",0,IF(E104 ="D",ROUND(1/((1+Simulador!$Q$13)^A104),9) * 2,ROUND(1/((1+Simulador!$Q$13)^A104),9))) -> 0.275689191 | G104: 56.41506859
A105: 102 | B105: 102 | C105: 2033-09-25 | D105: 9 | E105: =IF(ISERROR(MATCH(D105,Simulador!$H$16:$H$17,0))=FALSE,"C",IF(ISERROR(MATCH(D105,Simulador!$H$18:$H$19,0))=FALSE,"D","")) ->  | F105: =IF(E105="C",0,IF(E105 ="D",ROUND(1/((1+Simulador!$Q$13)^A105),9) * 2,ROUND(1/((1+Simulador!$Q$13)^A105),9))) -> 0.272194497 | G105: 56.68726309
A106: 103 | B106: 103 | C106: 2033-10-25 | D106: 10 | E106: =IF(ISERROR(MATCH(D106,Simulador!$H$16:$H$17,0))=FALSE,"C",IF(ISERROR(MATCH(D106,Simulador!$H$18:$H$19,0))=FALSE,"D","")) ->  | F106: =IF(E106="C",0,IF(E106 ="D",ROUND(1/((1+Simulador!$Q$13)^A106),9) * 2,ROUND(1/((1+Simulador!$Q$13)^A106),9))) -> 0.268744102 | G106: 56.95600719
A107: 104 | B107: 104 | C107: 2033-11-25 | D107: 11 | E107: =IF(ISERROR(MATCH(D107,Simulador!$H$16:$H$17,0))=FALSE,"C",IF(ISERROR(MATCH(D107,Simulador!$H$18:$H$19,0))=FALSE,"D","")) ->  | F107: =IF(E107="C",0,IF(E107 ="D",ROUND(1/((1+Simulador!$Q$13)^A107),9) * 2,ROUND(1/((1+Simulador!$Q$13)^A107),9))) -> 0.265337445 | G107: 57.22134464
A108: 105 | B108: 105 | C108: 2033-12-25 | D108: 12 | E108: =IF(ISERROR(MATCH(D108,Simulador!$H$16:$H$17,0))=FALSE,"C",IF(ISERROR(MATCH(D108,Simulador!$H$18:$H$19,0))=FALSE,"D","")) ->  | F108: =IF(E108="C",0,IF(E108 ="D",ROUND(1/((1+Simulador!$Q$13)^A108),9) * 2,ROUND(1/((1+Simulador!$Q$13)^A108),9))) -> 0.261973972 | G108: 57.48331861
A109: 106 | B109: 106 | C109: 2034-01-25 | D109: 1 | E109: =IF(ISERROR(MATCH(D109,Simulador!$H$16:$H$17,0))=FALSE,"C",IF(ISERROR(MATCH(D109,Simulador!$H$18:$H$19,0))=FALSE,"D","")) ->  | F109: =IF(E109="C",0,IF(E109 ="D",ROUND(1/((1+Simulador!$Q$13)^A109),9) * 2,ROUND(1/((1+Simulador!$Q$13)^A109),9))) -> 0.258653134 | G109: 57.74197174
A110: 107 | B110: 107 | C110: 2034-02-25 | D110: 2 | E110: =IF(ISERROR(MATCH(D110,Simulador!$H$16:$H$17,0))=FALSE,"C",IF(ISERROR(MATCH(D110,Simulador!$H$18:$H$19,0))=FALSE,"D","")) ->  | F110: =IF(E110="C",0,IF(E110 ="D",ROUND(1/((1+Simulador!$Q$13)^A110),9) * 2,ROUND(1/((1+Simulador!$Q$13)^A110),9))) -> 0.255374393 | G110: 57.99734613
A111: 108 | B111: 108 | C111: 2034-03-25 | D111: 3 | E111: =IF(ISERROR(MATCH(D111,Simulador!$H$16:$H$17,0))=FALSE,"C",IF(ISERROR(MATCH(D111,Simulador!$H$18:$H$19,0))=FALSE,"D","")) ->  | F111: =IF(E111="C",0,IF(E111 ="D",ROUND(1/((1+Simulador!$Q$13)^A111),9) * 2,ROUND(1/((1+Simulador!$Q$13)^A111),9))) -> 0.252137213 | G111: 58.24948335
A112: 109 | B112: 109 | C112: 2034-04-25 | D112: 4 | E112: =IF(ISERROR(MATCH(D112,Simulador!$H$16:$H$17,0))=FALSE,"C",IF(ISERROR(MATCH(D112,Simulador!$H$18:$H$19,0))=FALSE,"D","")) ->  | F112: =IF(E112="C",0,IF(E112 ="D",ROUND(1/((1+Simulador!$Q$13)^A112),9) * 2,ROUND(1/((1+Simulador!$Q$13)^A112),9))) -> 0.248941069 | G112: 58.49842442
A113: 110 | B113: 110 | C113: 2034-05-25 | D113: 5 | E113: =IF(ISERROR(MATCH(D113,Simulador!$H$16:$H$17,0))=FALSE,"C",IF(ISERROR(MATCH(D113,Simulador!$H$18:$H$19,0))=FALSE,"D","")) ->  | F113: =IF(E113="C",0,IF(E113 ="D",ROUND(1/((1+Simulador!$Q$13)^A113),9) * 2,ROUND(1/((1+Simulador!$Q$13)^A113),9))) -> 0.245785439 | G113: 58.74420986
A114: 111 | B114: 111 | C114: 2034-06-25 | D114: 6 | E114: =IF(ISERROR(MATCH(D114,Simulador!$H$16:$H$17,0))=FALSE,"C",IF(ISERROR(MATCH(D114,Simulador!$H$18:$H$19,0))=FALSE,"D","")) ->  | F114: =IF(E114="C",0,IF(E114 ="D",ROUND(1/((1+Simulador!$Q$13)^A114),9) * 2,ROUND(1/((1+Simulador!$Q$13)^A114),9))) -> 0.242669811 | G114: 58.98687967
A115: 112 | B115: 112 | C115: 2034-07-25 | D115: 7 | E115: =IF(ISERROR(MATCH(D115,Simulador!$H$16:$H$17,0))=FALSE,"C",IF(ISERROR(MATCH(D115,Simulador!$H$18:$H$19,0))=FALSE,"D","")) ->  | F115: =IF(E115="C",0,IF(E115 ="D",ROUND(1/((1+Simulador!$Q$13)^A115),9) * 2,ROUND(1/((1+Simulador!$Q$13)^A115),9))) -> 0.239593678 | G115: 59.22647334
A116: 113 | B116: 113 | C116: 2034-08-25 | D116: 8 | E116: =IF(ISERROR(MATCH(D116,Simulador!$H$16:$H$17,0))=FALSE,"C",IF(ISERROR(MATCH(D116,Simulador!$H$18:$H$19,0))=FALSE,"D","")) ->  | F116: =IF(E116="C",0,IF(E116 ="D",ROUND(1/((1+Simulador!$Q$13)^A116),9) * 2,ROUND(1/((1+Simulador!$Q$13)^A116),9))) -> 0.236556538 | G116: 59.46302988
A117: 114 | B117: 114 | C117: 2034-09-25 | D117: 9 | E117: =IF(ISERROR(MATCH(D117,Simulador!$H$16:$H$17,0))=FALSE,"C",IF(ISERROR(MATCH(D117,Simulador!$H$18:$H$19,0))=FALSE,"D","")) ->  | F117: =IF(E117="C",0,IF(E117 ="D",ROUND(1/((1+Simulador!$Q$13)^A117),9) * 2,ROUND(1/((1+Simulador!$Q$13)^A117),9))) -> 0.233557897 | G117: 59.69658778
A118: 115 | B118: 115 | C118: 2034-10-25 | D118: 10 | E118: =IF(ISERROR(MATCH(D118,Simulador!$H$16:$H$17,0))=FALSE,"C",IF(ISERROR(MATCH(D118,Simulador!$H$18:$H$19,0))=FALSE,"D","")) ->  | F118: =IF(E118="C",0,IF(E118 ="D",ROUND(1/((1+Simulador!$Q$13)^A118),9) * 2,ROUND(1/((1+Simulador!$Q$13)^A118),9))) -> 0.230597268 | G118: 59.92718505
A119: 116 | B119: 116 | C119: 2034-11-25 | D119: 11 | E119: =IF(ISERROR(MATCH(D119,Simulador!$H$16:$H$17,0))=FALSE,"C",IF(ISERROR(MATCH(D119,Simulador!$H$18:$H$19,0))=FALSE,"D","")) ->  | F119: =IF(E119="C",0,IF(E119 ="D",ROUND(1/((1+Simulador!$Q$13)^A119),9) * 2,ROUND(1/((1+Simulador!$Q$13)^A119),9))) -> 0.227674169 | G119: 60.15485922
A120: 117 | B120: 117 | C120: 2034-12-25 | D120: 12 | E120: =IF(ISERROR(MATCH(D120,Simulador!$H$16:$H$17,0))=FALSE,"C",IF(ISERROR(MATCH(D120,Simulador!$H$18:$H$19,0))=FALSE,"D","")) ->  | F120: =IF(E120="C",0,IF(E120 ="D",ROUND(1/((1+Simulador!$Q$13)^A120),9) * 2,ROUND(1/((1+Simulador!$Q$13)^A120),9))) -> 0.224788123 | G120: 60.37964734
A121: 118 | B121: 118 | C121: 2035-01-25 | D121: 1 | E121: =IF(ISERROR(MATCH(D121,Simulador!$H$16:$H$17,0))=FALSE,"C",IF(ISERROR(MATCH(D121,Simulador!$H$18:$H$19,0))=FALSE,"D","")) ->  | F121: =IF(E121="C",0,IF(E121 ="D",ROUND(1/((1+Simulador!$Q$13)^A121),9) * 2,ROUND(1/((1+Simulador!$Q$13)^A121),9))) -> 0.221938661 | G121: 60.601586
A122: 119 | B122: 119 | C122: 2035-02-25 | D122: 2 | E122: =IF(ISERROR(MATCH(D122,Simulador!$H$16:$H$17,0))=FALSE,"C",IF(ISERROR(MATCH(D122,Simulador!$H$18:$H$19,0))=FALSE,"D","")) ->  | F122: =IF(E122="C",0,IF(E122 ="D",ROUND(1/((1+Simulador!$Q$13)^A122),9) * 2,ROUND(1/((1+Simulador!$Q$13)^A122),9))) -> 0.21912532 | G122: 60.82071132
A123: 120 | B123: 120 | C123: 2035-03-25 | D123: 3 | E123: =IF(ISERROR(MATCH(D123,Simulador!$H$16:$H$17,0))=FALSE,"C",IF(ISERROR(MATCH(D123,Simulador!$H$18:$H$19,0))=FALSE,"D","")) ->  | F123: =IF(E123="C",0,IF(E123 ="D",ROUND(1/((1+Simulador!$Q$13)^A123),9) * 2,ROUND(1/((1+Simulador!$Q$13)^A123),9))) -> 0.216347641 | G123: 61.03705896
A124: 121 | B124: 121 | C124: 2035-04-25 | D124: 4 | E124: =IF(ISERROR(MATCH(D124,Simulador!$H$16:$H$17,0))=FALSE,"C",IF(ISERROR(MATCH(D124,Simulador!$H$18:$H$19,0))=FALSE,"D","")) ->  | F124: =IF(E124="C",0,IF(E124 ="D",ROUND(1/((1+Simulador!$Q$13)^A124),9) * 2,ROUND(1/((1+Simulador!$Q$13)^A124),9))) -> 0.213605173 | G124: 61.25066413
A125: 122 | B125: 122 | C125: 2035-05-25 | D125: 5 | E125: =IF(ISERROR(MATCH(D125,Simulador!$H$16:$H$17,0))=FALSE,"C",IF(ISERROR(MATCH(D125,Simulador!$H$18:$H$19,0))=FALSE,"D","")) ->  | F125: =IF(E125="C",0,IF(E125 ="D",ROUND(1/((1+Simulador!$Q$13)^A125),9) * 2,ROUND(1/((1+Simulador!$Q$13)^A125),9))) -> 0.210897469 | G125: 61.4615616
A126: 123 | B126: 123 | C126: 2035-06-25 | D126: 6 | E126: =IF(ISERROR(MATCH(D126,Simulador!$H$16:$H$17,0))=FALSE,"C",IF(ISERROR(MATCH(D126,Simulador!$H$18:$H$19,0))=FALSE,"D","")) ->  | F126: =IF(E126="C",0,IF(E126 ="D",ROUND(1/((1+Simulador!$Q$13)^A126),9) * 2,ROUND(1/((1+Simulador!$Q$13)^A126),9))) -> 0.208224088 | G126: 61.66978569
A127: 124 | B127: 124 | C127: 2035-07-25 | D127: 7 | E127: =IF(ISERROR(MATCH(D127,Simulador!$H$16:$H$17,0))=FALSE,"C",IF(ISERROR(MATCH(D127,Simulador!$H$18:$H$19,0))=FALSE,"D","")) ->  | F127: =IF(E127="C",0,IF(E127 ="D",ROUND(1/((1+Simulador!$Q$13)^A127),9) * 2,ROUND(1/((1+Simulador!$Q$13)^A127),9))) -> 0.205584596 | G127: 61.87537029
A128: 125 | B128: 125 | C128: 2035-08-25 | D128: 8 | E128: =IF(ISERROR(MATCH(D128,Simulador!$H$16:$H$17,0))=FALSE,"C",IF(ISERROR(MATCH(D128,Simulador!$H$18:$H$19,0))=FALSE,"D","")) ->  | F128: =IF(E128="C",0,IF(E128 ="D",ROUND(1/((1+Simulador!$Q$13)^A128),9) * 2,ROUND(1/((1+Simulador!$Q$13)^A128),9))) -> 0.202978562 | G128: 62.07834885
A129: 126 | B129: 126 | C129: 2035-09-25 | D129: 9 | E129: =IF(ISERROR(MATCH(D129,Simulador!$H$16:$H$17,0))=FALSE,"C",IF(ISERROR(MATCH(D129,Simulador!$H$18:$H$19,0))=FALSE,"D","")) ->  | F129: =IF(E129="C",0,IF(E129 ="D",ROUND(1/((1+Simulador!$Q$13)^A129),9) * 2,ROUND(1/((1+Simulador!$Q$13)^A129),9))) -> 0.200405563 | G129: 62.27875441
A130: 127 | B130: 127 | C130: 2035-10-25 | D130: 10 | E130: =IF(ISERROR(MATCH(D130,Simulador!$H$16:$H$17,0))=FALSE,"C",IF(ISERROR(MATCH(D130,Simulador!$H$18:$H$19,0))=FALSE,"D","")) ->  | F130: =IF(E130="C",0,IF(E130 ="D",ROUND(1/((1+Simulador!$Q$13)^A130),9) * 2,ROUND(1/((1+Simulador!$Q$13)^A130),9))) -> 0.19786518 | G130: 62.47661959
A131: 128 | B131: 128 | C131: 2035-11-25 | D131: 11 | E131: =IF(ISERROR(MATCH(D131,Simulador!$H$16:$H$17,0))=FALSE,"C",IF(ISERROR(MATCH(D131,Simulador!$H$18:$H$19,0))=FALSE,"D","")) ->  | F131: =IF(E131="C",0,IF(E131 ="D",ROUND(1/((1+Simulador!$Q$13)^A131),9) * 2,ROUND(1/((1+Simulador!$Q$13)^A131),9))) -> 0.195356999 | G131: 62.67197659
A132: 129 | B132: 129 | C132: 2035-12-25 | D132: =MONTH(C132) -> 12 | E132: =IF(ISERROR(MATCH(D132,Simulador!$H$16:$H$17,0))=FALSE,"C",IF(ISERROR(MATCH(D132,Simulador!$H$18:$H$19,0))=FALSE,"D","")) ->  | F132: =IF(E132="C",0,IF(E132 ="D",ROUND(1/((1+Simulador!$Q$13)^A132),9) * 2,ROUND(1/((1+Simulador!$Q$13)^A132),9))) -> 0.192880613 | G132: 62.8648572
A133: =A132+1 -> 130 | B133: =IF(E133<>"C",IF(ISERROR(1+B132)=TRUE,1,1+B132),IF(ISNUMBER(B132),B132,1)) -> 130 | C133: =DATE(YEAR(C132) + 1/12,MONTH(C132)+1,DAY(C132)) -> 2036-01-25 | D133: 1 | E133: =IF(ISERROR(MATCH(D133,Simulador!$H$16:$H$17,0))=FALSE,"C",IF(ISERROR(MATCH(D133,Simulador!$H$18:$H$19,0))=FALSE,"D","")) ->  | F133: =IF(E133="C",0,IF(E133 ="D",ROUND(1/((1+Simulador!$Q$13)^A133),9) * 2,ROUND(1/((1+Simulador!$Q$13)^A133),9))) -> 0.190435618 | G133: 63.05529282
A134: 131 | B134: 131 | C134: 2036-02-25 | D134: 2 | E134: =IF(ISERROR(MATCH(D134,Simulador!$H$16:$H$17,0))=FALSE,"C",IF(ISERROR(MATCH(D134,Simulador!$H$18:$H$19,0))=FALSE,"D","")) ->  | F134: =IF(E134="C",0,IF(E134 ="D",ROUND(1/((1+Simulador!$Q$13)^A134),9) * 2,ROUND(1/((1+Simulador!$Q$13)^A134),9))) -> 0.188021616 | G134: =G133+ROUND(F134,9) -> 63.24331444
A135: 132 | B135: 132 | C135: 2036-03-25 | D135: 3 | E135: =IF(ISERROR(MATCH(D135,Simulador!$H$16:$H$17,0))=FALSE,"C",IF(ISERROR(MATCH(D135,Simulador!$H$18:$H$19,0))=FALSE,"D","")) ->  | F135: =IF(E135="C",0,IF(E135 ="D",ROUND(1/((1+Simulador!$Q$13)^A135),9) * 2,ROUND(1/((1+Simulador!$Q$13)^A135),9))) -> 0.185638214 | G135: 63.42895265
A136: 133 | B136: 133 | C136: 2036-04-25 | D136: 4 | E136: =IF(ISERROR(MATCH(D136,Simulador!$H$16:$H$17,0))=FALSE,"C",IF(ISERROR(MATCH(D136,Simulador!$H$18:$H$19,0))=FALSE,"D","")) ->  | F136: =IF(E136="C",0,IF(E136 ="D",ROUND(1/((1+Simulador!$Q$13)^A136),9) * 2,ROUND(1/((1+Simulador!$Q$13)^A136),9))) -> 0.183285025 | G136: 63.61223768
A137: 134 | B137: 134 | C137: 2036-05-25 | D137: 5 | E137: =IF(ISERROR(MATCH(D137,Simulador!$H$16:$H$17,0))=FALSE,"C",IF(ISERROR(MATCH(D137,Simulador!$H$18:$H$19,0))=FALSE,"D","")) ->  | F137: =IF(E137="C",0,IF(E137 ="D",ROUND(1/((1+Simulador!$Q$13)^A137),9) * 2,ROUND(1/((1+Simulador!$Q$13)^A137),9))) -> 0.180961665 | G137: 63.79319934
A138: 135 | B138: 135 | C138: 2036-06-25 | D138: 6 | E138: =IF(ISERROR(MATCH(D138,Simulador!$H$16:$H$17,0))=FALSE,"C",IF(ISERROR(MATCH(D138,Simulador!$H$18:$H$19,0))=FALSE,"D","")) ->  | F138: =IF(E138="C",0,IF(E138 ="D",ROUND(1/((1+Simulador!$Q$13)^A138),9) * 2,ROUND(1/((1+Simulador!$Q$13)^A138),9))) -> 0.178667757 | G138: 63.9718671
A139: 136 | B139: 136 | C139: 2036-07-25 | D139: 7 | E139: =IF(ISERROR(MATCH(D139,Simulador!$H$16:$H$17,0))=FALSE,"C",IF(ISERROR(MATCH(D139,Simulador!$H$18:$H$19,0))=FALSE,"D","")) ->  | F139: =IF(E139="C",0,IF(E139 ="D",ROUND(1/((1+Simulador!$Q$13)^A139),9) * 2,ROUND(1/((1+Simulador!$Q$13)^A139),9))) -> 0.176402927 | G139: 64.14827003
A140: 137 | B140: 137 | C140: 2036-08-25 | D140: 8 | E140: =IF(ISERROR(MATCH(D140,Simulador!$H$16:$H$17,0))=FALSE,"C",IF(ISERROR(MATCH(D140,Simulador!$H$18:$H$19,0))=FALSE,"D","")) ->  | F140: =IF(E140="C",0,IF(E140 ="D",ROUND(1/((1+Simulador!$Q$13)^A140),9) * 2,ROUND(1/((1+Simulador!$Q$13)^A140),9))) -> 0.174166806 | G140: 64.32243683
A141: 138 | B141: 138 | C141: 2036-09-25 | D141: 9 | E141: =IF(ISERROR(MATCH(D141,Simulador!$H$16:$H$17,0))=FALSE,"C",IF(ISERROR(MATCH(D141,Simulador!$H$18:$H$19,0))=FALSE,"D","")) ->  | F141: =IF(E141="C",0,IF(E141 ="D",ROUND(1/((1+Simulador!$Q$13)^A141),9) * 2,ROUND(1/((1+Simulador!$Q$13)^A141),9))) -> 0.171959031 | G141: 64.49439586
A142: 139 | B142: 139 | C142: 2036-10-25 | D142: 10 | E142: =IF(ISERROR(MATCH(D142,Simulador!$H$16:$H$17,0))=FALSE,"C",IF(ISERROR(MATCH(D142,Simulador!$H$18:$H$19,0))=FALSE,"D","")) ->  | F142: =IF(E142="C",0,IF(E142 ="D",ROUND(1/((1+Simulador!$Q$13)^A142),9) * 2,ROUND(1/((1+Simulador!$Q$13)^A142),9))) -> 0.169779242 | G142: 64.66417511
A143: 140 | B143: 140 | C143: 2036-11-25 | D143: 11 | E143: =IF(ISERROR(MATCH(D143,Simulador!$H$16:$H$17,0))=FALSE,"C",IF(ISERROR(MATCH(D143,Simulador!$H$18:$H$19,0))=FALSE,"D","")) ->  | F143: =IF(E143="C",0,IF(E143 ="D",ROUND(1/((1+Simulador!$Q$13)^A143),9) * 2,ROUND(1/((1+Simulador!$Q$13)^A143),9))) -> 0.167627085 | G143: 64.83180219
A144: 141 | B144: 141 | C144: 2036-12-25 | D144: 12 | E144: =IF(ISERROR(MATCH(D144,Simulador!$H$16:$H$17,0))=FALSE,"C",IF(ISERROR(MATCH(D144,Simulador!$H$18:$H$19,0))=FALSE,"D","")) ->  | F144: =IF(E144="C",0,IF(E144 ="D",ROUND(1/((1+Simulador!$Q$13)^A144),9) * 2,ROUND(1/((1+Simulador!$Q$13)^A144),9))) -> 0.165502209 | G144: 64.9973044
A145: 142 | B145: 142 | C145: 2037-01-25 | D145: 1 | E145: =IF(ISERROR(MATCH(D145,Simulador!$H$16:$H$17,0))=FALSE,"C",IF(ISERROR(MATCH(D145,Simulador!$H$18:$H$19,0))=FALSE,"D","")) ->  | F145: =IF(E145="C",0,IF(E145 ="D",ROUND(1/((1+Simulador!$Q$13)^A145),9) * 2,ROUND(1/((1+Simulador!$Q$13)^A145),9))) -> 0.163404268 | G145: 65.16070867
A146: 143 | B146: 143 | C146: 2037-02-25 | D146: 2 | E146: =IF(ISERROR(MATCH(D146,Simulador!$H$16:$H$17,0))=FALSE,"C",IF(ISERROR(MATCH(D146,Simulador!$H$18:$H$19,0))=FALSE,"D","")) ->  | F146: =IF(E146="C",0,IF(E146 ="D",ROUND(1/((1+Simulador!$Q$13)^A146),9) * 2,ROUND(1/((1+Simulador!$Q$13)^A146),9))) -> 0.161332921 | G146: 65.32204159
A147: 144 | B147: 144 | C147: 2037-03-25 | D147: 3 | E147: =IF(ISERROR(MATCH(D147,Simulador!$H$16:$H$17,0))=FALSE,"C",IF(ISERROR(MATCH(D147,Simulador!$H$18:$H$19,0))=FALSE,"D","")) ->  | F147: =IF(E147="C",0,IF(E147 ="D",ROUND(1/((1+Simulador!$Q$13)^A147),9) * 2,ROUND(1/((1+Simulador!$Q$13)^A147),9))) -> 0.159287831 | G147: 65.48132942
A148: 145 | B148: 145 | C148: 2037-04-25 | D148: 4 | E148: =IF(ISERROR(MATCH(D148,Simulador!$H$16:$H$17,0))=FALSE,"C",IF(ISERROR(MATCH(D148,Simulador!$H$18:$H$19,0))=FALSE,"D","")) ->  | F148: =IF(E148="C",0,IF(E148 ="D",ROUND(1/((1+Simulador!$Q$13)^A148),9) * 2,ROUND(1/((1+Simulador!$Q$13)^A148),9))) -> 0.157268665 | G148: 65.63859808
A149: 146 | B149: 146 | C149: 2037-05-25 | D149: 5 | E149: =IF(ISERROR(MATCH(D149,Simulador!$H$16:$H$17,0))=FALSE,"C",IF(ISERROR(MATCH(D149,Simulador!$H$18:$H$19,0))=FALSE,"D","")) ->  | F149: =IF(E149="C",0,IF(E149 ="D",ROUND(1/((1+Simulador!$Q$13)^A149),9) * 2,ROUND(1/((1+Simulador!$Q$13)^A149),9))) -> 0.155275094 | G149: 65.79387318
A150: 147 | B150: 147 | C150: 2037-06-25 | D150: 6 | E150: =IF(ISERROR(MATCH(D150,Simulador!$H$16:$H$17,0))=FALSE,"C",IF(ISERROR(MATCH(D150,Simulador!$H$18:$H$19,0))=FALSE,"D","")) ->  | F150: =IF(E150="C",0,IF(E150 ="D",ROUND(1/((1+Simulador!$Q$13)^A150),9) * 2,ROUND(1/((1+Simulador!$Q$13)^A150),9))) -> 0.153306794 | G150: 65.94717997
A151: 148 | B151: 148 | C151: 2037-07-25 | D151: 7 | E151: =IF(ISERROR(MATCH(D151,Simulador!$H$16:$H$17,0))=FALSE,"C",IF(ISERROR(MATCH(D151,Simulador!$H$18:$H$19,0))=FALSE,"D","")) ->  | F151: =IF(E151="C",0,IF(E151 ="D",ROUND(1/((1+Simulador!$Q$13)^A151),9) * 2,ROUND(1/((1+Simulador!$Q$13)^A151),9))) -> 0.151363445 | G151: 66.09854342
A152: 149 | B152: 149 | C152: 2037-08-25 | D152: 8 | E152: =IF(ISERROR(MATCH(D152,Simulador!$H$16:$H$17,0))=FALSE,"C",IF(ISERROR(MATCH(D152,Simulador!$H$18:$H$19,0))=FALSE,"D","")) ->  | F152: =IF(E152="C",0,IF(E152 ="D",ROUND(1/((1+Simulador!$Q$13)^A152),9) * 2,ROUND(1/((1+Simulador!$Q$13)^A152),9))) -> 0.14944473 | G152: 66.24798815
A153: 150 | B153: 150 | C153: 2037-09-25 | D153: 9 | E153: =IF(ISERROR(MATCH(D153,Simulador!$H$16:$H$17,0))=FALSE,"C",IF(ISERROR(MATCH(D153,Simulador!$H$18:$H$19,0))=FALSE,"D","")) ->  | F153: =IF(E153="C",0,IF(E153 ="D",ROUND(1/((1+Simulador!$Q$13)^A153),9) * 2,ROUND(1/((1+Simulador!$Q$13)^A153),9))) -> 0.147550337 | G153: 66.39553848
A154: 151 | B154: 151 | C154: 2037-10-25 | D154: 10 | E154: =IF(ISERROR(MATCH(D154,Simulador!$H$16:$H$17,0))=FALSE,"C",IF(ISERROR(MATCH(D154,Simulador!$H$18:$H$19,0))=FALSE,"D","")) ->  | F154: =IF(E154="C",0,IF(E154 ="D",ROUND(1/((1+Simulador!$Q$13)^A154),9) * 2,ROUND(1/((1+Simulador!$Q$13)^A154),9))) -> 0.145679958 | G154: 66.54121844
A155: 152 | B155: 152 | C155: 2037-11-25 | D155: 11 | E155: =IF(ISERROR(MATCH(D155,Simulador!$H$16:$H$17,0))=FALSE,"C",IF(ISERROR(MATCH(D155,Simulador!$H$18:$H$19,0))=FALSE,"D","")) ->  | F155: =IF(E155="C",0,IF(E155 ="D",ROUND(1/((1+Simulador!$Q$13)^A155),9) * 2,ROUND(1/((1+Simulador!$Q$13)^A155),9))) -> 0.143833288 | G155: 66.68505173
A156: 153 | B156: 153 | C156: 2037-12-25 | D156: 12 | E156: =IF(ISERROR(MATCH(D156,Simulador!$H$16:$H$17,0))=FALSE,"C",IF(ISERROR(MATCH(D156,Simulador!$H$18:$H$19,0))=FALSE,"D","")) ->  | F156: =IF(E156="C",0,IF(E156 ="D",ROUND(1/((1+Simulador!$Q$13)^A156),9) * 2,ROUND(1/((1+Simulador!$Q$13)^A156),9))) -> 0.142010027 | G156: 66.82706176
A157: 154 | B157: 154 | C157: 2038-01-25 | D157: 1 | E157: =IF(ISERROR(MATCH(D157,Simulador!$H$16:$H$17,0))=FALSE,"C",IF(ISERROR(MATCH(D157,Simulador!$H$18:$H$19,0))=FALSE,"D","")) ->  | F157: =IF(E157="C",0,IF(E157 ="D",ROUND(1/((1+Simulador!$Q$13)^A157),9) * 2,ROUND(1/((1+Simulador!$Q$13)^A157),9))) -> 0.140209878 | G157: 66.96727164
A158: 155 | B158: 155 | C158: 2038-02-25 | D158: 2 | E158: =IF(ISERROR(MATCH(D158,Simulador!$H$16:$H$17,0))=FALSE,"C",IF(ISERROR(MATCH(D158,Simulador!$H$18:$H$19,0))=FALSE,"D","")) ->  | F158: =IF(E158="C",0,IF(E158 ="D",ROUND(1/((1+Simulador!$Q$13)^A158),9) * 2,ROUND(1/((1+Simulador!$Q$13)^A158),9))) -> 0.138432548 | G158: 67.10570418
A159: 156 | B159: 156 | C159: 2038-03-25 | D159: 3 | E159: =IF(ISERROR(MATCH(D159,Simulador!$H$16:$H$17,0))=FALSE,"C",IF(ISERROR(MATCH(D159,Simulador!$H$18:$H$19,0))=FALSE,"D","")) ->  | F159: =IF(E159="C",0,IF(E159 ="D",ROUND(1/((1+Simulador!$Q$13)^A159),9) * 2,ROUND(1/((1+Simulador!$Q$13)^A159),9))) -> 0.136677748 | G159: 67.24238193
A160: 157 | B160: 157 | C160: 2038-04-25 | D160: 4 | E160: =IF(ISERROR(MATCH(D160,Simulador!$H$16:$H$17,0))=FALSE,"C",IF(ISERROR(MATCH(D160,Simulador!$H$18:$H$19,0))=FALSE,"D","")) ->  | F160: =IF(E160="C",0,IF(E160 ="D",ROUND(1/((1+Simulador!$Q$13)^A160),9) * 2,ROUND(1/((1+Simulador!$Q$13)^A160),9))) -> 0.134945192 | G160: 67.37732712
A161: 158 | B161: 158 | C161: 2038-05-25 | D161: 5 | E161: =IF(ISERROR(MATCH(D161,Simulador!$H$16:$H$17,0))=FALSE,"C",IF(ISERROR(MATCH(D161,Simulador!$H$18:$H$19,0))=FALSE,"D","")) ->  | F161: =IF(E161="C",0,IF(E161 ="D",ROUND(1/((1+Simulador!$Q$13)^A161),9) * 2,ROUND(1/((1+Simulador!$Q$13)^A161),9))) -> 0.133234598 | G161: 67.51056172
A162: 159 | B162: 159 | C162: 2038-06-25 | D162: 6 | E162: =IF(ISERROR(MATCH(D162,Simulador!$H$16:$H$17,0))=FALSE,"C",IF(ISERROR(MATCH(D162,Simulador!$H$18:$H$19,0))=FALSE,"D","")) ->  | F162: =IF(E162="C",0,IF(E162 ="D",ROUND(1/((1+Simulador!$Q$13)^A162),9) * 2,ROUND(1/((1+Simulador!$Q$13)^A162),9))) -> 0.131545689 | G162: 67.64210741
A163: 160 | B163: 160 | C163: 2038-07-25 | D163: 7 | E163: =IF(ISERROR(MATCH(D163,Simulador!$H$16:$H$17,0))=FALSE,"C",IF(ISERROR(MATCH(D163,Simulador!$H$18:$H$19,0))=FALSE,"D","")) ->  | F163: =IF(E163="C",0,IF(E163 ="D",ROUND(1/((1+Simulador!$Q$13)^A163),9) * 2,ROUND(1/((1+Simulador!$Q$13)^A163),9))) -> 0.129878188 | G163: 67.7719856
A164: 161 | B164: 161 | C164: 2038-08-25 | D164: 8 | E164: =IF(ISERROR(MATCH(D164,Simulador!$H$16:$H$17,0))=FALSE,"C",IF(ISERROR(MATCH(D164,Simulador!$H$18:$H$19,0))=FALSE,"D","")) ->  | F164: =IF(E164="C",0,IF(E164 ="D",ROUND(1/((1+Simulador!$Q$13)^A164),9) * 2,ROUND(1/((1+Simulador!$Q$13)^A164),9))) -> 0.128231824 | G164: 67.90021742
A165: 162 | B165: 162 | C165: 2038-09-25 | D165: 9 | E165: =IF(ISERROR(MATCH(D165,Simulador!$H$16:$H$17,0))=FALSE,"C",IF(ISERROR(MATCH(D165,Simulador!$H$18:$H$19,0))=FALSE,"D","")) ->  | F165: =IF(E165="C",0,IF(E165 ="D",ROUND(1/((1+Simulador!$Q$13)^A165),9) * 2,ROUND(1/((1+Simulador!$Q$13)^A165),9))) -> 0.126606331 | G165: 68.02682375
A166: 163 | B166: 163 | C166: 2038-10-25 | D166: 10 | E166: =IF(ISERROR(MATCH(D166,Simulador!$H$16:$H$17,0))=FALSE,"C",IF(ISERROR(MATCH(D166,Simulador!$H$18:$H$19,0))=FALSE,"D","")) ->  | F166: =IF(E166="C",0,IF(E166 ="D",ROUND(1/((1+Simulador!$Q$13)^A166),9) * 2,ROUND(1/((1+Simulador!$Q$13)^A166),9))) -> 0.125001442 | G166: 68.1518252
A167: 164 | B167: 164 | C167: 2038-11-25 | D167: 11 | E167: =IF(ISERROR(MATCH(D167,Simulador!$H$16:$H$17,0))=FALSE,"C",IF(ISERROR(MATCH(D167,Simulador!$H$18:$H$19,0))=FALSE,"D","")) ->  | F167: =IF(E167="C",0,IF(E167 ="D",ROUND(1/((1+Simulador!$Q$13)^A167),9) * 2,ROUND(1/((1+Simulador!$Q$13)^A167),9))) -> 0.123416898 | G167: 68.27524209
A168: 165 | B168: 165 | C168: 2038-12-25 | D168: 12 | E168: =IF(ISERROR(MATCH(D168,Simulador!$H$16:$H$17,0))=FALSE,"C",IF(ISERROR(MATCH(D168,Simulador!$H$18:$H$19,0))=FALSE,"D","")) ->  | F168: =IF(E168="C",0,IF(E168 ="D",ROUND(1/((1+Simulador!$Q$13)^A168),9) * 2,ROUND(1/((1+Simulador!$Q$13)^A168),9))) -> 0.121852439 | G168: 68.39709453
A169: 166 | B169: 166 | C169: 2039-01-25 | D169: 1 | E169: =IF(ISERROR(MATCH(D169,Simulador!$H$16:$H$17,0))=FALSE,"C",IF(ISERROR(MATCH(D169,Simulador!$H$18:$H$19,0))=FALSE,"D","")) ->  | F169: =IF(E169="C",0,IF(E169 ="D",ROUND(1/((1+Simulador!$Q$13)^A169),9) * 2,ROUND(1/((1+Simulador!$Q$13)^A169),9))) -> 0.120307812 | G169: 68.51740234
A170: 167 | B170: 167 | C170: 2039-02-25 | D170: 2 | E170: =IF(ISERROR(MATCH(D170,Simulador!$H$16:$H$17,0))=FALSE,"C",IF(ISERROR(MATCH(D170,Simulador!$H$18:$H$19,0))=FALSE,"D","")) ->  | F170: =IF(E170="C",0,IF(E170 ="D",ROUND(1/((1+Simulador!$Q$13)^A170),9) * 2,ROUND(1/((1+Simulador!$Q$13)^A170),9))) -> 0.118782765 | G170: 68.63618511
A171: 168 | B171: 168 | C171: 2039-03-25 | D171: 3 | E171: =IF(ISERROR(MATCH(D171,Simulador!$H$16:$H$17,0))=FALSE,"C",IF(ISERROR(MATCH(D171,Simulador!$H$18:$H$19,0))=FALSE,"D","")) ->  | F171: =IF(E171="C",0,IF(E171 ="D",ROUND(1/((1+Simulador!$Q$13)^A171),9) * 2,ROUND(1/((1+Simulador!$Q$13)^A171),9))) -> 0.117277049 | G171: 68.75346216
A172: 169 | B172: 169 | C172: 2039-04-25 | D172: 4 | E172: =IF(ISERROR(MATCH(D172,Simulador!$H$16:$H$17,0))=FALSE,"C",IF(ISERROR(MATCH(D172,Simulador!$H$18:$H$19,0))=FALSE,"D","")) ->  | F172: =IF(E172="C",0,IF(E172 ="D",ROUND(1/((1+Simulador!$Q$13)^A172),9) * 2,ROUND(1/((1+Simulador!$Q$13)^A172),9))) -> 0.115790421 | G172: 68.86925258
A173: 170 | B173: 170 | C173: 2039-05-25 | D173: 5 | E173: =IF(ISERROR(MATCH(D173,Simulador!$H$16:$H$17,0))=FALSE,"C",IF(ISERROR(MATCH(D173,Simulador!$H$18:$H$19,0))=FALSE,"D","")) ->  | F173: =IF(E173="C",0,IF(E173 ="D",ROUND(1/((1+Simulador!$Q$13)^A173),9) * 2,ROUND(1/((1+Simulador!$Q$13)^A173),9))) -> 0.114322637 | G173: 68.98357522
A174: 171 | B174: 171 | C174: 2039-06-25 | D174: 6 | E174: =IF(ISERROR(MATCH(D174,Simulador!$H$16:$H$17,0))=FALSE,"C",IF(ISERROR(MATCH(D174,Simulador!$H$18:$H$19,0))=FALSE,"D","")) ->  | F174: =IF(E174="C",0,IF(E174 ="D",ROUND(1/((1+Simulador!$Q$13)^A174),9) * 2,ROUND(1/((1+Simulador!$Q$13)^A174),9))) -> 0.112873459 | G174: 69.09644868
A175: 172 | B175: 172 | C175: 2039-07-25 | D175: 7 | E175: =IF(ISERROR(MATCH(D175,Simulador!$H$16:$H$17,0))=FALSE,"C",IF(ISERROR(MATCH(D175,Simulador!$H$18:$H$19,0))=FALSE,"D","")) ->  | F175: =IF(E175="C",0,IF(E175 ="D",ROUND(1/((1+Simulador!$Q$13)^A175),9) * 2,ROUND(1/((1+Simulador!$Q$13)^A175),9))) -> 0.111442652 | G175: 69.20789133
A176: 173 | B176: 173 | C176: 2039-08-25 | D176: 8 | E176: =IF(ISERROR(MATCH(D176,Simulador!$H$16:$H$17,0))=FALSE,"C",IF(ISERROR(MATCH(D176,Simulador!$H$18:$H$19,0))=FALSE,"D","")) ->  | F176: =IF(E176="C",0,IF(E176 ="D",ROUND(1/((1+Simulador!$Q$13)^A176),9) * 2,ROUND(1/((1+Simulador!$Q$13)^A176),9))) -> 0.110029981 | G176: 69.31792131
A177: 174 | B177: 174 | C177: 2039-09-25 | D177: 9 | E177: =IF(ISERROR(MATCH(D177,Simulador!$H$16:$H$17,0))=FALSE,"C",IF(ISERROR(MATCH(D177,Simulador!$H$18:$H$19,0))=FALSE,"D","")) ->  | F177: =IF(E177="C",0,IF(E177 ="D",ROUND(1/((1+Simulador!$Q$13)^A177),9) * 2,ROUND(1/((1+Simulador!$Q$13)^A177),9))) -> 0.108635218 | G177: 69.42655653
A178: 175 | B178: 175 | C178: 2039-10-25 | D178: 10 | E178: =IF(ISERROR(MATCH(D178,Simulador!$H$16:$H$17,0))=FALSE,"C",IF(ISERROR(MATCH(D178,Simulador!$H$18:$H$19,0))=FALSE,"D","")) ->  | F178: =IF(E178="C",0,IF(E178 ="D",ROUND(1/((1+Simulador!$Q$13)^A178),9) * 2,ROUND(1/((1+Simulador!$Q$13)^A178),9))) -> 0.107258135 | G178: 69.53381466
A179: 176 | B179: 176 | C179: 2039-11-25 | D179: 11 | E179: =IF(ISERROR(MATCH(D179,Simulador!$H$16:$H$17,0))=FALSE,"C",IF(ISERROR(MATCH(D179,Simulador!$H$18:$H$19,0))=FALSE,"D","")) ->  | F179: =IF(E179="C",0,IF(E179 ="D",ROUND(1/((1+Simulador!$Q$13)^A179),9) * 2,ROUND(1/((1+Simulador!$Q$13)^A179),9))) -> 0.105898508 | G179: 69.63971317
A180: 177 | B180: 177 | C180: 2039-12-25 | D180: 12 | E180: =IF(ISERROR(MATCH(D180,Simulador!$H$16:$H$17,0))=FALSE,"C",IF(ISERROR(MATCH(D180,Simulador!$H$18:$H$19,0))=FALSE,"D","")) ->  | F180: =IF(E180="C",0,IF(E180 ="D",ROUND(1/((1+Simulador!$Q$13)^A180),9) * 2,ROUND(1/((1+Simulador!$Q$13)^A180),9))) -> 0.104556116 | G180: 69.74426929
A181: 178 | B181: 178 | C181: 2040-01-25 | D181: 1 | E181: =IF(ISERROR(MATCH(D181,Simulador!$H$16:$H$17,0))=FALSE,"C",IF(ISERROR(MATCH(D181,Simulador!$H$18:$H$19,0))=FALSE,"D","")) ->  | F181: =IF(E181="C",0,IF(E181 ="D",ROUND(1/((1+Simulador!$Q$13)^A181),9) * 2,ROUND(1/((1+Simulador!$Q$13)^A181),9))) -> 0.103230741 | G181: 69.84750003
A182: 179 | B182: 179 | C182: 2040-02-25 | D182: 2 | E182: =IF(ISERROR(MATCH(D182,Simulador!$H$16:$H$17,0))=FALSE,"C",IF(ISERROR(MATCH(D182,Simulador!$H$18:$H$19,0))=FALSE,"D","")) ->  | F182: =IF(E182="C",0,IF(E182 ="D",ROUND(1/((1+Simulador!$Q$13)^A182),9) * 2,ROUND(1/((1+Simulador!$Q$13)^A182),9))) -> 0.101922166 | G182: 69.94942219
A183: 180 | B183: 180 | C183: 2040-03-25 | D183: 3 | E183: =IF(ISERROR(MATCH(D183,Simulador!$H$16:$H$17,0))=FALSE,"C",IF(ISERROR(MATCH(D183,Simulador!$H$18:$H$19,0))=FALSE,"D","")) ->  | F183: =IF(E183="C",0,IF(E183 ="D",ROUND(1/((1+Simulador!$Q$13)^A183),9) * 2,ROUND(1/((1+Simulador!$Q$13)^A183),9))) -> 0.10063018 | G183: 70.05005237
A184: 181 | B184: 181 | C184: 2040-04-25 | D184: 4 | E184: =IF(ISERROR(MATCH(D184,Simulador!$H$16:$H$17,0))=FALSE,"C",IF(ISERROR(MATCH(D184,Simulador!$H$18:$H$19,0))=FALSE,"D","")) ->  | F184: =IF(E184="C",0,IF(E184 ="D",ROUND(1/((1+Simulador!$Q$13)^A184),9) * 2,ROUND(1/((1+Simulador!$Q$13)^A184),9))) -> 0.09935457 | G184: 70.14940694
A185: 182 | B185: 182 | C185: 2040-05-25 | D185: 5 | E185: =IF(ISERROR(MATCH(D185,Simulador!$H$16:$H$17,0))=FALSE,"C",IF(ISERROR(MATCH(D185,Simulador!$H$18:$H$19,0))=FALSE,"D","")) ->  | F185: =IF(E185="C",0,IF(E185 ="D",ROUND(1/((1+Simulador!$Q$13)^A185),9) * 2,ROUND(1/((1+Simulador!$Q$13)^A185),9))) -> 0.098095131 | G185: 70.24750207
A186: 183 | B186: 183 | C186: 2040-06-25 | D186: 6 | E186: =IF(ISERROR(MATCH(D186,Simulador!$H$16:$H$17,0))=FALSE,"C",IF(ISERROR(MATCH(D186,Simulador!$H$18:$H$19,0))=FALSE,"D","")) ->  | F186: =IF(E186="C",0,IF(E186 ="D",ROUND(1/((1+Simulador!$Q$13)^A186),9) * 2,ROUND(1/((1+Simulador!$Q$13)^A186),9))) -> 0.096851656 | G186: 70.34435373
A187: 184 | B187: 184 | C187: 2040-07-25 | D187: 7 | E187: =IF(ISERROR(MATCH(D187,Simulador!$H$16:$H$17,0))=FALSE,"C",IF(ISERROR(MATCH(D187,Simulador!$H$18:$H$19,0))=FALSE,"D","")) ->  | F187: =IF(E187="C",0,IF(E187 ="D",ROUND(1/((1+Simulador!$Q$13)^A187),9) * 2,ROUND(1/((1+Simulador!$Q$13)^A187),9))) -> 0.095623944 | G187: 70.43997767
A188: 185 | B188: 185 | C188: 2040-08-25 | D188: 8 | E188: =IF(ISERROR(MATCH(D188,Simulador!$H$16:$H$17,0))=FALSE,"C",IF(ISERROR(MATCH(D188,Simulador!$H$18:$H$19,0))=FALSE,"D","")) ->  | F188: =IF(E188="C",0,IF(E188 ="D",ROUND(1/((1+Simulador!$Q$13)^A188),9) * 2,ROUND(1/((1+Simulador!$Q$13)^A188),9))) -> 0.094411795 | G188: 70.53438947
A189: 186 | B189: 186 | C189: 2040-09-25 | D189: 9 | E189: =IF(ISERROR(MATCH(D189,Simulador!$H$16:$H$17,0))=FALSE,"C",IF(ISERROR(MATCH(D189,Simulador!$H$18:$H$19,0))=FALSE,"D","")) ->  | F189: =IF(E189="C",0,IF(E189 ="D",ROUND(1/((1+Simulador!$Q$13)^A189),9) * 2,ROUND(1/((1+Simulador!$Q$13)^A189),9))) -> 0.093215011 | G189: 70.62760448
A190: 187 | B190: 187 | C190: 2040-10-25 | D190: 10 | E190: =IF(ISERROR(MATCH(D190,Simulador!$H$16:$H$17,0))=FALSE,"C",IF(ISERROR(MATCH(D190,Simulador!$H$18:$H$19,0))=FALSE,"D","")) ->  | F190: =IF(E190="C",0,IF(E190 ="D",ROUND(1/((1+Simulador!$Q$13)^A190),9) * 2,ROUND(1/((1+Simulador!$Q$13)^A190),9))) -> 0.092033398 | G190: 70.71963788
A191: 188 | B191: 188 | C191: 2040-11-25 | D191: 11 | E191: =IF(ISERROR(MATCH(D191,Simulador!$H$16:$H$17,0))=FALSE,"C",IF(ISERROR(MATCH(D191,Simulador!$H$18:$H$19,0))=FALSE,"D","")) ->  | F191: =IF(E191="C",0,IF(E191 ="D",ROUND(1/((1+Simulador!$Q$13)^A191),9) * 2,ROUND(1/((1+Simulador!$Q$13)^A191),9))) -> 0.090866763 | G191: 70.81050464
A192: 189 | B192: 189 | C192: 2040-12-25 | D192: 12 | E192: =IF(ISERROR(MATCH(D192,Simulador!$H$16:$H$17,0))=FALSE,"C",IF(ISERROR(MATCH(D192,Simulador!$H$18:$H$19,0))=FALSE,"D","")) ->  | F192: =IF(E192="C",0,IF(E192 ="D",ROUND(1/((1+Simulador!$Q$13)^A192),9) * 2,ROUND(1/((1+Simulador!$Q$13)^A192),9))) -> 0.089714917 | G192: 70.90021956
A193: 190 | B193: 190 | C193: 2041-01-25 | D193: 1 | E193: =IF(ISERROR(MATCH(D193,Simulador!$H$16:$H$17,0))=FALSE,"C",IF(ISERROR(MATCH(D193,Simulador!$H$18:$H$19,0))=FALSE,"D","")) ->  | F193: =IF(E193="C",0,IF(E193 ="D",ROUND(1/((1+Simulador!$Q$13)^A193),9) * 2,ROUND(1/((1+Simulador!$Q$13)^A193),9))) -> 0.088577672 | G193: 70.98879723
A194: 191 | B194: 191 | C194: 2041-02-25 | D194: 2 | E194: =IF(ISERROR(MATCH(D194,Simulador!$H$16:$H$17,0))=FALSE,"C",IF(ISERROR(MATCH(D194,Simulador!$H$18:$H$19,0))=FALSE,"D","")) ->  | F194: =IF(E194="C",0,IF(E194 ="D",ROUND(1/((1+Simulador!$Q$13)^A194),9) * 2,ROUND(1/((1+Simulador!$Q$13)^A194),9))) -> 0.087454843 | G194: 71.07625207
A195: 192 | B195: 192 | C195: 2041-03-25 | D195: 3 | E195: =IF(ISERROR(MATCH(D195,Simulador!$H$16:$H$17,0))=FALSE,"C",IF(ISERROR(MATCH(D195,Simulador!$H$18:$H$19,0))=FALSE,"D","")) ->  | F195: =IF(E195="C",0,IF(E195 ="D",ROUND(1/((1+Simulador!$Q$13)^A195),9) * 2,ROUND(1/((1+Simulador!$Q$13)^A195),9))) -> 0.086346247 | G195: 71.16259832
A196: 193 | B196: 193 | C196: 2041-04-25 | D196: =MONTH(C196) -> 4 | E196: =IF(ISERROR(MATCH(D196,Simulador!$H$16:$H$17,0))=FALSE,"C",IF(ISERROR(MATCH(D196,Simulador!$H$18:$H$19,0))=FALSE,"D","")) ->  | F196: =IF(E196="C",0,IF(E196 ="D",ROUND(1/((1+Simulador!$Q$13)^A196),9) * 2,ROUND(1/((1+Simulador!$Q$13)^A196),9))) -> 0.085251703 | G196: 71.24785002
A197: =A196+1 -> 194 | B197: =IF(E197<>"C",IF(ISERROR(1+B196)=TRUE,1,1+B196),IF(ISNUMBER(B196),B196,1)) -> 194 | C197: =DATE(YEAR(C196) + 1/12,MONTH(C196)+1,DAY(C196)) -> 2041-05-25 | D197: 5 | E197: =IF(ISERROR(MATCH(D197,Simulador!$H$16:$H$17,0))=FALSE,"C",IF(ISERROR(MATCH(D197,Simulador!$H$18:$H$19,0))=FALSE,"D","")) ->  | F197: =IF(E197="C",0,IF(E197 ="D",ROUND(1/((1+Simulador!$Q$13)^A197),9) * 2,ROUND(1/((1+Simulador!$Q$13)^A197),9))) -> 0.084171035 | G197: 71.33202106
A198: 195 | B198: 195 | C198: 2041-06-25 | D198: 6 | E198: =IF(ISERROR(MATCH(D198,Simulador!$H$16:$H$17,0))=FALSE,"C",IF(ISERROR(MATCH(D198,Simulador!$H$18:$H$19,0))=FALSE,"D","")) ->  | F198: =IF(E198="C",0,IF(E198 ="D",ROUND(1/((1+Simulador!$Q$13)^A198),9) * 2,ROUND(1/((1+Simulador!$Q$13)^A198),9))) -> 0.083104065 | G198: =G197+ROUND(F198,9) -> 71.41512512
A199: 196 | B199: 196 | C199: 2041-07-25 | D199: 7 | E199: =IF(ISERROR(MATCH(D199,Simulador!$H$16:$H$17,0))=FALSE,"C",IF(ISERROR(MATCH(D199,Simulador!$H$18:$H$19,0))=FALSE,"D","")) ->  | F199: =IF(E199="C",0,IF(E199 ="D",ROUND(1/((1+Simulador!$Q$13)^A199),9) * 2,ROUND(1/((1+Simulador!$Q$13)^A199),9))) -> 0.08205062 | G199: 71.49717574
A200: 197 | B200: 197 | C200: 2041-08-25 | D200: 8 | E200: =IF(ISERROR(MATCH(D200,Simulador!$H$16:$H$17,0))=FALSE,"C",IF(ISERROR(MATCH(D200,Simulador!$H$18:$H$19,0))=FALSE,"D","")) ->  | F200: =IF(E200="C",0,IF(E200 ="D",ROUND(1/((1+Simulador!$Q$13)^A200),9) * 2,ROUND(1/((1+Simulador!$Q$13)^A200),9))) -> 0.08101053 | G200: 71.57818627
A201: 198 | B201: 198 | C201: 2041-09-25 | D201: 9 | E201: =IF(ISERROR(MATCH(D201,Simulador!$H$16:$H$17,0))=FALSE,"C",IF(ISERROR(MATCH(D201,Simulador!$H$18:$H$19,0))=FALSE,"D","")) ->  | F201: =IF(E201="C",0,IF(E201 ="D",ROUND(1/((1+Simulador!$Q$13)^A201),9) * 2,ROUND(1/((1+Simulador!$Q$13)^A201),9))) -> 0.079983623 | G201: 71.6581699
... 185 more rows
